Workbook

Sheet Input Wonen (hidden)
E3: Project | U3: Projectcode: | W3: 0447.005
E4: Onderwerp | K4: REKENING HOUDEN MET CA 10% EXTRA KOSTEN VOOR WERKZAAMHEDEN DIE NIET INBEGREPEN | Q4: REKENING HOUDEN MET CA 10% EXTRA KOSTEN VOOR WERKZAAMHEDEN DIE NIET INBEGREPEN
E5: Opgesteld | K5: ZIJN IN ONDERSTAANDE WERKZAAMHEDEN. ZOALS: KLEIN TIMMERWERK, SCHILDERWERK, GRONDWERK | Q5: ZIJN IN ONDERSTAANDE WERKZAAMHEDEN. ZOALS: KLEIN TIMMERWERK, SCHILDERWERK, GRONDWERK | U5: Versie: | W5: 0.1
E6: Gecontroleerd | K6: EN STEIGER | Q6: EN STEIGER | U6: Versie datum: | W6: 2022-04-25
E7: Bestand: | U7: Status: | W7: concept
N9: =500*0.35*0.47 -> 82.25
E10: Traditioneel (RVO Referentieprojecten) | K10: Het Nieuwe Normaal 0.4 (HNN0.4) | Q10: Excellent | X10: gevel = buitenspouwblad + kozijnen | Y10: bg vloer | Z10: dak
E11: Element | F11: Materialisatie | G11: Ehd | H11: Ehd.prijs (directe bouwkosten) | K11: Element | L11: Materialisatie | M11: Ehd | N11: Ehd.prijs (directe bouwkosten) | Q11: Element | R11: Materialisatie | S11: Ehd | T11: Ehd.prijs (directe bouwkosten) | V11: Woning | W11: BVO | X11: BGO | Y11: BBO | Z11: BDO | AA11: won
V12: Woning S tussen | W12: 146 | X12: =#REF!+#REF! ->  | Y12: =#REF! ->  | Z12: =#REF! ->  | AA12: 1 | AD12: Mortel schroefpaal 15 m1 | AE12: Rond 300 | AF12: 40
D13: ID | E13: Fundering | J13: ID | K13: Fundering | P13: ID | Q13: Fundering | V13: Woning 2,5 laag | W13: 145 | X13: 99 | Y13: 54 | Z13: 54 | AA13: 1 | AD13: Mortel schroefpaal 15 m1 | AE13: Rond 300 | AF13: 40
D14: FU01.t | E14: Funderingsbalken, 350x470mm | F14: In het werk gestort | G14: m1 | H14: =ROUND((0.35*0.47)*600,-0.1)+1 -> 100 | J14: FU01.HNN | K14: Funderingsbalken, 350x470mm | L14: Beton met 56% aan secundair aandeel (UMC) | M14: m1 | N14: =N15 -> 109 | P14: FU01.E | Q14: Funderingsbalken, 350x470mm | R14: Beton met 56% aan secundair aandeel (UMC) | S14: m1 | T14: =T15 -> 109 | V14: Woning M hoek | W14: 180 | X14: =#REF!+#REF! ->  | Y14: =#REF! ->  | Z14: =#REF! ->  | AA14: 1 | AB14: 31 | AD14: Mortel schroefpaal 15 m1 | AE14: Rond 300 | AF14: 40
D15: FU11.t | E15: Funderingsbalken, 350x470mm | F15: In het werk gestort | G15: m1 | H15: =ROUND((0.35*0.47)*600,-0.1)+1 -> 100 | J15: FU11.HNN | K15: Funderingsbalken, 350x470mm | L15: Beton met 56% aan secundair aandeel (UMC) | M15: m1 | N15: =ROUND((0.35*0.47)*650,-0.1)+2 -> 109 | P15: FU11.E | Q15: Funderingsbalken, 350x470mm | R15: Beton met 56% aan secundair aandeel (UMC) | S15: m1 | T15: =N15 -> 109 | V15: Woning M hoek | W15: 180 | X15: =#REF!+#REF! ->  | Y15: =#REF! ->  | Z15: =#REF! ->  | AA15: 1 | AB15: 31 | AD15: Mortel schroefpaal 15 m1 | AE15: Rond 300 | AF15: 40
D16: FU02.t | E16: Funderingsbalken, 400x500mm | F16: In het werk gestort | G16: m1 | H16: =ROUND((0.4*0.5)*600,-0.1) -> 120 | J16: FU02.HNN | K16: Funderingsbalken, 400x500mm | L16: Beton met 56% aan secundair aandeel (UMC) | M16: m1 | N16: =N17 -> 129 | P16: FU02.E | Q16: Funderingsbalken, 400x500mm | R16: Beton met 56% aan secundair aandeel (UMC) | S16: m1 | T16: =T17 -> 129 | V16: Woongebouw M | W16: 3830 | X16: =#REF!+#REF! ->  | Y16: =#REF! ->  | Z16: =#REF! ->  | AA16: 31 | AB16: =W16/AA16 -> 123.5483871 | AD16: Mortel schroefpaal 20 m1 | AE16: Rond 350 | AF16: 45
D17: FU09.t | E17: Funderingsbalken, 400x500mm | F17: In het werk gestort | G17: m1 | H17: =ROUND((0.4*0.5)*600,-0.1) -> 120 | J17: FU09.HNN | K17: Funderingsbalken, 400x500mm | L17: Beton met 56% aan secundair aandeel (UMC) | M17: m1 | N17: =ROUND((0.4*0.5)*650,-0.1)-1 -> 129 | P17: FU09.E | Q17: Funderingsbalken, 400x500mm | R17: Beton met 56% aan secundair aandeel (UMC) | S17: m1 | T17: =N17 -> 129 | V17: Woongebouw M | W17: 3830 | X17: =#REF!+#REF! ->  | Y17: =#REF! ->  | Z17: =#REF! ->  | AA17: 31 | AD17: Mortel schroefpaal 20 m1 | AE17: Rond 350 | AF17: 45
D18: FU06.t | E18: Funderingsbalken, 600x600mm | F18: In het werk gestort | G18: m1 | H18: =ROUND((0.6*0.6)*600,-0.1)+4 -> 220 | J18: FU06.HNN | K18: Funderingsbalken, 600x600mm | L18: Beton met 56% aan secundair aandeel (UMC) | M18: m1 | N18: =N19 -> 234 | P18: FU06.E | Q18: Funderingsbalken, 600x600mm | R18: Beton met 56% aan secundair aandeel (UMC) | S18: m1 | T18: =T19 -> 234
D19: FU13.t | E19: Funderingsbalken, 600x600mm | F19: In het werk gestort | G19: m1 | H19: =ROUND((0.6*0.6)*600,-0.1)+4 -> 220 | J19: FU13.HNN | K19: Funderingsbalken, 600x600mm | L19: Beton met 56% aan secundair aandeel (UMC) | M19: m1 | N19: =ROUND((0.6*0.6)*650,-0.1) -> 234 | P19: FU13.E | Q19: Funderingsbalken, 600x600mm | R19: Beton met 56% aan secundair aandeel (UMC) | S19: m1 | T19: =N19 -> 234
D20: FU03.t | E20: Funderingspaal, ⌀ 300mm; l=15,0m | F20: Schroefpaal; beton, in het werk gestort, C20/25,CEMIII; incl.wapening | G20: m1 | H20: 50 | J20: FU03.HNN | K20: Funderingspaal, ⌀ 300mm; l=15,0m | L20: Beton met 56% aan secundair aandeel (UMC) | M20: m1 | N20: =N21 -> 55 | P20: FU03.E | Q20: Funderingspaal, ⌀ 300mm; l=15,0m | R20: Beton met 56% aan secundair aandeel (UMC) | S20: m1 | T20: =T21 -> 55 | V20: Woonschijf | W20: 12400 | X20: 5382 | Y20: 1550 | Z20: 1550 | AA20: 140 | AB20: =W20/AA20 -> 88.57142857 | AD20: Mortel schroefpaal 25 m1 | AE20: Rond 500 | AF20: 70
D21: FU10.t | E21: Funderingspaal, ⌀ 300mm; l=15,0m | F21: Schroefpaal; beton, in het werk gestort, C20/25,CEMIII; incl.wapening | G21: m1 | H21: 50 | J21: FU10.HNN | K21: Funderingspaal, ⌀ 300mm; l=15,0m | L21: Beton met 56% aan secundair aandeel (UMC) | M21: m1 | N21: =H21+5 -> 55 | P21: FU10.E | Q21: Funderingspaal, ⌀ 300mm; l=15,0m | R21: Beton met 56% aan secundair aandeel (UMC) | S21: m1 | T21: =N21 -> 55 | V21: Woonschijf | W21: 12400 | X21: 5382 | Y21: 1550 | Z21: 1550 | AA21: 140 | AD21: Mortel schroefpaal 25 m1 | AE21: Rond 500 | AF21: 70
D22: FU04.t | E22: Funderingspaal, ⌀ 350mm, l=20,0m | F22: Schroefpaal; beton, in het werk gestort, C20/25,CEMIII; incl.wapening | G22: m1 | H22: 60 | J22: FU04.HNN | K22: Funderingspaal, ⌀ 350mm, l=20,0m | L22: Beton met 56% aan secundair aandeel (UMC) | M22: m1 | N22: =N23 -> 65 | P22: FU04.E | Q22: Funderingspaal, ⌀ 350mm, l=20,0m | R22: Beton met 56% aan secundair aandeel (UMC) | S22: m1 | T22: =T23 -> 65 | V22: Toren | W22: 26544 | X22: 10118 | Y22: 1106 | Z22: 1106 | AA22: 312 | AD22: Mortel schroefpaal 25 m1 | AE22: Rond 500 | AF22: 70
D23: FU12.t | E23: Funderingspaal, ⌀ 350mm; l=15,0m | F23: Schroefpaal; beton, in het werk gestort, C20/25,CEMIII; incl.wapening | G23: m1 | H23: 60 | J23: FU12.HNN | K23: Funderingspaal, ⌀ 350mm; l=15,0m | L23: Beton met 56% aan secundair aandeel (UMC) | M23: m1 | N23: =H23+5 -> 65 | P23: FU12.E | Q23: Funderingspaal, ⌀ 350mm; l=15,0m | R23: Beton met 56% aan secundair aandeel (UMC) | S23: m1 | T23: =N23 -> 65 | V23: Toren | W23: 26544 | X23: 10118 | Y23: 1106 | Z23: 1106 | AA23: 312 | AD23: Mortel schroefpaal 25 m1 | AE23: Rond 500 | AF23: 70
D24: FU08.t | E24: Funderingspaal, ⌀ 500mm; l=25,0m | F24: Schroefpaal; beton, in het werk gestort, C20/25,CEMIII; incl.wapening | G24: m1 | H24: 80 | J24: FU08.HNN | K24: Funderingspaal, ⌀ 500mm; l=25,0m | L24: Beton met 56% aan secundair aandeel (UMC) | M24: m1 | N24: =N25 -> 85 | P24: FU08.E | Q24: Funderingspaal, ⌀ 500mm; l=25,0m | R24: Beton met 56% aan secundair aandeel (UMC) | S24: m1 | T24: =T25 -> 85 | V24: Galerij | W24: 10144 | X24: 7341 | Y24: 1268 | Z24: 1268 | AA24: 136 | AD24: Mortel schroefpaal 25 m1 | AE24: Rond 500 | AF24: 70
D25: FU14.t | E25: Funderingspaal, ⌀ 500mm; l=25,0m | F25: Schroefpaal; beton, in het werk gestort, C20/25,CEMIII; incl.wapening | G25: m1 | H25: 80 | J25: FU14.HNN | K25: Funderingspaal, ⌀ 500mm; l=25,0m | L25: Beton met 56% aan secundair aandeel (UMC) | M25: m1 | N25: =H25+5 -> 85 | P25: FU14.E | Q25: Funderingspaal, ⌀ 500mm; l=25,0m | R25: Beton met 56% aan secundair aandeel (UMC) | S25: m1 | T25: =N25 -> 85 | V25: Galerij | W25: 10144 | X25: 7341 | Y25: 1268 | Z25: 1268 | AA25: 136 | AD25: Mortel schroefpaal 25 m1 | AE25: Rond 500 | AF25: 70
D26: FU05.t | E26: Bodemafsluiting, zand | F26: Zand | G26: m2 | H26: =35*0.1 -> 3.5 | J26: FU05.HNN | K26: Bodemafsluiting, 100 zand | L26: Zand | M26: m2 | N26: =H26 -> 3.5 | P26: FU05.E | Q26: Bodemafsluiting, 100 zand | R26: Zand | S26: m2 | T26: =N26 -> 3.5
D27: FU07.t | E27: Opgaand metselwerk | F27: Kalkzandsteen lijmblokken, 100mm | G27: m2 | H27: 75 | J27: FU07.HNN | K27: Opgaand metselwerk | L27: Kalkzandsteen lijmblokken, 100mm | M27: m2 | N27: =H27 -> 75 | P27: FU07.E | Q27: Opgaand metselwerk | R27: Kalkzandsteen lijmblokken, 100mm | S27: m2 | T27: =N27 -> 75
E28: Vloeren | K28: Vloeren | Q28: Vloeren
D29: VL01.t | E29: BG: ribbenvloer, vrijdragend incl. isolatie (Rc=3,7) | F29: Prefab beton | G29: m2 | H29: 75 | J29: VL01.HNN | K29: BG: kanaalplaatvloer, 200mm incl. isolatie (Rc=3,7) | L29: Kanaalplaat, remontabel (28% recyclaat) | M29: m2 | N29: 96 | P29: VL01.E | Q29: BG: kanaalplaatvloer, 200mm incl. isolatie (Rc=3,7) | R29: Kanaalplaat, remontabel (28% recyclaat) | S29: m2 | T29: =N29 -> 96
D30: VL11.t | E30: BG: kanaalplaatvloer, 200mm incl. isolatie (Rc=3,7) | F30: Kanaalplaatvloer; prefab beton | G30: m2 | H30: 95 | J30: VL11.HNN | K30: BG: kanaalplaatvloer, 200mm incl. isolatie (Rc=3,7) | L30: Kanaalplaat, remontabel (28% recyclaat) | M30: m2 | N30: =H30+15 -> 110 | P30: VL11.E | Q30: BG: kanaalplaatvloer, 200mm incl. isolatie (Rc=3,7) | R30: Kanaalplaat, remontabel (28% recyclaat) | S30: m2 | T30: =N30 -> 110
D31: VL25.t | E31: BG: kanaalplaatvloer, 260mm incl. isolatie (Rc=3,7) | F31: Kanaalplaatvloer; prefab beton | G31: m2 | H31: 105 | J31: VL25.HNN | K31: BG: kanaalplaatvloer, 260mm incl. isolatie (Rc=3,7) | L31: Kanaalplaat, remontabel (28% recyclaat) | M31: m2 | N31: =H31+15 -> 120 | P31: VL25.E | Q31: BG: kanaalplaatvloer, 320mm incl. isolatie (Rc=3,7) | R31: Kanaalplaat, remontabel (28% recyclaat) | S31: m2 | T31: =N31 -> 120
D32: VL02.t | E32: Dekvloeren, 60mm | F32: Zandcement dekvloer | G32: m2 | H32: 15 | J32: VL02.HNN | K32: Dekvloeren, 60mm | L32: Fermacell honingraatvloer (op houten vloer) | M32: m2 | N32: 45 | P32: VL02.E | Q32: Dekvloeren, 60mm | R32: Fermacell honingraatvloer (op houten vloer) | S32: m2 | T32: 45
D33: VL05.t | E33: VV: breedplaatvloer, 270mm incl. druklaag | F33: Breedplaatvloer; incl. druklaag | G33: m2 | H33: 135 | J33: VL05.HNN | K33: VV: breedplaatvloer, 270mm incl. druklaag | L33: Breedplaatvloer; incl. druklaag (UMC) | M33: m2 | N33: =H33+10 -> 145 | P33: VL05.E | Q33: VV: CLT incl. dekvloer | R33: CLT verdiepingsvloer | S33: m2 | T33: 200
D34: VL26.t | E34: VV: breedplaatvloer, 270mm incl. druklaag | F34: Breedplaatvloer; incl. druklaag | G34: m2 | H34: 135 | J34: VL26.HNN | K34: VV: breedplaatvloer, 270mm incl. druklaag | L34: Breedplaatvloer; incl. druklaag (UMC) | M34: m2 | N34: =H34+10 -> 145 | P34: VL26.E | Q34: VV: breedplaatvloer, 270mm incl. druklaag | R34: Breedplaatvloer; incl. druklaag (UMC) | S34: m2 | T34: =N34 -> 145
D35: VL20.t | E35: VV: kanaalplaatvloer, 200mm | F35: Kanaalplaatvloer; prefab beton | G35: m2 | H35: 85 | J35: VL20.HNN | K35: VV: kanaalplaatvloer, 200mm | L35: Kanaalplaatvloer, 200mm (28% recyclaat) | M35: m2 | N35: =H35+15 -> 100 | P35: VL20.E | Q35: VV: HSB (grondgeb.) | R35: HSB vloerelement (stijlen+OSB), 18mm; IsoVlas 60mm; gipsplaat (2x) | S35: m2 | T35: 160
D36: VL07.t | E36: Dekvloeren, 60mm | F36: Zandcement dekvloer | G36: m2 | H36: 15 | J36: VL07.HNN | K36: Dekvloeren, 60mm | L36: Fermacell honingraatvloer (op houten vloer) | M36: m2 | N36: 45 | P36: VL07.E | Q36: Dekvloeren, 60mm | R36: Fermacell honingraatvloer (op houten vloer) | S36: m2 | T36: =N36 -> 45
D37: VL23.t | E37: Geïsoleerd vloerluik | F37: Houtvezelcement, EPS, stalen ravel | G37: m2 | H37: 100 | J37: VL23.HNN | K37: Geïsoleerd vloerluik | L37: Houtvezelcement, EPS, stalen ravel | M37: m2 | N37: =H37 -> 100 | P37: VL23.E | Q37: Geïsoleerd vloerluik | R37: Houtvezelcement, EPS, stalen ravel | S37: m2 | T37: =N37 -> 100
D38: VL03.t | E38: Vloertegelwerk toilet | F38: Keramische tegels, geglazuurd/gelijmd | G38: m2 | H38: 100 | J38: VL03.HNN | K38: Vloertegelwerk toilet | L38: Mosa C2C vloertegels | M38: m2 | N38: 100 | P38: VL03.E | Q38: Vloertegelwerk toilet | R38: Mosa C2C vloertegels (losmaakbaar) | S38: m2 | T38: 200
D39: VL04.t | E39: Vloertegelwerk badkamer | F39: Keramische tegels, geglazuurd/gelijmd | G39: m2 | H39: 100 | J39: VL04.HNN | K39: Vloertegelwerk badkamer | L39: Mosa C2C vloertegels | M39: m2 | N39: 100 | P39: VL04.E | Q39: Vloertegelwerk badkamer | R39: Mosa C2C vloertegels (losmaakbaar) | S39: m2 | T39: 200
D40: VL08.t | E40: Plafondafwerking | F40: Spuitpleister | G40: m2 | H40: 8 | J40: VL08.HNN | K40: Plafondafwerking | L40: Spuitpleister | M40: m2 | N40: =H40 -> 8 | P40: VL08.E | Q40: Plafondafwerking | R40: Spuitpleister | S40: m2 | T40: 8
D41: VL22.t | E41: Plafondafwerking, verlaagd plafond | F41: Glaswoltegels | G41: m2 | H41: 40 | J41: VL22.HNN | K41: Plafondafwerking | L41: Glaswoltegels | M41: m2 | N41: =H41 -> 40 | P41: VL22.E | Q41: Plafondafwerking | R41: Glaswoltegels | S41: m2 | T41: =N41 -> 40
D42: VL09.t | E42: Balkon- en galerijvloeren | F42: Prefab beton, 250mm | G42: m2 | H42: 450 | J42: VL09.HNN | K42: Balkon- en galerijvloeren | L42: Prefab beton, 250mm | M42: m2 | N42: =H42 -> 450 | P42: VL09.E | Q42: Balkon- en galerijvloeren | R42: HSB element houten vloer + stalen ophanging (56,8 kg/m2 zie detail berekening excel) | S42: m2 | T42: 850
D43: VL10.t | E43: Balustrades | F43: Aluminium; geanodiseerd | G43: m1 | H43: 300 | J43: VL10.HNN | K43: Balustrades | L43: Houten balustrades | M43: m1 | N43: 300 | P43: VL10.E | Q43: Balustrades | R43: Houten balustrades | S43: m1 | T43: 300
D44: VL21.t | E44: Balustrades | F44: RVS, incl. glasplaat vulling | G44: m1 | H44: 350 | J44: VL21.HNN | K44: Balustrades | L44: RVS, incl. glasplaat vulling | M44: m1 | N44: =H44 -> 350 | P44: VL21.E | Q44: Balustrades | R44: RVS, incl. glasplaat vulling | S44: m1 | T44: =N44 -> 350
D45: VL24.t | E45: Balustrades | F45: Staal; gepoedercoat; spijlen | G45: m1 | H45: 250 | J45: VL24.HNN | K45: Balustrades | L45: Staal; gepoedercoat; spijlen | M45: m1 | N45: =H45 -> 250 | P45: VL24.E | Q45: Balustrades | R45: Staal; gepoedercoat; spijlen | S45: m1 | T45: =N45 -> 250
E46: Draagconstructie | K46: Draagconstructie | Q46: Draagconstructie
D47: DR01.t | E47: Betonmortel | F47: C20/C25,XC1,S3; 0% betongranulaat | G47: m3 | H47: 500 | J47: DR01.HNN | K47: Betonmortel | L47: C20/C25,XC1,S3; 20% betongranulaat | M47: m3 | N47: 510 | P47: DR01.E | Q47: Betonmortel | R47: C20/C25,XC1,S3; 56% betongranulaat | S47: m3 | T47: 515
D48: DR02.t | E48: Wapeningsstaal | F48: Staal | G48: kg | H48: 2 | J48: DR02.HNN | K48: Wapeningsstaal | L48: Staal | M48: kg | N48: =H48 -> 2 | P48: DR02.E | Q48: Wapeningsstaal | R48: Staal | S48: kg | T48: =N48 -> 2
D49: DR03.t | E49: Zwaar constructiestaal | F49: 7.820 kg/m3, incl. conservering | G49: kg | H49: 4 | J49: DR03.HNN | K49: Zwaar constructiestaal | L49: 7.820 kg/m3, incl. conservering | M49: kg | N49: =H49 -> 4 | P49: DR03.E | Q49: Zwaar constructiestaal | R49: 7.820 kg/m3, incl. conservering | S49: kg | T49: =N49 -> 4
E50: Gevel | K50: Gevel | Q50: Gevel
D51: GE09.t | E51: Buitenspouwblad, 100mm | F51: Baksteenmetselwerk | G51: m2 | H51: 150 | J51: GE09.HNN | K51: Buitenspouwblad | L51: Ecobrick Wienerberger | M51: m2 | N51: 150 | P51: GE09.E | Q51: Buitenspouwblad | R51: Houten gevelbekleding; Meranti delen | S51: m2 | T51: 200
D52: GE10.t | E52: Isolatielagen, Rc=4,7 | F52: PUR/PIR schuimplaten | G52: m2 | H52: 30 | J52: GE10.HNN | K52: Isolatielagen, Rc=4,7 | L52: Isovlas plaat, PN160mm | M52: m2 | N52: 45 | P52: GE10.E | Q52: Isolatielagen, Rc=4,7 | R52: Isovlas plaat, PN160mm | S52: m2 | T52: HSB is incl. isolatie
D53: GE26.t | E53: Isolatielagen, Rc=4,7 | F53: Glaswolplaten, MWA 2012 | G53: m2 | H53: 20 | J53: GE26.HNN | K53: Isolatielagen, Rc=4,7 | L53: Isovlas plaat, PN160mm | M53: m2 | N53: 45 | P53: GE26.E | Q53: Isolatielagen, Rc=4,7 | R53: Isovlas plaat, PN160mm | S53: m2 | T53: =N53 -> 45
D54: GE37.t | E54: Isolatielagen, Rc=0,55 | F54: XPS | G54: m2 | H54: 30 | J54: GE37.HNN | K54: Binnenwanden, 35mm | L54: Faay volpaneel | M54: m2 | N54: 70 | P54: GE37.E | Q54: Binnenwanden, 35mm | R54: Faay volpaneel | S54: m2 | T54: =N54 -> 70
D55: GE70.t | E55: Isolatielagen, Rc=4,7 | F55: Isover Mupan Ultra XS | G55: m2 | H55: 30 | J55: GE70.HNN | K55: Isolatielagen, Rc=4,7 | L55: Isover Mupan Ultra XS | M55: m2 | N55: =H55 -> 30 | P55: GE70.E | Q55: Isolatielagen, Rc=4,7 | R55: Isover Mupan Ultra XS | S55: m2 | T55: =N55 -> 30
D56: GE11.t | E56: Binnenspouwblad, 100mm (bruto) | F56: Prefab beton | G56: m2 | H56: 120 | J56: GE11.HNN | K56: Binnenspouwblad, 100mm (bruto) | L56: Prefab beton (UMC) | M56: m2 | N56: =H56+0.1*25 -> 122.5 | P56: GE11.E | Q56: Binnenspouwblad, HSB (bruto) | R56: HSB element incl. Isovlas isolatie | S56: m2 | T56: 220
D57: GE40.t | E57: Binnenspouwblad, 150mm (bruto) | F57: Prefab beton | G57: m2 | H57: 145 | J57: GE40.HNN | K57: Binnenspouwblad, 150mm (bruto) | L57: Prefab beton | M57: m2 | N57: =H57 -> 145 | P57: GE40.E | Q57: Binnenspouwblad, HSB (bruto) | R57: HSB element incl. Isovlas isolatie | S57: m2 | T57: 240
D58: GE60.t | E58: Binnenspouwblad, 200mm (bruto) | F58: Prefab beton | G58: m2 | H58: 170 | J58: GE60.HNN | K58: Binnenspouwblad, 200mm (bruto) | L58: Prefab beton | M58: m2 | N58: =H58 -> 170 | P58: GE60.E | Q58: Binnenspouwblad, HSB (bruto) | R58: HSB element incl. Isovlas isolatie | S58: m2 | T58: 240
D59: GE24.t | E59: Binnenspouwblad, 250mm (bruto) | F59: I.h.w.g. beton | G59: m2 | H59: 240 | J59: GE24.HNN | K59: Binnenspouwblad, 250mm (bruto) | L59: I.h.w.g. beton (UMC) | M59: m2 | N59: =H59+0.25*25 -> 246.25 | P59: GE24.E | Q59: Binnenspouwblad, CLT | R59: CLT wanden | S59: m2 | T59: 260
D60: GE25.t | E60: Binnenspouwblad; niet dragend, 250mm (bruto) | F60: HSB element incl. isolatie en beplating | G60: m2 | H60: 240 | J60: GE25.HNN | K60: Binnenspouwblad; niet dragend, 250mm (bruto) | L60: HSB element incl. isolatie en beplating | M60: m2 | N60: =H60 -> 240 | P60: GE25.E | Q60: Binnenspouwblad; niet dragend HSB (bruto) | R60: HSB element incl. Isovlas isolatie | S60: m2 | T60: 250
D61: GE42.t | E61: Binnenspouwblad, 100mm | F61: Cellenbeton blokken, XellaYtong | G61: m2 | H61: 60 | J61: GE42.HNN | K61: Binnenspouwblad, 100mm | L61: Cellenbeton blokken, XellaYtong | M61: m2 | N61: =H61 -> 60 | P61: GE42.E | Q61: Binnenspouwblad, HSB (bruto) | R61: HSB element incl. Isovlas isolatie | S61: m2 | T61: 230
D62: GE50.t | E62: Gevelkozijnen; incl. HR++ beglazing | F62: Az. loofhout (Meranti), geschilderd | G62: m2 | H62: 550 | J62: GE50.HNN | K62: Gevelkozijnen; incl. HR++ beglazing | L62: Europees naaldhout, geschilderd | M62: m2 | N62: 550 | P62: GE50.E | Q62: Gevelkozijnen; incl. Isomax beglazing | R62: Europees naaldhout, geschilderd | S62: m2 | T62: =N62+10 -> 560
D63: GE51.t | E63: Gevelkozijnen; incl. HR++ beglazing | F63: Europees naaldhout, geschilderd | G63: m2 | H63: 550 | J63: GE51.HNN | K63: Gevelkozijnen; incl. HR++ beglazing | L63: Europees naaldhout, geschilderd | M63: m2 | N63: 550 | P63: GE51.E | Q63: Gevelkozijnen; incl. Isomax beglazing | R63: Europees naaldhout, geschilderd | S63: m2 | T63: =N63+10 -> 560
D64: GE29.t | E64: Gevelkozijnen; incl. HR++ beglazing | F64: Aluminium | G64: m2 | H64: 600 | J64: GE29.HNN | K64: Gevelkozijnen; incl. HR++ beglazing | L64: Aluminium; 75% recyclaat (Hydro CIRCAL 75R) | M64: m2 | N64: 600 | P64: GE29.E | Q64: Gevelkozijnen; incl. Isomax beglazing | R64: Aluminium; 75% recyclaat (Hydro CIRCAL 75R) | S64: m2 | T64: 610
D65: GE35.t | E65: Gevelkozijn; schuifpui | F65: Aluminium, vast en/of draaiend | G65: m2 | H65: 600 | J65: GE35.HNN | K65: Gevelkozijn, schuifpui | L65: Aluminium, vast en/of draaiend | M65: m2 | N65: =H65 -> 600 | P65: GE35.E | Q65: Gevelkozijn, schuifpui | R65: Aluminium, vast en/of draaiend | S65: m2 | T65: =N65 -> 600
D66: GE03.t | E66: Stelkozijnen | F66: Onverduurzaamd hout, geverfd | G66: st | H66: 80 | J66: GE03.HNN | K66: Stelkozijnen | L66: Onverduurzaamd hout, geverfd | M66: st | N66: =H66 -> 80 | P66: GE03.E | Q66: Stelkozijnen | R66: Onverduurzaamd hout, geverfd | S66: st | T66: =N66 -> 80
D67: GE02.t | E67: Beglazing | F67: Triple glas; droog beglaasd | G67: m2 | H67: 135 | J67: GE02.HNN | K67: Beglazing | L67: Triple glas; droog beglaasd | M67: m2 | N67: =H67 -> 135 | P67: GE02.E | Q67: Beglazing | R67: HR++; droog beglaasd, IsoMax | S67: m2 | T67: 70
D68: GE38.t | E68: Beglazing | F68: HR++ (dubbel) | G68: m2 | H68: 65 | J68: GE38.HNN | K68: Beglazing | L68: HR++ (dubbel) | M68: m2 | N68: =H68 -> 65 | P68: GE38.E | Q68: Beglazing | R68: HR++; droog beglaasd, IsoMax | S68: m2 | T68: 70
D69: GE08.t | E69: Buitendeur; incl. glasopening 0,85m2 | F69: Onverduurzaamd hout, geverfd | G69: st | H69: 950 | J69: GE08.HNN | K69: Buitendeur; incl. glasopening 0,85m2 | L69: Onverduurzaamd hout, geverfd | M69: st | N69: 950 | P69: GE08.E | Q69: Buitendeur; incl. glasopening 0,85m2 | R69: Onverduurzaamd hout, geverfd | S69: st | T69: 950
D70: GE34.t | E70: Buitendeur; multiplex | F70: Sandwich; 2x multiplex | G70: st | H70: 950 | J70: GE34.HNN | K70: Buitendeur; multiplex | L70: Sandwich; 2x multiplex | M70: st | N70: =H70 -> 950 | P70: GE34.E | Q70: Buitendeur; multiplex | R70: Sandwich; 2x multiplex | S70: st | T70: 950
D71: GE36.t | E71: Buitendeur; aluminium | F71: Aluminium, gemoffeld; bekleding volkern | G71: st | H71: 1500 | J71: GE36.HNN | K71: Buitendeur; aluminium | L71: Aluminium, gemoffeld; bekleding volkern | M71: st | N71: =H71 -> 1500 | P71: GE36.E | Q71: Buitendeur; aluminium | R71: Aluminium, gemoffeld; bekleding volkern | S71: st | T71: =N71 -> 1500
D72: GE22.t | E72: Lateien | F72: Prefab beton | G72: m1 | H72: 70 | J72: GE22.HNN | K72: Lateien | L72: Prefab beton | M72: m2 | N72: =H72 -> 70 | P72: GE22.E | Q72: Lateien | R72: Prefab beton | S72: m2 | T72: 70
D73: GE31.t | E73: Vensterbanken | F73: Kunststeen | G73: m1 | H73: 50 | J73: GE31.HNN | K73: Vensterbanken | L73: Kunststeen | M73: m1 | N73: =H73 -> 50 | P73: GE31.E | Q73: Vensterbanken | R73: Kunststeen | S73: m1 | T73: 50
D74: GE04.t | E74: Vensterbanken | F74: Composietsteen | G74: m1 | H74: 45 | J74: GE04.HNN | K74: Vensterbanken | L74: Composietsteen | M74: m1 | N74: 45 | P74: GE04.E | Q74: Vensterbanken | R74: Composietsteen | S74: m1 | T74: 45
D75: GE05.t | E75: Waterslagen | F75: Prefab beton | G75: m1 | H75: 70 | J75: GE05.HNN | K75: Waterslagen | L75: Prefab beton | M75: m1 | N75: 70 | P75: GE05.E | Q75: Waterslagen | R75: Prefab beton | S75: m1 | T75: =N75 -> 70
D76: GE32.t | E76: Waterslagen | F76: Aluminium; gemoffeld | G76: m1 | H76: 45 | J76: GE32.HNN | K76: Waterslagen | L76: Aluminium; gemoffeld | M76: m1 | N76: 45 | P76: GE32.E | Q76: Waterslagen | R76: Aluminium; gemoffeld | S76: m1 | T76: =N76 -> 45
D77: GE33.t | E77: Waterslagen | F77: Composietsteen; gegoten | G77: m1 | H77: 40 | J77: GE33.HNN | K77: Waterslagen | L77: Composietsteen; gegoten | M77: m1 | N77: 40 | P77: GE33.E | Q77: Waterslagen | R77: Composietsteen; gegoten | S77: m1 | T77: =N77 -> 40
D78: GE06.t | E78: Waterkeringen | F78: EPDM-folie | G78: m1 | H78: 15 | J78: GE06.HNN | K78: Waterkeringen | L78: EPDM-folie | M78: m1 | N78: 15 | P78: GE06.E | Q78: Waterkeringen | R78: EPDM-folie | S78: m1 | T78: =N78 -> 15
E79: Daken | K79: Daken | Q79: Daken
D80: DA01.t | E80: Dakconstructie, hellend; Rc=6,3 | F80: Prefab houten dakelement | G80: m2 | H80: 100 | J80: DA01.HNN | K80: Dakconstructie, hellend; Rc=6,3 | L80: HSB hellenddakelement incl. vlasisolatie | M80: m2 | N80: 125 | P80: DA01.E | Q80: Dakconstructie, hellend; Rc=6,3 | R80: HSB hellenddakelement incl. vlasisolatie | S80: m2 | T80: =N80 -> 125
D81: DA02.t | E81: Dakvloer: breedplaatvloer, 270mm incl. druklaag | F81: Breedplaatvloer; incl. druklaag | G81: m2 | H81: 130 | J81: DA02.HNN | K81: Dakvloer: breedplaatvloer, 270mm incl. druklaag | L81: Breedplaatvloer; incl. druklaag (UMC) | M81: m2 | N81: =H81+0.21*25 -> 135.25 | P81: DA02.E | Q81: Dakconstructie, plat dak | R81: CLT excl. isolatie | S81: m2 | T81: 180
D82: DA17.t | E82: Dakconstructie, plat dak; kanaalplaat | F82: Kanaalplaatvloer, 200mm; prefab beton | G82: m2 | H82: 85 | J82: DA17.HNN | K82: Dakconstructie, plat dak; kanaalplaat | L82: Kanaalplaatvloer, 200mm; prefab beton | M82: m2 | N82: =H82 -> 85 | P82: DA17.E | Q82: Dakconstructie, plat dak | R82: HSB vloerelement (stijlen+OSB); IsoVlas 60mm; incl. gipskartonplafond | S82: m2 | T82: 160
D83: DA18.t | E83: Dakconstructie, plat dak breedplaat incl. druklaag | F83: Breedplaatvloer, 290mm; | G83: m2 | H83: 95 | J83: DA18.HNN | K83: Dakconstructie, plat dak breedplaat incl. druklaag | L83: Breedplaatvloer, 290mm; | M83: m2 | N83: =H83 -> 95 | P83: DA18.E | Q83: Dakconstructie, plat dak | R83: CLT excl. isolatie | S83: m2 | T83: 200
D84: DA05.t | E84: Isolatielagen; plat dak; Rc=6,3 | F84: XPS | G84: m2 | H84: =60%*120 -> 72 | J84: DA05.HNN | K84: Isolatielagen; plat dak; Rc=6,3 | L84: Drukvaste houtvezelisolatie | M84: m2 | N84: =H84+10 -> 82 | P84: DA05.E | Q84: Isolatielagen; plat dak; Rc=6,3 | R84: Drukvaste houtvezelisolatie | S84: m2 | T84: =N84 -> 82
D85: DA16.t | E85: Isolatielagen; plat dak; Rc=6,3 | F85: EPS | G85: m2 | H85: =60%*120 -> 72 | J85: DA16.HNN | K85: Isolatielagen; plat dak; Rc=6,3 | L85: Houtvezel vlakke isolatieplaten | M85: m2 | N85: =H85+10 -> 82 | P85: DA16.E | Q85: Isolatielagen; plat dak; Rc=6,3 | R85: Houtvezel vlakke isolatieplaten | S85: m2 | T85: =N85 -> 82
D86: DA04.t | E86: Dakafwerking | F86: Daktrim; aluminium gemoffeld | G86: m1 | H86: 15 | J86: DA04.HNN | K86: Dakafwerking | L86: Daktrim; aluminium gemoffeld | M86: m2 | N86: =H86 -> 15 | P86: DA04.E | Q86: Dakafwerking | R86: Daktrim; aluminium gemoffeld | S86: m2 | T86: =N86 -> 15
D87: DA06.t | E87: Dakafwerking | F87: Betonpan | G87: m2 | H87: 35 | J87: DA06.HNN | K87: Dakafwerking | L87: Hergebruikte keramische pan | M87: m2 | N87: 40 | P87: DA06.E | Q87: Dakafwerking | R87: Hergebruikte keramische pan | S87: m2 | T87: 40
D88: DA07.t | E88: Dakafwerking | F88: Grind | G88: m2 | H88: 22 | J88: DA07.HNN | K88: Dakafwerking | L88: Grind | M88: m2 | N88: =H88 -> 22 | P88: DA07.E | Q88: Dakafwerking | R88: Grind | S88: m2 | T88: 22
D89: DA15.t | E89: Dakafwerking | F89: Rubbertegel; ballastlaag | G89: m2 | H89: 40 | J89: DA15.HNN | K89: Dakafwerking | L89: Rubbertegel; ballastlaag | M89: m2 | N89: =H89 -> 40 | P89: DA15.E | Q89: Dakafwerking | R89: Rubbertegel; ballastlaag | S89: m2 | T89: 40
D90: DA09.t | E90: Dakbedekking | F90: Bitumen, gemod. eenlaags 4,3mm | G90: m2 | H90: =40%*120 -> 48 | J90: DA09.HNN | K90: Dakbedekking | L90: EPDM losmaakbare dakbedekking | M90: m2 | N90: 70 | P90: DA09.E | Q90: Dakbedekking | R90: EPDM losmaakbare dakbedekking | S90: m2 | T90: 70
D91: DA43.t | E91: Dakrand binnenblad, 100mm | F91: Cellenbeton blokken, XellaYtong | G91: m2 | H91: 60 | J91: DA43.HNN | K91: Dakrand binnenblad, 100mm | L91: Cellenbeton blokken, XellaYtong | M91: m2 | N91: =H91 -> 60 | P91: DA43.E | Q91: Dakrand binnenblad, 100mm | R91: HSB element incl. Isovlas isolatie | S91: m2 | T91: 230
D92: DA10.t | E92: Dakraam | F92: Meranti, geschilderd | G92: st | H92: 1000 | J92: DA10.HNN | K92: Dakraam | L92: Velux Reclaimed dakraam | M92: st | N92: 1050 | P92: DA10.E | Q92: Dakraam | R92: Velux Reclaimed dakraam | S92: st | T92: 1050
D93: DA11.t | E93: Waterkeringen | F93: EPDM aluminium versterkt | G93: m1 | H93: 45 | J93: DA11.HNN | K93: Waterkeringen | L93: EPDM aluminium versterkt | M93: m1 | N93: =H93 -> 45 | P93: DA11.E | Q93: Waterkeringen | R93: EPDM aluminium versterkt | S93: m1 | T93: 45
D94: DA14.t | E94: Waterkeringen | F94: Polyetheen; folie | G94: m1 | H94: 1 | J94: DA14.HNN | K94: Waterkeringen | L94: Polyetheen; folie | M94: m1 | N94: =H94 -> 1 | P94: DA14.E | Q94: Waterkeringen | R94: Polyetheen; folie | S94: m1 | T94: 1
D95: DA12.t | E95: Plafondafwerking | F95: Spuitpleister | G95: m2 | H95: 8 | J95: DA12.HNN | K95: Plafondafwerking (grondgeb.) | L95: Spuitpleiser | M95: m2 | N95: =H95 -> 8 | P95: DA12.E | Q95: Plafondafwerking (grondgeb.) | R95: Spuitpleiser | S95: m2 | T95: 8
D96: DA13.t | E96: Bekledingen en roosters verlaagde plafonds | F96: Spaanplaat (incl. regelwerk) | G96: m2 | H96: 50 | J96: DA13.HNN | K96: Bekleding en roosters, refurbished plafondplaten (Insert) | L96: Hergebruikte / refurbished plafondplaten | M96: m2 | N96: 50 | P96: DA13.E | Q96: Bekleding en roosters, refurbished plafondplaten (Insert) | R96: Hergebruikte / refurbished plafondplaten | S96: m2 | T96: 50
E97: Binnenwanden | K97: Binnenwanden | Q97: Binnenwanden
D98: BI02.t | E98: Woningscheidende wanden, 100mm; | F98: Prefab beton | G98: m2 | H98: 120 | J98: BI02.HNN | K98: Woningscheidende wanden, 100mm; | L98: Prefab beton | M98: m2 | N98: =H98 -> 120 | P98: BI02.E | Q98: Woningscheidende wanden, HSB | R98: HSB binnenwand element met vlasisolatie | S98: m2 | T98: 220
D99: GE28.t | E99: Binnenwanden, 150mm | F99: Prefab beton | G99: m2 | H99: 170 | J99: GE28.HNN | K99: Binnenwanden, 150mm | L99: Prefab beton | M99: m2 | N99: =H99 -> 170 | P99: GE28.E | Q99: Binnenwanden HSB | R99: HSB binnenwand element met vlasisolatie | S99: m2 | T99: 235
D100: BI40.t | E100: Binnenwanden, 250mm | F100: Prefab beton | G100: m2 | H100: 240 | J100: BI40.HNN | K100: Binnenwanden, 250mm | L100: Prefab beton | M100: m2 | N100: =H100 -> 240 | P100: BI40.E | Q100: Binnenwanden, 250mm | R100: Prefab beton (UMC) | S100: m2 | T100: =N100+0.25*25 -> 246.25
D101: BI01.t | E101: Dragende binnenwanden, 250mm; | F101: I.h.w.g. beton | G101: m2 | H101: 240 | J101: BI01.HNN | K101: Dragende binnenwanden, 250mm; | L101: I.h.w.g. beton (UMC) | M101: m2 | N101: =H101+0.25*25 -> 246.25 | P101: BI01.E | Q101: Dragende binnenwanden | R101: I.h.w.g. beton (UMC) | S101: m2 | T101: =N101 -> 246.25
D102: GE27.t | E102: Dragende binnenwanden, 250mm; | F102: I.h.w.g. beton | G102: m2 | H102: 240 | J102: GE27.HNN | K102: Dragende binnenwanden, 250mm; | L102: I.h.w.g. beton (UMC) | M102: m2 | N102: =H102+0.25*25 -> 246.25 | P102: GE27.E | Q102: Dragende binnenwanden | R102: CLT wanden | S102: m2 | T102: 260
D103: BI03.t | E103: Binnenwanden, 100mm | F103: Kalkzandsteen lijmblokken, 100mm | G103: m2 | H103: 65 | J103: BI03.HNN | K103: Binnenwanden, 100mm | L103: Faay volpaneel | M103: m2 | N103: =H103+25 -> 90 | P103: BI03.E | Q103: Binnenwanden, 100mm | R103: Faay volpaneel | S103: m2 | T103: 115
D104: BI05.t | E104: Binnenwanden, 70mm | F104: Gipsblokken, normale dichtheid | G104: m2 | H104: 50 | J104: BI05.HNN | K104: Binnenwanden, 70mm | L104: Faay volpaneel | M104: m2 | N104: 80 | P104: BI05.E | Q104: Binnenwanden, 70mm | R104: Faay volpaneel | S104: m2 | T104: =N104 -> 80
D105: BI06.t | E105: Binnenwanden, 70mm | F105: Gipsblokken, hoge dichtheid | G105: m2 | H105: 55 | J105: BI06.HNN | K105: Binnenwanden, 70mm | L105: Faay volpaneel | M105: m2 | N105: 80 | P105: BI06.E | Q105: Binnenwanden, 70mm | R105: Faay volpaneel | S105: m2 | T105: =N105 -> 80
D106: BI14.t | E106: Systeemwanden; gipskartonplaat, 100mm | F106: Enkel beplaat, 60 mm glaswol | G106: m2 | H106: 50 | J106: BI14.HNN | K106: Binnenwanden, 35mm | L106: Faay volpaneel | M106: m2 | N106: 70 | P106: BI14.E | Q106: Binnenwanden, 54mm | R106: Faay volpaneel; enkel beplaat | S106: m2 | T106: 75
D107: BI16.t | E107: Systeemwanden; gipskartonplaat, 100mm | F107: Dubbel beplaat, 40 mm glaswol | G107: m2 | H107: 60 | J107: BI16.HNN | K107: Systeemwanden; niet constructief, 100mm | L107: HSB binnenwand element met vlasisolatie | M107: m2 | N107: 110 | P107: BI16.E | Q107: Binnenwanden, 100mm | R107: Faay volpaneel; dubbel beplaat | S107: m2 | T107: 90
D108: BI04.t | E108: Wandtegelwerk badkamer, toilet en keuken | F108: Keramische tegels; geglazuurd/gelijmd | G108: m2 | H108: 75 | J108: BI04.HNN | K108: Wandtegelwerk badkamer, toilet en keuken | L108: Mosa C2C wandtegels | M108: m2 | N108: =H108 -> 75 | P108: BI04.E | Q108: Wandtegelwerk badkamer, toilet en keuken | R108: Gerecycled PET i.c.m. Quartz | S108: m2 | T108: 150
D109: BI08.t | E109: Binnendeuren | F109: Honingraat; vlakke binnendeur | G109: st | H109: 100 | J109: BI08.HNN | K109: Binnendeuren | L109: Honingraat; vlakke binnendeur | M109: st | N109: =H109 -> 100 | P109: BI08.E | Q109: Binnendeuren | R109: Honingraat; vlakke binnendeur | S109: st | T109: 100
D110: BI09.t | E110: Binnendeuren | F110: Spaanplaat; geschilderd | G110: st | H110: 320 | J110: BI09.HNN | K110: Binnendeuren | L110: Spaanplaat; geschilderd | M110: st | N110: =H110 -> 320 | P110: BI09.E | Q110: Binnendeuren | R110: Spaanplaat; geschilderd | S110: st | T110: =N110 -> 320
D111: BI11.t | E111: Binnenkozijnen | F111: Staal; verzinkt+gemoffeld | G111: m2 | H111: 50 | J111: BI11.HNN | K111: Binnenkozijnen | L111: Europees naaldhout, geschilderd | M111: m2 | N111: =75+25+(0.3*50) -> 115 | P111: BI11.E | Q111: Binnenkozijnen | R111: Europees naaldhout, geschilderd | S111: m2 | T111: =N111 -> 115
D112: BI12.t | E112: Binnenkozijnen, incl. deuren | F112: Europees naaldhout, geschilderd | G112: m2 | H112: 400 | J112: BI12.HNN | K112: Binnenkozijnen, incl. deuren | L112: Europees naaldhout, geschilderd | M112: m2 | N112: =H112 -> 400 | P112: BI12.E | Q112: Binnenkozijnen, incl. deuren | R112: Europees naaldhout, geschilderd | S112: m2 | T112: 400
D113: BI15.t | E113: Binnenkozijnen | F113: Staal; verzinkt+gemoffeld | G113: m2 | H113: 50 | J113: BI15.HNN | K113: Binnenkozijnen | L113: Staal; verzinkt+gemoffeld | M113: m2 | N113: =H113 -> 50 | P113: BI15.E | Q113: Binnenkozijnen | R113: Staal; verzinkt+gemoffeld | S113: m2 | T113: =N113 -> 50
D114: BI17.t | E114: Binnenbeglazing | F114: Enkel glas | G114: m2 | H114: 35 | J114: BI17.HNN | K114: Binnenbeglazing | L114: Enkel glas | M114: m2 | N114: =H114 -> 35 | P114: BI17.E | Q114: Binnenbeglazing | R114: Enkel glas | S114: m2 | T114: =N114 -> 35
D115: BI10.t | E115: Binnendorpels | F115: Gegoten composietsteen | G115: m1 | H115: 35 | J115: BI10.HNN | K115: Binnendorpels | L115: Kunststeen | M115: m1 | N115: =H115 -> 35 | P115: BI10.E | Q115: Binnendorpels | R115: Kunststeen | S115: m1 | T115: =N115 -> 35
E116: Klimaatinstallaties | K116: Klimaatinstallaties | Q116: Klimaatinstallaties
D117: KL01.t | E117: Warmteopwekkinginstallatie | F117: Warmtepomp luchtwater 10kW | G117: won | H117: PM | J117: KL01.HNN | K117: Warmteopwekkinginstallatie | L117: Warmtepomp luchtwater 10kW | M117: won | N117: PM | P117: KL01.E | Q117: Warmteopwekkinginstallatie | R117: Warmtepomp luchtwater 10kW | S117: won | T117: PM
D118: KL08.t | E118: Warmteopwekkinginstallatie | F118: Warmtepomp luchtwater 10kW | G118: won | H118: PM | J118: KL08.HNN | K118: Warmteopwekkinginstallatie | L118: Warmtepomp luchtwater 10kW | M118: won | N118: PM | P118: KL08.E | Q118: Warmteopwekkinginstallatie | R118: Warmtepomp luchtwater 10kW | S118: won | T118: PM
D119: KL02.t | E119: Warmtedistributiesysteem | F119: CV-leidingen incl. koppelingen + verdeling | G119: m2gbo | H119: PM | J119: KL02.HNN | K119: Warmtedistributiesysteem | L119: CV-leidingen incl. koppelingen + verdeling | M119: m2gbo | N119: PM | P119: KL02.E | Q119: Warmtedistributiesysteem | R119: CV-leidingen incl. koppelingen + verdeling | S119: m2gbo | T119: PM
D120: KL03.t | E120: Warmteafgiftesysteem | F120: Vloerverwarming 95 W/m2 | G120: m2gbo | H120: PM | J120: KL03.HNN | K120: Warmteafgiftesysteem | L120: Vloerverwarming 95 W/m2 | M120: m2gbo | N120: PM | P120: KL03.E | Q120: Warmteafgiftesysteem | R120: Vloerverwarming 95 W/m2 | S120: m2gbo | T120: PM
D121: KL04.t | E121: Luchtdistributiesysteem | F121: VLA ventilatiesysteem, type C; W-bouw, individueel | G121: m2gbo | H121: PM | J121: KL04.HNN | K121: Luchtdistributiesysteem | L121: VLA ventilatiesysteem, type C; W-bouw, individueel | M121: m2gbo | N121: PM | P121: KL04.E | Q121: Luchtdistributiesysteem | R121: VLA ventilatiesysteem, type C; W-bouw, individueel | S121: m2gbo | T121: PM
D122: KL05.t | E122: Luchtdistributiesysteem | F122: VLA ventilatiesysteem, type D met centrale wtw; W-bouw, individueel | G122: m2gbo | H122: PM | J122: KL05.HNN | K122: Luchtdistributiesysteem | L122: VLA ventilatiesysteem, type D met centrale wtw; W-bouw, individueel | M122: m2gbo | N122: PM | P122: KL05.E | Q122: Luchtdistributiesysteem | R122: VLA ventilatiesysteem, type D met centrale wtw; W-bouw, individueel | S122: m2gbo | T122: PM
D123: KL06.t | E123: Waterleidingen, verwarmd tapwater | F123: PVC, incl. mantelbuis 15mm; W-bouw | G123: m2gbo | H123: PM | J123: KL06.HNN | K123: Waterleidingen, verwarmd tapwater | L123: PVC, incl. mantelbuis 15mm; W-bouw | M123: m2gbo | N123: PM | P123: KL06.E | Q123: Waterleidingen, verwarmd tapwater | R123: PVC, incl. mantelbuis 15mm; W-bouw | S123: m2gbo | T123: PM
D124: KL07.t | E124: Warmtapwaterinstallatie | F124: Elektrische boiler; CW:4-6 120 liter | G124: st | H124: PM | J124: KL07.HNN | K124: Warmtapwaterinstallatie | L124: Elektrische boiler; CW:4-6 120 liter | M124: st | N124: PM | P124: KL07.E | Q124: Warmtapwaterinstallatie | R124: Elektrische boiler; CW:4-6 120 liter | S124: st | T124: PM
E125: Elektrische installaties | K125: Elektrische installaties | Q125: Elektrische installaties
D126: EL01.t | E126: Elektriciteitsleidingen | F126: Geïsoleerde installatiedraad + mantelbuis | G126: m2gbo | H126: PM | J126: EL01.HNN | K126: Elektriciteitsleidingen | L126: Geïsoleerde installatiedraad + mantelbuis | M126: m2gbo | N126: =H126 -> PM | P126: EL01.E | Q126: Elektriciteitsleidingen | R126: Geïsoleerde installatiedraad + mantelbuis | S126: m2gbo | T126: =N126 -> PM
D127: EL02.t | E127: Pv-panelen, hellend dak | F127: Mono-Si; incl. inverter+kabels | G127: m2 | H127: 230 | J127: EL02.HNN | K127: Pv-panelen, hellend dak | L127: Exasun Xglass | M127: m2 | N127: 260 | P127: EL02.E | Q127: Pv-panelen, hellend dak | R127: Exasun Xroof (deels tvv van dakpannen) | S127: m2 | T127: 320
D128: EL03.t | E128: Pv-panelen, plat dak | F128: Mono-Si; incl. inverter+kabels | G128: m2 | H128: 230 | J128: EL03.HNN | K128: Pv-panelen, plat dak | L128: Exasun Xglass | M128: m2 | N128: 260 | P128: EL03.E | Q128: Pv-panelen, plat dak | R128: Exasun Xglass | S128: m2 | T128: 260
D129: EL04.t | E129: Verlichting | F129: LED-120cm | G129: m2gbo | H129: PM | J129: EL04.HNN | K129: Verlichting | L129: LED-120cm | M129: m2gbo | N129: =H129 -> PM | P129: EL04.E | Q129: Verlichting | R129: LED-120cm | S129: m2gbo | T129: =N129 -> PM
D130: EL05.t | E130: Elektriciteitsleidingen | F130: Koper met PP-isolatie | G130: m2gbo | H130: PM | J130: EL05.HNN | K130: Elektriciteitsleidingen | L130: Koper met PP-isolatie | M130: m2gbo | N130: =H130 -> PM | P130: EL05.E | Q130: Elektriciteitsleidingen | R130: Koper met PP-isolatie | S130: m2gbo | T130: =N130 -> PM
E131: Toe- en afvoeren | K131: Toe- en afvoeren | Q131: Toe- en afvoeren
D132: TO01.t | E132: Waterleidingen | F132: Polyetheen; leiding+mantelbuis | G132: m2gbo | H132: PM | J132: TO01.HNN | K132: Waterleidingen | L132: Polyetheen | M132: m2gbo | N132: =H132 -> PM | P132: TO01.E | Q132: Waterleidingen | R132: Polyetheen | S132: m2gbo | T132: =N132 -> PM
D133: TO02.t | E133: Buitenriolering kavel | F133: PVC | G133: m2gbo | H133: PM | J133: TO02.HNN | K133: Buitenriolering | L133: Gerecycled PVC (Pipelife) | M133: m2gbo | N133: =H133 -> PM | P133: TO02.E | Q133: Buitenriolering | R133: Gerecycled PVC (Pipelife) | S133: m2gbo | T133: =N133 -> PM
D134: TO03.t | E134: Binnenriolering | F134: PVC | G134: m2gbo | H134: PM | J134: TO03.HNN | K134: Binnenriolering | L134: Gerecycled PVC (Pipelife) | M134: m2gbo | N134: PM | P134: TO03.E | Q134: Binnenriolering | R134: Gerecycled PVC (Pipelife) | S134: m2gbo | T134: PM
D135: TO04.t | E135: Hemelwaterafvoer | F135: PVC | G135: m1 | H135: PM | J135: TO04.HNN | K135: Hemelwaterafvoer | L135: Gerecycled PVC (Pipelife) | M135: m1 | N135: PM | P135: TO04.E | Q135: Hemelwaterafvoer | R135: Gerecycled PVC (Pipelife) | S135: m1 | T135: PM
D136: TO05.t | E136: Dakgoot | F136: Aluminium | G136: m1 | H136: 65 | J136: TO05.HNN | K136: Dakgoot | L136: Aluminium | M136: m1 | N136: 65 | P136: TO05.E | Q136: Dakgoot | R136: Aluminium | S136: m1 | T136: 65
E137: Verkeersruimte | K137: Verkeersruimte | Q137: Verkeersruimte
D138: VE01.t | E138: Interne trap | F138: Eur. loofhout; geschilderd | G138: st | H138: 1450 | J138: VE01.HNN | K138: Interne trap | L138: Eur. loofhout; geschilderd | M138: st | N138: =H138 -> 1450 | P138: VE01.E | Q138: Interne trap | R138: Eur. loofhout; geschilderd | S138: st | T138: =N138 -> 1450
D139: VE02.t | E139: Centrale trap | F139: Prefab beton | G139: verd | H139: 5000 | J139: VE02.HNN | K139: Centrale trap | L139: Prefab beton | M139: verd | N139: =H139 -> 5000 | P139: VE02.E | Q139: Centrale trap | R139: Prefab beton | S139: verd | T139: =N139 -> 5000
D140: VE10.t | E140: Centrale trap | F140: Staal met Meranti treden | G140: verd | H140: 7500 | J140: VE10.HNN | K140: Centrale trap | L140: Staal met Meranti treden | M140: st | N140: =H140 -> 7500 | P140: VE10.E | Q140: Centrale trap | R140: Staal met Meranti treden | S140: st | T140: =N140 -> 7500
D141: VE03.t | E141: Balustrades | F141: Eur. loofhout; spijlen; duurzame bosbouw | G141: m1 | H141: 125 | J141: VE03.HNN | K141: Balustrades | L141: Eur. loofhout; spijlen; duurzame bosbouw | M141: m1 | N141: 125 | P141: VE03.E | Q141: Balustrades | R141: Eur. loofhout; spijlen; duurzame bosbouw | S141: m1 | T141: 125
D142: VE04.t | E142: Balustrades | F142: Aluminium; geanodiseerd | G142: m1 | H142: 300 | J142: VE04.HNN | K142: Balustrades | L142: Aluminium; geanodiseerd | M142: m1 | N142: 300 | P142: VE04.E | Q142: Balustrades | R142: Aluminium; geanodiseerd | S142: m1 | T142: 300
D143: VE09.t | E143: Balustrades | F143: Staal; gepoedercoat; spijlen | G143: m1 | H143: 250 | J143: VE09.HNN | K143: Balustrades | L143: Staal; gepoedercoat; spijlen | M143: m1 | N143: =H143 -> 250 | P143: VE09.E | Q143: Balustrades | R143: Staal; gepoedercoat; spijlen | S143: m1 | T143: =N143 -> 250
D144: VE05.t | E144: Leuningen | F144: Eur. loofhout; duurzame bosbouw | G144: m1 | H144: 45 | J144: VE05.HNN | K144: Leuningen | L144: Eur. loofhout; duurzame bosbouw | M144: m1 | N144: 45 | P144: VE05.E | Q144: Leuningen | R144: Eur. loofhout; duurzame bosbouw | S144: m1 | T144: 45
D145: VE06.t | E145: Leuningen | F145: Aluminium | G145: m1 | H145: 80 | J145: VE06.HNN | K145: Leuningen | L145: Aluminium | M145: m1 | N145: 80 | P145: VE06.E | Q145: Leuningen | R145: Aluminium | S145: m1 | T145: 80
D146: VE07.t | E146: Liftcabine | F146: Staal; gemoffeld | G146: st | H146: liftcabine incl. inst. | J146: VE07.HNN | K146: Liftcabine | L146: Staal; gemoffeld | M146: st | N146: liftcabine incl. inst. | P146: VE07.E | Q146: Liftcabine | R146: Staal; gemoffeld | S146: st | T146: liftcabine incl. inst.
D147: VE08.t | E147: Liftinstallatie | F147: Staal | G147: verd | H147: 13500 | J147: VE08.HNN | K147: Liftinstallatie | L147: Staal | M147: verd | N147: =H147 -> 13500 | P147: VE08.E | Q147: Liftinstallatie | R147: Staal | S147: verd | T147: =N147 -> 13500
E148: Vaste voorzieningen | K148: Vaste voorzieningen | Q148: Vaste voorzieningen
D149: VA01.t | E149: Toiletten; wandcloset + fontein | F149: Porselein | G149: st | H149: =(300+(4*60))+(150+(2.5*60)) -> 840 | J149: VA01.HNN | K149: Toiletten; wandcloset + fontein | L149: Porselein | M149: st | N149: =H149 -> 840 | P149: VA01.E | Q149: Toiletten; wandcloset + fontein | R149: Porselein | S149: st | T149: =N149 -> 840
D150: VA02.t | E150: Wastafel | F150: Keramisch | G150: st | H150: =(280+(3*60)) -> 460 | J150: VA02.HNN | K150: Wastafel | L150: Keramisch | M150: st | N150: =H150 -> 460 | P150: VA02.E | Q150: Wastafel | R150: Keramisch | S150: st | T150: =N150 -> 460
D151: VA03.t | E151: Inloopdouche | F151: Gipsblokken + tegels incl. rvs afvoergoot | G151: st | H151: 450 | J151: VA03.HNN | K151: Inloopdouche | L151: Gipsblokken + tegels incl. rvs afvoergoot | M151: st | N151: =H151 -> 450 | P151: VA03.E | Q151: Inloopdouche | R151: Gipsblokken + tegels incl. rvs afvoergoot | S151: st | T151: 450
E152: Overige kosten | K152: Overige kosten | Q152: Overige kosten
D153: OK01.t | E153: Grondwerk, maatvoering, invoeren en sparingen | G153: BBO | H153: 35 | J153: OK01.HNN | K153: =E153 -> Grondwerk, maatvoering, invoeren en sparingen | M153: BBO | N153: =H153 -> 35 | P153: OK01.E | Q153: =E153 -> Grondwerk, maatvoering, invoeren en sparingen | S153: BBO | T153: =N153 -> 35 | U153: BBO
D154: OK02.t | E154: Gevelsteiger | G154: BGO | H154: 35 | J154: OK02.HNN | K154: =E154 -> Gevelsteiger | M154: BGO | N154: =H154 -> 35 | P154: OK02.E | Q154: =E154 -> Gevelsteiger | S154: BGO | T154: =N154 -> 35 | U154: BGO
D155: OK03.t | E155: Dakvalbeveiliging en inplakken van doorvoeren | F155: Enkel bij appartementen | G155: BDO | H155: 15 | J155: OK03.HNN | K155: Dakvalbeveiliging en inplakken van doorvoeren | L155: Enkel bij appartementen | M155: BDO | N155: 15 | P155: OK03.E | Q155: Dakvalbeveiliging en inplakken van doorvoeren | R155: Enkel bij appartementen | S155: BDO | T155: 15 | U155: BDO
D156: OK04.t | E156: Afbouwwerkzaamheden (klein timmerwerk, schilderwerk) | G156: BVO | H156: 10 | J156: OK04.HNN | K156: Afbouwwerkzaamheden (klein timmerwerk, schilderwerk) | M156: BVO | N156: 10 | P156: OK04.E | Q156: Afbouwwerkzaamheden (klein timmerwerk, schilderwerk) | S156: BVO | T156: 10 | U156: BVO
D157: OK05.t | E157: Bouwkundige voorzieningen ten behoeve van installaties | G157: BVO | H157: 15 | J157: OK05.HNN | K157: Bouwkundige voorzieningen ten behoeve van installaties | M157: BVO | N157: 15 | P157: OK05.E | Q157: Bouwkundige voorzieningen ten behoeve van installaties | S157: BVO | T157: 15 | U157: BVO
D158: OK06.t | E158: Installaties (E, W & klimaat) voor appartementen | G158: BVO | H158: =97+103+178 -> 378 | J158: OK06.HNN | K158: =E158 -> Installaties (E, W & klimaat) voor appartementen | M158: BVO | N158: =H158 -> 378 | P158: OK06.E | Q158: =E158 -> Installaties (E, W & klimaat) voor appartementen | S158: BVO | T158: =N158 -> 378 | U158: BVO
D159: OK06b.t | E159: Installaties (E, W & klimaat) voor appartementen | G159: won | H159: =ROUND(((H158*W16)/AA16),0) -> 46701 | J159: OK06b.HNN | K159: Installaties (E, W & klimaat) voor appartementen | M159: won | N159: =H159 -> 46701 | P159: OK06b.E | Q159: Installaties (E, W & klimaat) voor appartementen | S159: won | T159: =N159 -> 46701 | U159: won
D160: OK07.t | E160: Installaties (E, W & klimaat) grondgebonden woning tussen | G160: BVO | H160: 260 | J160: OK07.HNN | K160: Installaties (E, W & klimaat) grondgebonden woning tussen | M160: BVO | N160: =H160 -> 260 | P160: OK07.E | Q160: Installaties (E, W & klimaat) grondgebonden woning tussen | S160: BVO | T160: =N160 -> 260 | U160: BVO
D161: OK07b.t | E161: Installaties (E, W & klimaat) grondgebonden woning tussen | G161: won | H161: =(H160*W12)/AA12 -> 37960 | J161: OK07b.HNN | K161: =E161 -> Installaties (E, W & klimaat) grondgebonden woning tussen | M161: won | N161: =H161 -> 37960 | P161: OK07b.E | Q161: =E161 -> Installaties (E, W & klimaat) grondgebonden woning tussen | S161: won | T161: =N161 -> 37960 | U161: won
D162: OK08.t | E162: Installaties (E, W & klimaat) voor woontoren | G162: BVO | H162: =113+106+183 -> 402 | J162: OK08.HNN | K162: =E162 -> Installaties (E, W & klimaat) voor woontoren | M162: BVO | N162: =H162 -> 402 | P162: OK08.E | Q162: =E162 -> Installaties (E, W & klimaat) voor woontoren | S162: BVO | T162: =N162 -> 402 | U162: BVO
D163: OK08b.t | E163: Installaties (E, W & klimaat) voor woontoren | G163: won | H163: 45000 | J163: OK08b.HNN | K163: Installaties (E, W & klimaat) voor woontoren | M163: won | N163: 45000 | P163: OK08b.E | Q163: Installaties (E, W & klimaat) voor woontoren | S163: won | T163: 45000 | U163: won
D164: OK08c.t | E164: Installaties (onderhoud) voor woontoren | G164: BVO | H164: =47 -> 47 | J164: OK08c.HNN | K164: =E164 -> Installaties (onderhoud) voor woontoren | M164: BVO | N164: =H164 -> 47 | P164: OK08c.E | Q164: =E164 -> Installaties (onderhoud) voor woontoren | S164: BVO | T164: =N164 -> 47 | U164: BVO
D165: OK09.t | E165: Installaties (E, W & klimaat) woonschijf | G165: BVO | H165: =102+104+179 -> 385 | J165: OK09.HNN | K165: Installaties (E, W & klimaat) woonschijf | M165: BVO | N165: 385 | P165: OK09.E | Q165: Installaties (E, W & klimaat) woonschijf | S165: BVO | T165: 385 | U165: BVO
D166: OK09b.t | E166: Installaties (E, W & klimaat) woonschijf | G166: won | H166: =ROUND(((H165*W20)/AA20),0) -> 34100 | J166: OK09b.HNN | K166: =E166 -> Installaties (E, W & klimaat) woonschijf | M166: won | N166: =H166 -> 34100 | P166: OK09b.E | Q166: =E166 -> Installaties (E, W & klimaat) woonschijf | S166: won | T166: =N166 -> 34100 | U166: won
D167: OK10.t | E167: Installaties (E, W & klimaat) grondgebonden woning hoek | G167: BVO | H167: 230 | J167: OK10.HNN | K167: Installaties (E, W & klimaat) grondgebonden woning hoek | M167: BVO | N167: 230 | P167: OK10.E | Q167: Installaties (E, W & klimaat) grondgebonden woning hoek | S167: BVO | T167: 230 | U167: BVO
D168: OK10b.t | E168: Installaties (E, W & klimaat) grondgebonden woning hoek | G168: won | H168: =(H167*W14)/AA14 -> 41400 | J168: OK10b.HNN | K168: Installaties (E, W & klimaat) grondgebonden woning hoek | M168: won | N168: 41400 | P168: OK10b.E | Q168: Installaties (E, W & klimaat) grondgebonden woning hoek | S168: won | T168: 41400 | U168: won
D169: OK11.t | E169: Installaties (E, W & klimaat) gallerij | G169: BVO | H169: =98+71+175 -> 344 | J169: OK11.HNN | K169: Installaties (E, W & klimaat) gallerij | M169: BVO | N169: 344 | P169: OK11.E | Q169: Installaties (E, W & klimaat) gallerij | S169: BVO | T169: 344 | U169: BVO
D170: OK11b.t | E170: Installaties (E, W & klimaat) gallerij | G170: won | H170: =ROUND(((H169*W23)/AA23),0) -> 29266 | J170: OK11b.HNN | K170: Installaties (E, W & klimaat) gallerij | M170: won | N170: 29266 | P170: OK11b.E | Q170: Installaties (E, W & klimaat) gallerij | S170: won | T170: 29266 | U170: won
D171: OK12.t | E171: Toeslag directe kosten woontoren | G171: BVO | H171: 0.05 | J171: OK12.HNN | K171: Toeslag directe kosten woontoren | M171: BVO | N171: 0.05 | P171: OK12.E | Q171: Toeslag directe kosten woontoren | S171: BVO | T171: 0.05 | U171: BVO
D172: OK13.t | E172: Toeslag ABK woontoren | G172: BVO | H172: 0.05 | J172: OK13.HNN | K172: Toeslag ABK woontoren | M172: BVO | N172: 0.05 | P172: OK13.E | Q172: Toeslag ABK woontoren | S172: BVO | T172: 0.05 | U172: BVO
E174: Exclusief keukens en terreinvoorzieningen | K174: Exclusief keukens en terreinvoorzieningen | Q174: Exclusief keukens en terreinvoorzieningen
E176: Archetypes Amsterdam
D177: ID | E177: Fundering | J177: ID | K177: Fundering | P177: ID | Q177: Fundering
D178: A.FU01.t | E178: Funderingsbalken, 400x500mm | F178: In het werk gestort | G178: m1 | H178: =ROUND((0.4*0.5)*600,-0.1) -> 120 | J178: A.FU01.HNN | K178: Funderingsbalken, 400x500mm | L178: Beton met 56% aan secundair aandeel (UMC) | M178: m1 | N178: =ROUND((0.4*0.5)*650,-0.1) -> 130 | P178: A.FU01.E | Q178: Funderingsbalken, 400x500mm | R178: Beton met 56% aan secundair aandeel (UMC) | S178: m1 | T178: =N178 -> 130
D179: A.FU02.t | E179: Funderingsbalken, 600x600mm | F179: In het werk gestort | G179: m1 | H179: =ROUND((0.6*0.6)*600,-0.1)+4 -> 220 | J179: A.FU02.HNN | K179: Funderingsbalken, 600x600mm | L179: Beton met 56% aan secundair aandeel (UMC) | M179: m1 | N179: =ROUND((0.6*0.6)*650,-0.1) -> 234 | P179: A.FU02.E | Q179: Funderingsbalken, 600x600mm | R179: Beton met 56% aan secundair aandeel (UMC) | S179: m1 | T179: =N179 -> 234
D180: A.FU03.t | E180: Funderingspaal, ⌀ 350mm; l=15,0m | F180: Schroefpaal; beton, in het werk gestort, C20/25,CEMIII; incl.wapening | G180: m1 | H180: 60 | J180: A.FU03.HNN | K180: Funderingspaal, ⌀ 350mm; l=15,0m | L180: Beton met 56% aan secundair aandeel (UMC) | M180: m1 | N180: =H180+5 -> 65 | P180: A.FU03.E | Q180: Funderingspaal, ⌀ 350mm; l=15,0m | R180: Beton met 56% aan secundair aandeel (UMC) | S180: m1 | T180: =N180 -> 65
D181: A.FU04.t | E181: Funderingspaal, ⌀ 500mm; l=25,0m | F181: Schroefpaal; beton, in het werk gestort, C20/25,CEMIII; incl.wapening | G181: m1 | H181: 80 | J181: A.FU04.HNN | K181: Funderingspaal, ⌀ 500mm; l=25,0m | L181: Beton met 56% aan secundair aandeel (UMC) | M181: m1 | N181: =H181+5 -> 85 | P181: A.FU04.E | Q181: Funderingspaal, ⌀ 500mm; l=25,0m | R181: Beton met 56% aan secundair aandeel (UMC) | S181: m1 | T181: =N181 -> 85
E182: Vloeren | K182: Vloeren | Q182: Vloeren
D183: A.VL01.t | E183: Toeslag isolatie BG-vloer van Rc 3,7 naar Rc 5,0 | F183: Kanaalplaatvloer; prefab beton | G183: m2 | H183: 10 | J183: A.VL01.HNN | K183: Toeslag isolatie BG-vloer van Rc 3,7 naar Rc 5,0 | L183: Kanaalplaat, remontabel (28% recyclaat) | M183: m2 | N183: 10 | P183: A.VL01.E | Q183: Toeslag isolatie BG-vloer van Rc 3,7 naar Rc 5,0 | R183: Kanaalplaat, remontabel (28% recyclaat) | S183: m2 | T183: =N183 -> 10
E184: Gevel | K184: Gevel | Q184: Gevel
D185: A.GE01.t | E185: Toeslag isolatie in gevel van Rc 4,5 naar Rc 6,0 | F185: Glaswolplaten, MWA 2012 | G185: m2 | H185: 15 | J185: A.GE01.HNN | K185: Toeslag isolatie in gevel van Rc 4,5 naar Rc 6,0 | L185: Isovlas plaat | M185: m2 | N185: 20 | P185: A.GE01.E | Q185: Toeslag isolatie in gevel van Rc 4,5 naar Rc 6,0 | R185: Isovlas plaat, PN160mm | S185: m2 | T185: 20
E186: Daken | K186: Daken | Q186: Daken
D187: A.DA01.t | E187: Toeslag isolatie op dak van Rc 6,0 naar Rc 8,0 | F187: EPS | G187: m2 | H187: 20 | J187: A.DA01.HNN | K187: Toeslag isolatie op dak van Rc 6,0 naar Rc 8,0 | L187: Houtvezel vlakke isolatieplaten | M187: m2 | N187: 25 | P187: A.DA01.E | Q187: Toeslag isolatie op dak van Rc 6,0 naar Rc 8,0 | R187: Houtvezel vlakke isolatieplaten | S187: m2 | T187: 25

Sheet Maatregelen nieuwbouw
E4: Titel | F4: Maatregelen circulaire nieuwbouw, Versnellingslab
E5: Versie | F5: 1.0
E6: Datum | F6: 2023-05-10
E10: Traditioneel | I10: Het Nieuwe Normaal | M10: Het Nieuwe Normaal ambitieus
E12: WONEN | I12: WONEN | M12: WONEN
H19: =0.696-I19 -> 0.6105 | I19: =0.095-0.0095 -> 0.0855
E26: Woning S tussen | I26: Woning S tussen | M26: Woning S tussen
E27: Element | F27: Materialisatie | I27: Element | J27: Materialisatie | M27: Element | N27: Materialisatie
E29: Fundering | I29: Fundering | M29: Fundering
D30: FU03.t | E30: =VLOOKUP(D30,'Input Wonen'!$D$13:$H$151,2,FALSE) -> Funderingspaal, ⌀ 300mm; l=15,0m | F30: =VLOOKUP(D30,'Input Wonen'!$D$13:$H$151,3,FALSE) -> Schroefpaal; beton, in het werk gestort, C20/25,CEMIII; incl.wapening | H30: FU03.HNN | I30: =IFERROR(VLOOKUP(H30,'Input Wonen'!$J$13:$N$151,COLUMNS('Input Wonen'!J:K),FALSE),"") -> Funderingspaal, ⌀ 300mm; l=15,0m | J30: =IFERROR(VLOOKUP(H30,'Input Wonen'!$J$13:$N$151,COLUMNS('Input Wonen'!J:L),FALSE),"") -> Beton met 56% aan secundair aandeel (UMC) | L30: FU03.E | M30: =IFERROR(VLOOKUP(L30,'Input Wonen'!$P$13:$T$151,COLUMNS('Input Wonen'!P:Q),FALSE),"") -> Funderingspaal, ⌀ 300mm; l=15,0m | N30: =IFERROR(VLOOKUP(L30,'Input Wonen'!$P$13:$T$151,COLUMNS('Input Wonen'!P:R),FALSE),"") -> Beton met 56% aan secundair aandeel (UMC)
D31: FU02.t | E31: =VLOOKUP(D31,'Input Wonen'!$D$13:$H$151,2,FALSE) -> Funderingsbalken, 400x500mm | F31: =VLOOKUP(D31,'Input Wonen'!$D$13:$H$151,3,FALSE) -> In het werk gestort | H31: FU02.HNN | I31: =IFERROR(VLOOKUP(H31,'Input Wonen'!$J$13:$N$151,COLUMNS('Input Wonen'!J:K),FALSE),"") -> Funderingsbalken, 400x500mm | J31: =IFERROR(VLOOKUP(H31,'Input Wonen'!$J$13:$N$151,COLUMNS('Input Wonen'!J:L),FALSE),"") -> Beton met 56% aan secundair aandeel (UMC) | L31: FU02.E | M31: =IFERROR(VLOOKUP(L31,'Input Wonen'!$P$13:$T$151,COLUMNS('Input Wonen'!P:Q),FALSE),"") -> Funderingsbalken, 400x500mm | N31: =IFERROR(VLOOKUP(L31,'Input Wonen'!$P$13:$T$151,COLUMNS('Input Wonen'!P:R),FALSE),"") -> Beton met 56% aan secundair aandeel (UMC)
D32: FU05.t | E32: =VLOOKUP(D32,'Input Wonen'!$D$13:$H$151,2,FALSE) -> Bodemafsluiting, zand | F32: =VLOOKUP(D32,'Input Wonen'!$D$13:$H$151,3,FALSE) -> Zand | H32: FU05.HNN | I32: =IFERROR(VLOOKUP(H32,'Input Wonen'!$J$13:$N$151,COLUMNS('Input Wonen'!J:K),FALSE),"") -> Bodemafsluiting, 100 zand | J32: =IFERROR(VLOOKUP(H32,'Input Wonen'!$J$13:$N$151,COLUMNS('Input Wonen'!J:L),FALSE),"") -> Zand | L32: FU05.E | M32: =IFERROR(VLOOKUP(L32,'Input Wonen'!$P$13:$T$151,COLUMNS('Input Wonen'!P:Q),FALSE),"") -> Bodemafsluiting, 100 zand | N32: =IFERROR(VLOOKUP(L32,'Input Wonen'!$P$13:$T$151,COLUMNS('Input Wonen'!P:R),FALSE),"") -> Zand
E33: Vloeren | I33: Vloeren | M33: Vloeren
D34: VL01.t | E34: =VLOOKUP(D34,'Input Wonen'!$D$13:$H$151,2,FALSE) -> BG: ribbenvloer, vrijdragend incl. isolatie (Rc=3,7) | F34: =VLOOKUP(D34,'Input Wonen'!$D$13:$H$151,3,FALSE) -> Prefab beton | H34: VL01.HNN | I34: =IFERROR(VLOOKUP(H34,'Input Wonen'!$J$13:$N$151,COLUMNS('Input Wonen'!J:K),FALSE),"") -> BG: kanaalplaatvloer, 200mm incl. isolatie (Rc=3,7) | J34: =IFERROR(VLOOKUP(H34,'Input Wonen'!$J$13:$N$151,COLUMNS('Input Wonen'!J:L),FALSE),"") -> Kanaalplaat, remontabel (28% recyclaat) | L34: VL01.E | M34: =IFERROR(VLOOKUP(L34,'Input Wonen'!$P$13:$T$151,COLUMNS('Input Wonen'!P:Q),FALSE),"") -> BG: kanaalplaatvloer, 200mm incl. isolatie (Rc=3,7) | N34: =IFERROR(VLOOKUP(L34,'Input Wonen'!$P$13:$T$151,COLUMNS('Input Wonen'!P:R),FALSE),"") -> Kanaalplaat, remontabel (28% recyclaat)
D35: VL02.t | E35: =VLOOKUP(D35,'Input Wonen'!$D$13:$H$151,2,FALSE) -> Dekvloeren, 60mm | F35: =VLOOKUP(D35,'Input Wonen'!$D$13:$H$151,3,FALSE) -> Zandcement dekvloer | H35: VL02.HNN | I35: =IFERROR(VLOOKUP(H35,'Input Wonen'!$J$13:$N$151,COLUMNS('Input Wonen'!J:K),FALSE),"") -> Dekvloeren, 60mm | J35: =IFERROR(VLOOKUP(H35,'Input Wonen'!$J$13:$N$151,COLUMNS('Input Wonen'!J:L),FALSE),"") -> Fermacell honingraatvloer (op houten vloer) | L35: VL02.E | M35: =IFERROR(VLOOKUP(L35,'Input Wonen'!$P$13:$T$151,COLUMNS('Input Wonen'!P:Q),FALSE),"") -> Dekvloeren, 60mm | N35: =IFERROR(VLOOKUP(L35,'Input Wonen'!$P$13:$T$151,COLUMNS('Input Wonen'!P:R),FALSE),"") -> Fermacell honingraatvloer (op houten vloer)
D36: VL03.t | E36: =VLOOKUP(D36,'Input Wonen'!$D$13:$H$151,2,FALSE) -> Vloertegelwerk toilet | F36: =VLOOKUP(D36,'Input Wonen'!$D$13:$H$151,3,FALSE) -> Keramische tegels, geglazuurd/gelijmd | H36: VL03.HNN | I36: =IFERROR(VLOOKUP(H36,'Input Wonen'!$J$13:$N$151,COLUMNS('Input Wonen'!J:K),FALSE),"") -> Vloertegelwerk toilet | J36: =IFERROR(VLOOKUP(H36,'Input Wonen'!$J$13:$N$151,COLUMNS('Input Wonen'!J:L),FALSE),"") -> Mosa C2C vloertegels | L36: VL03.E | M36: =IFERROR(VLOOKUP(L36,'Input Wonen'!$P$13:$T$151,COLUMNS('Input Wonen'!P:Q),FALSE),"") -> Vloertegelwerk toilet | N36: =IFERROR(VLOOKUP(L36,'Input Wonen'!$P$13:$T$151,COLUMNS('Input Wonen'!P:R),FALSE),"") -> Mosa C2C vloertegels (losmaakbaar)
D37: VL20.t | E37: =VLOOKUP(D37,'Input Wonen'!$D$13:$H$151,2,FALSE) -> VV: kanaalplaatvloer, 200mm | F37: =VLOOKUP(D37,'Input Wonen'!$D$13:$H$151,3,FALSE) -> Kanaalplaatvloer; prefab beton | H37: VL20.HNN | I37: =IFERROR(VLOOKUP(H37,'Input Wonen'!$J$13:$N$151,COLUMNS('Input Wonen'!J:K),FALSE),"") -> VV: kanaalplaatvloer, 200mm | J37: =IFERROR(VLOOKUP(H37,'Input Wonen'!$J$13:$N$151,COLUMNS('Input Wonen'!J:L),FALSE),"") -> Kanaalplaatvloer, 200mm (28% recyclaat) | L37: VL20.E | M37: =IFERROR(VLOOKUP(L37,'Input Wonen'!$P$13:$T$151,COLUMNS('Input Wonen'!P:Q),FALSE),"") -> VV: HSB (grondgeb.) | N37: =IFERROR(VLOOKUP(L37,'Input Wonen'!$P$13:$T$151,COLUMNS('Input Wonen'!P:R),FALSE),"") -> HSB vloerelement (stijlen+OSB), 18mm; IsoVlas 60mm; gipsplaat (2x)
D38: VL07.t | E38: =VLOOKUP(D38,'Input Wonen'!$D$13:$H$151,2,FALSE) -> Dekvloeren, 60mm | F38: =VLOOKUP(D38,'Input Wonen'!$D$13:$H$151,3,FALSE) -> Zandcement dekvloer | H38: VL07.HNN | I38: =IFERROR(VLOOKUP(H38,'Input Wonen'!$J$13:$N$151,COLUMNS('Input Wonen'!J:K),FALSE),"") -> Dekvloeren, 60mm | J38: =IFERROR(VLOOKUP(H38,'Input Wonen'!$J$13:$N$151,COLUMNS('Input Wonen'!J:L),FALSE),"") -> Fermacell honingraatvloer (op houten vloer) | L38: VL07.E | M38: =IFERROR(VLOOKUP(L38,'Input Wonen'!$P$13:$T$151,COLUMNS('Input Wonen'!P:Q),FALSE),"") -> Dekvloeren, 60mm | N38: =IFERROR(VLOOKUP(L38,'Input Wonen'!$P$13:$T$151,COLUMNS('Input Wonen'!P:R),FALSE),"") -> Fermacell honingraatvloer (op houten vloer)
D39: VL04.t | E39: =VLOOKUP(D39,'Input Wonen'!$D$13:$H$151,2,FALSE) -> Vloertegelwerk badkamer | F39: =VLOOKUP(D39,'Input Wonen'!$D$13:$H$151,3,FALSE) -> Keramische tegels, geglazuurd/gelijmd | H39: VL04.HNN | I39: =IFERROR(VLOOKUP(H39,'Input Wonen'!$J$13:$N$151,COLUMNS('Input Wonen'!J:K),FALSE),"") -> Vloertegelwerk badkamer | J39: =IFERROR(VLOOKUP(H39,'Input Wonen'!$J$13:$N$151,COLUMNS('Input Wonen'!J:L),FALSE),"") -> Mosa C2C vloertegels | L39: VL04.E | M39: =IFERROR(VLOOKUP(L39,'Input Wonen'!$P$13:$T$151,COLUMNS('Input Wonen'!P:Q),FALSE),"") -> Vloertegelwerk badkamer | N39: =IFERROR(VLOOKUP(L39,'Input Wonen'!$P$13:$T$151,COLUMNS('Input Wonen'!P:R),FALSE),"") -> Mosa C2C vloertegels (losmaakbaar)
E40: Gevel | I40: Gevel | M40: Gevel
D41: GE50.t | E41: =VLOOKUP(D41,'Input Wonen'!$D$13:$H$151,2,FALSE) -> Gevelkozijnen; incl. HR++ beglazing | F41: =VLOOKUP(D41,'Input Wonen'!$D$13:$H$151,3,FALSE) -> Az. loofhout (Meranti), geschilderd | H41: GE50.HNN | I41: =IFERROR(VLOOKUP(H41,'Input Wonen'!$J$13:$N$151,COLUMNS('Input Wonen'!J:K),FALSE),"") -> Gevelkozijnen; incl. HR++ beglazing | J41: =IFERROR(VLOOKUP(H41,'Input Wonen'!$J$13:$N$151,COLUMNS('Input Wonen'!J:L),FALSE),"") -> Europees naaldhout, geschilderd | L41: GE50.E | M41: =IFERROR(VLOOKUP(L41,'Input Wonen'!$P$13:$T$151,COLUMNS('Input Wonen'!P:Q),FALSE),"") -> Gevelkozijnen; incl. Isomax beglazing | N41: =IFERROR(VLOOKUP(L41,'Input Wonen'!$P$13:$T$151,COLUMNS('Input Wonen'!P:R),FALSE),"") -> Europees naaldhout, geschilderd
D42: GE03.t | E42: =VLOOKUP(D42,'Input Wonen'!$D$13:$H$151,2,FALSE) -> Stelkozijnen | F42: =VLOOKUP(D42,'Input Wonen'!$D$13:$H$151,3,FALSE) -> Onverduurzaamd hout, geverfd | H42: GE03.HNN | I42: =IFERROR(VLOOKUP(H42,'Input Wonen'!$J$13:$N$151,COLUMNS('Input Wonen'!J:K),FALSE),"") -> Stelkozijnen | J42: =IFERROR(VLOOKUP(H42,'Input Wonen'!$J$13:$N$151,COLUMNS('Input Wonen'!J:L),FALSE),"") -> Onverduurzaamd hout, geverfd | L42: GE03.E | M42: =IFERROR(VLOOKUP(L42,'Input Wonen'!$P$13:$T$151,COLUMNS('Input Wonen'!P:Q),FALSE),"") -> Stelkozijnen | N42: =IFERROR(VLOOKUP(L42,'Input Wonen'!$P$13:$T$151,COLUMNS('Input Wonen'!P:R),FALSE),"") -> Onverduurzaamd hout, geverfd
D43: GE04.t | E43: =VLOOKUP(D43,'Input Wonen'!$D$13:$H$151,2,FALSE) -> Vensterbanken | F43: =VLOOKUP(D43,'Input Wonen'!$D$13:$H$151,3,FALSE) -> Composietsteen | H43: GE04.HNN | I43: =IFERROR(VLOOKUP(H43,'Input Wonen'!$J$13:$N$151,COLUMNS('Input Wonen'!J:K),FALSE),"") -> Vensterbanken | J43: =IFERROR(VLOOKUP(H43,'Input Wonen'!$J$13:$N$151,COLUMNS('Input Wonen'!J:L),FALSE),"") -> Composietsteen | L43: GE04.E | M43: =IFERROR(VLOOKUP(L43,'Input Wonen'!$P$13:$T$151,COLUMNS('Input Wonen'!P:Q),FALSE),"") -> Vensterbanken | N43: =IFERROR(VLOOKUP(L43,'Input Wonen'!$P$13:$T$151,COLUMNS('Input Wonen'!P:R),FALSE),"") -> Composietsteen
D44: GE05.t | E44: =VLOOKUP(D44,'Input Wonen'!$D$13:$H$151,2,FALSE) -> Waterslagen | F44: =VLOOKUP(D44,'Input Wonen'!$D$13:$H$151,3,FALSE) -> Prefab beton | H44: GE05.HNN | I44: =IFERROR(VLOOKUP(H44,'Input Wonen'!$J$13:$N$151,COLUMNS('Input Wonen'!J:K),FALSE),"") -> Waterslagen | J44: =IFERROR(VLOOKUP(H44,'Input Wonen'!$J$13:$N$151,COLUMNS('Input Wonen'!J:L),FALSE),"") -> Prefab beton | L44: GE05.E | M44: =IFERROR(VLOOKUP(L44,'Input Wonen'!$P$13:$T$151,COLUMNS('Input Wonen'!P:Q),FALSE),"") -> Waterslagen | N44: =IFERROR(VLOOKUP(L44,'Input Wonen'!$P$13:$T$151,COLUMNS('Input Wonen'!P:R),FALSE),"") -> Prefab beton
D45: GE22.t | E45: =VLOOKUP(D45,'Input Wonen'!$D$13:$H$151,2,FALSE) -> Lateien | F45: =VLOOKUP(D45,'Input Wonen'!$D$13:$H$151,3,FALSE) -> Prefab beton | H45: GE22.HNN | I45: =IFERROR(VLOOKUP(H45,'Input Wonen'!$J$13:$N$151,COLUMNS('Input Wonen'!J:K),FALSE),"") -> Lateien | J45: =IFERROR(VLOOKUP(H45,'Input Wonen'!$J$13:$N$151,COLUMNS('Input Wonen'!J:L),FALSE),"") -> Prefab beton | L45: GE22.E | M45: =IFERROR(VLOOKUP(L45,'Input Wonen'!$P$13:$T$151,COLUMNS('Input Wonen'!P:Q),FALSE),"") -> Lateien | N45: =IFERROR(VLOOKUP(L45,'Input Wonen'!$P$13:$T$151,COLUMNS('Input Wonen'!P:R),FALSE),"") -> Prefab beton
D46: GE08.t | E46: =VLOOKUP(D46,'Input Wonen'!$D$13:$H$151,2,FALSE) -> Buitendeur; incl. glasopening 0,85m2 | F46: =VLOOKUP(D46,'Input Wonen'!$D$13:$H$151,3,FALSE) -> Onverduurzaamd hout, geverfd | H46: GE08.HNN | I46: =IFERROR(VLOOKUP(H46,'Input Wonen'!$J$13:$N$151,COLUMNS('Input Wonen'!J:K),FALSE),"") -> Buitendeur; incl. glasopening 0,85m2 | J46: =IFERROR(VLOOKUP(H46,'Input Wonen'!$J$13:$N$151,COLUMNS('Input Wonen'!J:L),FALSE),"") -> Onverduurzaamd hout, geverfd | L46: GE08.E | M46: =IFERROR(VLOOKUP(L46,'Input Wonen'!$P$13:$T$151,COLUMNS('Input Wonen'!P:Q),FALSE),"") -> Buitendeur; incl. glasopening 0,85m2 | N46: =IFERROR(VLOOKUP(L46,'Input Wonen'!$P$13:$T$151,COLUMNS('Input Wonen'!P:R),FALSE),"") -> Onverduurzaamd hout, geverfd
D47: GE09.t | E47: =VLOOKUP(D47,'Input Wonen'!$D$13:$H$151,2,FALSE) -> Buitenspouwblad, 100mm | F47: =VLOOKUP(D47,'Input Wonen'!$D$13:$H$151,3,FALSE) -> Baksteenmetselwerk | H47: GE09.HNN | I47: =IFERROR(VLOOKUP(H47,'Input Wonen'!$J$13:$N$151,COLUMNS('Input Wonen'!J:K),FALSE),"") -> Buitenspouwblad | J47: =IFERROR(VLOOKUP(H47,'Input Wonen'!$J$13:$N$151,COLUMNS('Input Wonen'!J:L),FALSE),"") -> Ecobrick Wienerberger | L47: GE09.E | M47: =IFERROR(VLOOKUP(L47,'Input Wonen'!$P$13:$T$151,COLUMNS('Input Wonen'!P:Q),FALSE),"") -> Buitenspouwblad | N47: =IFERROR(VLOOKUP(L47,'Input Wonen'!$P$13:$T$151,COLUMNS('Input Wonen'!P:R),FALSE),"") -> Houten gevelbekleding; Meranti delen
D48: GE10.t | E48: =VLOOKUP(D48,'Input Wonen'!$D$13:$H$151,2,FALSE) -> Isolatielagen, Rc=4,7 | F48: =VLOOKUP(D48,'Input Wonen'!$D$13:$H$151,3,FALSE) -> PUR/PIR schuimplaten | H48: GE10.HNN | I48: =IFERROR(VLOOKUP(H48,'Input Wonen'!$J$13:$N$151,COLUMNS('Input Wonen'!J:K),FALSE),"") -> Isolatielagen, Rc=4,7 | J48: =IFERROR(VLOOKUP(H48,'Input Wonen'!$J$13:$N$151,COLUMNS('Input Wonen'!J:L),FALSE),"") -> Isovlas plaat, PN160mm | L48: GE10.E | M48: =IFERROR(VLOOKUP(L48,'Input Wonen'!$P$13:$T$151,COLUMNS('Input Wonen'!P:Q),FALSE),"") -> Isolatielagen, Rc=4,7 | N48: =IFERROR(VLOOKUP(L48,'Input Wonen'!$P$13:$T$151,COLUMNS('Input Wonen'!P:R),FALSE),"") -> Isovlas plaat, PN160mm
D49: GE11.t | E49: =VLOOKUP(D49,'Input Wonen'!$D$13:$H$151,2,FALSE) -> Binnenspouwblad, 100mm (bruto) | F49: =VLOOKUP(D49,'Input Wonen'!$D$13:$H$151,3,FALSE) -> Prefab beton | H49: GE11.HNN | I49: =IFERROR(VLOOKUP(H49,'Input Wonen'!$J$13:$N$151,COLUMNS('Input Wonen'!J:K),FALSE),"") -> Binnenspouwblad, 100mm (bruto) | J49: =IFERROR(VLOOKUP(H49,'Input Wonen'!$J$13:$N$151,COLUMNS('Input Wonen'!J:L),FALSE),"") -> Prefab beton (UMC) | L49: GE11.E | M49: =IFERROR(VLOOKUP(L49,'Input Wonen'!$P$13:$T$151,COLUMNS('Input Wonen'!P:Q),FALSE),"") -> Binnenspouwblad, HSB (bruto) | N49: =IFERROR(VLOOKUP(L49,'Input Wonen'!$P$13:$T$151,COLUMNS('Input Wonen'!P:R),FALSE),"") -> HSB element incl. Isovlas isolatie
E50: Daken | I50: Daken | M50: Daken
D51: DA01.t | E51: =VLOOKUP(D51,'Input Wonen'!$D$13:$H$151,2,FALSE) -> Dakconstructie, hellend; Rc=6,3 | F51: =VLOOKUP(D51,'Input Wonen'!$D$13:$H$151,3,FALSE) -> Prefab houten dakelement | H51: DA01.HNN | I51: =IFERROR(VLOOKUP(H51,'Input Wonen'!$J$13:$N$151,COLUMNS('Input Wonen'!J:K),FALSE),"") -> Dakconstructie, hellend; Rc=6,3 | J51: =IFERROR(VLOOKUP(H51,'Input Wonen'!$J$13:$N$151,COLUMNS('Input Wonen'!J:L),FALSE),"") -> HSB hellenddakelement incl. vlasisolatie | L51: DA01.E | M51: =IFERROR(VLOOKUP(L51,'Input Wonen'!$P$13:$T$151,COLUMNS('Input Wonen'!P:Q),FALSE),"") -> Dakconstructie, hellend; Rc=6,3 | N51: =IFERROR(VLOOKUP(L51,'Input Wonen'!$P$13:$T$151,COLUMNS('Input Wonen'!P:R),FALSE),"") -> HSB hellenddakelement incl. vlasisolatie
D52: DA06.t | E52: =VLOOKUP(D52,'Input Wonen'!$D$13:$H$151,2,FALSE) -> Dakafwerking | F52: =VLOOKUP(D52,'Input Wonen'!$D$13:$H$151,3,FALSE) -> Betonpan | H52: DA06.HNN | I52: =IFERROR(VLOOKUP(H52,'Input Wonen'!$J$13:$N$151,COLUMNS('Input Wonen'!J:K),FALSE),"") -> Dakafwerking | J52: =IFERROR(VLOOKUP(H52,'Input Wonen'!$J$13:$N$151,COLUMNS('Input Wonen'!J:L),FALSE),"") -> Hergebruikte keramische pan | L52: DA06.E | M52: =IFERROR(VLOOKUP(L52,'Input Wonen'!$P$13:$T$151,COLUMNS('Input Wonen'!P:Q),FALSE),"") -> Dakafwerking | N52: =IFERROR(VLOOKUP(L52,'Input Wonen'!$P$13:$T$151,COLUMNS('Input Wonen'!P:R),FALSE),"") -> Hergebruikte keramische pan
D53: DA10.t | E53: =VLOOKUP(D53,'Input Wonen'!$D$13:$H$151,2,FALSE) -> Dakraam | F53: =VLOOKUP(D53,'Input Wonen'!$D$13:$H$151,3,FALSE) -> Meranti, geschilderd | H53: DA10.HNN | I53: =IFERROR(VLOOKUP(H53,'Input Wonen'!$J$13:$N$151,COLUMNS('Input Wonen'!J:K),FALSE),"") -> Dakraam | J53: =IFERROR(VLOOKUP(H53,'Input Wonen'!$J$13:$N$151,COLUMNS('Input Wonen'!J:L),FALSE),"") -> Velux Reclaimed dakraam | L53: DA10.E | M53: =IFERROR(VLOOKUP(L53,'Input Wonen'!$P$13:$T$151,COLUMNS('Input Wonen'!P:Q),FALSE),"") -> Dakraam | N53: =IFERROR(VLOOKUP(L53,'Input Wonen'!$P$13:$T$151,COLUMNS('Input Wonen'!P:R),FALSE),"") -> Velux Reclaimed dakraam
E54: Binnenwanden | I54: Binnenwanden | M54: Binnenwanden
D55: BI02.t | E55: =VLOOKUP(D55,'Input Wonen'!$D$13:$H$151,2,FALSE) -> Woningscheidende wanden, 100mm; | F55: =VLOOKUP(D55,'Input Wonen'!$D$13:$H$151,3,FALSE) -> Prefab beton | H55: BI02.HNN | I55: =IFERROR(VLOOKUP(H55,'Input Wonen'!$J$13:$N$151,COLUMNS('Input Wonen'!J:K),FALSE),"") -> Woningscheidende wanden, 100mm; | J55: =IFERROR(VLOOKUP(H55,'Input Wonen'!$J$13:$N$151,COLUMNS('Input Wonen'!J:L),FALSE),"") -> Prefab beton | L55: BI02.E | M55: =IFERROR(VLOOKUP(L55,'Input Wonen'!$P$13:$T$151,COLUMNS('Input Wonen'!P:Q),FALSE),"") -> Woningscheidende wanden, HSB | N55: =IFERROR(VLOOKUP(L55,'Input Wonen'!$P$13:$T$151,COLUMNS('Input Wonen'!P:R),FALSE),"") -> HSB binnenwand element met vlasisolatie
D56: BI04.t | E56: =VLOOKUP(D56,'Input Wonen'!$D$13:$H$151,2,FALSE) -> Wandtegelwerk badkamer, toilet en keuken | F56: =VLOOKUP(D56,'Input Wonen'!$D$13:$H$151,3,FALSE) -> Keramische tegels; geglazuurd/gelijmd | H56: BI04.HNN | I56: =IFERROR(VLOOKUP(H56,'Input Wonen'!$J$13:$N$151,COLUMNS('Input Wonen'!J:K),FALSE),"") -> Wandtegelwerk badkamer, toilet en keuken | J56: =IFERROR(VLOOKUP(H56,'Input Wonen'!$J$13:$N$151,COLUMNS('Input Wonen'!J:L),FALSE),"") -> Mosa C2C wandtegels | L56: BI04.E | M56: =IFERROR(VLOOKUP(L56,'Input Wonen'!$P$13:$T$151,COLUMNS('Input Wonen'!P:Q),FALSE),"") -> Wandtegelwerk badkamer, toilet en keuken | N56: =IFERROR(VLOOKUP(L56,'Input Wonen'!$P$13:$T$151,COLUMNS('Input Wonen'!P:R),FALSE),"") -> Gerecycled PET i.c.m. Quartz
D57: BI14.t | E57: =VLOOKUP(D57,'Input Wonen'!$D$13:$H$151,2,FALSE) -> Systeemwanden; gipskartonplaat, 100mm | F57: =VLOOKUP(D57,'Input Wonen'!$D$13:$H$151,3,FALSE) -> Enkel beplaat, 60 mm glaswol | H57: BI14.HNN | I57: =IFERROR(VLOOKUP(H57,'Input Wonen'!$J$13:$N$151,COLUMNS('Input Wonen'!J:K),FALSE),"") -> Binnenwanden, 35mm | J57: =IFERROR(VLOOKUP(H57,'Input Wonen'!$J$13:$N$151,COLUMNS('Input Wonen'!J:L),FALSE),"") -> Faay volpaneel | L57: BI14.E | M57: =IFERROR(VLOOKUP(L57,'Input Wonen'!$P$13:$T$151,COLUMNS('Input Wonen'!P:Q),FALSE),"") -> Binnenwanden, 54mm | N57: =IFERROR(VLOOKUP(L57,'Input Wonen'!$P$13:$T$151,COLUMNS('Input Wonen'!P:R),FALSE),"") -> Faay volpaneel; enkel beplaat
D58: BI05.t | E58: =VLOOKUP(D58,'Input Wonen'!$D$13:$H$151,2,FALSE) -> Binnenwanden, 70mm | F58: =VLOOKUP(D58,'Input Wonen'!$D$13:$H$151,3,FALSE) -> Gipsblokken, normale dichtheid | H58: BI05.HNN | I58: =IFERROR(VLOOKUP(H58,'Input Wonen'!$J$13:$N$151,COLUMNS('Input Wonen'!J:K),FALSE),"") -> Binnenwanden, 70mm | J58: =IFERROR(VLOOKUP(H58,'Input Wonen'!$J$13:$N$151,COLUMNS('Input Wonen'!J:L),FALSE),"") -> Faay volpaneel | L58: BI05.E | M58: =IFERROR(VLOOKUP(L58,'Input Wonen'!$P$13:$T$151,COLUMNS('Input Wonen'!P:Q),FALSE),"") -> Binnenwanden, 70mm | N58: =IFERROR(VLOOKUP(L58,'Input Wonen'!$P$13:$T$151,COLUMNS('Input Wonen'!P:R),FALSE),"") -> Faay volpaneel
D59: BI06.t | E59: =VLOOKUP(D59,'Input Wonen'!$D$13:$H$151,2,FALSE) -> Binnenwanden, 70mm | F59: =VLOOKUP(D59,'Input Wonen'!$D$13:$H$151,3,FALSE) -> Gipsblokken, hoge dichtheid | H59: BI06.HNN | I59: =IFERROR(VLOOKUP(H59,'Input Wonen'!$J$13:$N$151,COLUMNS('Input Wonen'!J:K),FALSE),"") -> Binnenwanden, 70mm | J59: =IFERROR(VLOOKUP(H59,'Input Wonen'!$J$13:$N$151,COLUMNS('Input Wonen'!J:L),FALSE),"") -> Faay volpaneel | L59: BI06.E | M59: =IFERROR(VLOOKUP(L59,'Input Wonen'!$P$13:$T$151,COLUMNS('Input Wonen'!P:Q),FALSE),"") -> Binnenwanden, 70mm | N59: =IFERROR(VLOOKUP(L59,'Input Wonen'!$P$13:$T$151,COLUMNS('Input Wonen'!P:R),FALSE),"") -> Faay volpaneel
D60: BI11.t | E60: =VLOOKUP(D60,'Input Wonen'!$D$13:$H$151,2,FALSE) -> Binnenkozijnen | F60: =VLOOKUP(D60,'Input Wonen'!$D$13:$H$151,3,FALSE) -> Staal; verzinkt+gemoffeld | H60: BI11.HNN | I60: =IFERROR(VLOOKUP(H60,'Input Wonen'!$J$13:$N$151,COLUMNS('Input Wonen'!J:K),FALSE),"") -> Binnenkozijnen | J60: =IFERROR(VLOOKUP(H60,'Input Wonen'!$J$13:$N$151,COLUMNS('Input Wonen'!J:L),FALSE),"") -> Europees naaldhout, geschilderd | L60: BI11.E | M60: =IFERROR(VLOOKUP(L60,'Input Wonen'!$P$13:$T$151,COLUMNS('Input Wonen'!P:Q),FALSE),"") -> Binnenkozijnen | N60: =IFERROR(VLOOKUP(L60,'Input Wonen'!$P$13:$T$151,COLUMNS('Input Wonen'!P:R),FALSE),"") -> Europees naaldhout, geschilderd
D61: BI08.t | E61: =VLOOKUP(D61,'Input Wonen'!$D$13:$H$151,2,FALSE) -> Binnendeuren | F61: =VLOOKUP(D61,'Input Wonen'!$D$13:$H$151,3,FALSE) -> Honingraat; vlakke binnendeur | H61: BI08.HNN | I61: =IFERROR(VLOOKUP(H61,'Input Wonen'!$J$13:$N$151,COLUMNS('Input Wonen'!J:K),FALSE),"") -> Binnendeuren | J61: =IFERROR(VLOOKUP(H61,'Input Wonen'!$J$13:$N$151,COLUMNS('Input Wonen'!J:L),FALSE),"") -> Honingraat; vlakke binnendeur | L61: BI08.E | M61: =IFERROR(VLOOKUP(L61,'Input Wonen'!$P$13:$T$151,COLUMNS('Input Wonen'!P:Q),FALSE),"") -> Binnendeuren | N61: =IFERROR(VLOOKUP(L61,'Input Wonen'!$P$13:$T$151,COLUMNS('Input Wonen'!P:R),FALSE),"") -> Honingraat; vlakke binnendeur
D62: BI10.t | E62: =VLOOKUP(D62,'Input Wonen'!$D$13:$H$151,2,FALSE) -> Binnendorpels | F62: =VLOOKUP(D62,'Input Wonen'!$D$13:$H$151,3,FALSE) -> Gegoten composietsteen | H62: BI10.HNN | I62: =IFERROR(VLOOKUP(H62,'Input Wonen'!$J$13:$N$151,COLUMNS('Input Wonen'!J:K),FALSE),"") -> Binnendorpels | J62: =IFERROR(VLOOKUP(H62,'Input Wonen'!$J$13:$N$151,COLUMNS('Input Wonen'!J:L),FALSE),"") -> Kunststeen | L62: BI10.E | M62: =IFERROR(VLOOKUP(L62,'Input Wonen'!$P$13:$T$151,COLUMNS('Input Wonen'!P:Q),FALSE),"") -> Binnendorpels | N62: =IFERROR(VLOOKUP(L62,'Input Wonen'!$P$13:$T$151,COLUMNS('Input Wonen'!P:R),FALSE),"") -> Kunststeen
E63: Klimaatinstallaties | I63: Klimaatinstallaties | M63: Klimaatinstallaties
D64: KL02.t | E64: =VLOOKUP(D64,'Input Wonen'!$D$13:$H$151,2,FALSE) -> Warmtedistributiesysteem | F64: =VLOOKUP(D64,'Input Wonen'!$D$13:$H$151,3,FALSE) -> CV-leidingen incl. koppelingen + verdeling | H64: KL02.HNN | I64: =IFERROR(VLOOKUP(H64,'Input Wonen'!$J$13:$N$151,COLUMNS('Input Wonen'!J:K),FALSE),"") -> Warmtedistributiesysteem | J64: =IFERROR(VLOOKUP(H64,'Input Wonen'!$J$13:$N$151,COLUMNS('Input Wonen'!J:L),FALSE),"") -> CV-leidingen incl. koppelingen + verdeling | L64: KL02.E | M64: =IFERROR(VLOOKUP(L64,'Input Wonen'!$P$13:$T$151,COLUMNS('Input Wonen'!P:Q),FALSE),"") -> Warmtedistributiesysteem | N64: =IFERROR(VLOOKUP(L64,'Input Wonen'!$P$13:$T$151,COLUMNS('Input Wonen'!P:R),FALSE),"") -> CV-leidingen incl. koppelingen + verdeling
D65: KL03.t | E65: =VLOOKUP(D65,'Input Wonen'!$D$13:$H$151,2,FALSE) -> Warmteafgiftesysteem | F65: =VLOOKUP(D65,'Input Wonen'!$D$13:$H$151,3,FALSE) -> Vloerverwarming 95 W/m2 | H65: KL03.HNN | I65: =IFERROR(VLOOKUP(H65,'Input Wonen'!$J$13:$N$151,COLUMNS('Input Wonen'!J:K),FALSE),"") -> Warmteafgiftesysteem | J65: =IFERROR(VLOOKUP(H65,'Input Wonen'!$J$13:$N$151,COLUMNS('Input Wonen'!J:L),FALSE),"") -> Vloerverwarming 95 W/m2 | L65: KL03.E | M65: =IFERROR(VLOOKUP(L65,'Input Wonen'!$P$13:$T$151,COLUMNS('Input Wonen'!P:Q),FALSE),"") -> Warmteafgiftesysteem | N65: =IFERROR(VLOOKUP(L65,'Input Wonen'!$P$13:$T$151,COLUMNS('Input Wonen'!P:R),FALSE),"") -> Vloerverwarming 95 W/m2
D66: KL01.t | E66: =VLOOKUP(D66,'Input Wonen'!$D$13:$H$151,2,FALSE) -> Warmteopwekkinginstallatie | F66: =VLOOKUP(D66,'Input Wonen'!$D$13:$H$151,3,FALSE) -> Warmtepomp luchtwater 10kW | H66: KL01.HNN | I66: =IFERROR(VLOOKUP(H66,'Input Wonen'!$J$13:$N$151,COLUMNS('Input Wonen'!J:K),FALSE),"") -> Warmteopwekkinginstallatie | J66: =IFERROR(VLOOKUP(H66,'Input Wonen'!$J$13:$N$151,COLUMNS('Input Wonen'!J:L),FALSE),"") -> Warmtepomp luchtwater 10kW | L66: KL01.E | M66: =IFERROR(VLOOKUP(L66,'Input Wonen'!$P$13:$T$151,COLUMNS('Input Wonen'!P:Q),FALSE),"") -> Warmteopwekkinginstallatie | N66: =IFERROR(VLOOKUP(L66,'Input Wonen'!$P$13:$T$151,COLUMNS('Input Wonen'!P:R),FALSE),"") -> Warmtepomp luchtwater 10kW
D67: KL04.t | E67: =VLOOKUP(D67,'Input Wonen'!$D$13:$H$151,2,FALSE) -> Luchtdistributiesysteem | F67: =VLOOKUP(D67,'Input Wonen'!$D$13:$H$151,3,FALSE) -> VLA ventilatiesysteem, type C; W-bouw, individueel | H67: KL04.HNN | I67: =IFERROR(VLOOKUP(H67,'Input Wonen'!$J$13:$N$151,COLUMNS('Input Wonen'!J:K),FALSE),"") -> Luchtdistributiesysteem | J67: =IFERROR(VLOOKUP(H67,'Input Wonen'!$J$13:$N$151,COLUMNS('Input Wonen'!J:L),FALSE),"") -> VLA ventilatiesysteem, type C; W-bouw, individueel | L67: KL04.E | M67: =IFERROR(VLOOKUP(L67,'Input Wonen'!$P$13:$T$151,COLUMNS('Input Wonen'!P:Q),FALSE),"") -> Luchtdistributiesysteem | N67: =IFERROR(VLOOKUP(L67,'Input Wonen'!$P$13:$T$151,COLUMNS('Input Wonen'!P:R),FALSE),"") -> VLA ventilatiesysteem, type C; W-bouw, individueel
D68: KL07.t | E68: =VLOOKUP(D68,'Input Wonen'!$D$13:$H$151,2,FALSE) -> Warmtapwaterinstallatie | F68: =VLOOKUP(D68,'Input Wonen'!$D$13:$H$151,3,FALSE) -> Elektrische boiler; CW:4-6 120 liter | H68: KL07.HNN | I68: =IFERROR(VLOOKUP(H68,'Input Wonen'!$J$13:$N$151,COLUMNS('Input Wonen'!J:K),FALSE),"") -> Warmtapwaterinstallatie | J68: =IFERROR(VLOOKUP(H68,'Input Wonen'!$J$13:$N$151,COLUMNS('Input Wonen'!J:L),FALSE),"") -> Elektrische boiler; CW:4-6 120 liter | L68: KL07.E | M68: =IFERROR(VLOOKUP(L68,'Input Wonen'!$P$13:$T$151,COLUMNS('Input Wonen'!P:Q),FALSE),"") -> Warmtapwaterinstallatie | N68: =IFERROR(VLOOKUP(L68,'Input Wonen'!$P$13:$T$151,COLUMNS('Input Wonen'!P:R),FALSE),"") -> Elektrische boiler; CW:4-6 120 liter
E69: Elektrische installaties | I69: Elektrische installaties | M69: Elektrische installaties
D70: EL02.t | E70: =VLOOKUP(D70,'Input Wonen'!$D$13:$H$151,2,FALSE) -> Pv-panelen, hellend dak | F70: =VLOOKUP(D70,'Input Wonen'!$D$13:$H$151,3,FALSE) -> Mono-Si; incl. inverter+kabels | H70: EL02.HNN | I70: =IFERROR(VLOOKUP(H70,'Input Wonen'!$J$13:$N$151,COLUMNS('Input Wonen'!J:K),FALSE),"") -> Pv-panelen, hellend dak | J70: =IFERROR(VLOOKUP(H70,'Input Wonen'!$J$13:$N$151,COLUMNS('Input Wonen'!J:L),FALSE),"") -> Exasun Xglass | L70: EL02.E | M70: =IFERROR(VLOOKUP(L70,'Input Wonen'!$P$13:$T$151,COLUMNS('Input Wonen'!P:Q),FALSE),"") -> Pv-panelen, hellend dak | N70: =IFERROR(VLOOKUP(L70,'Input Wonen'!$P$13:$T$151,COLUMNS('Input Wonen'!P:R),FALSE),"") -> Exasun Xroof (deels tvv van dakpannen)
D71: EL01.t | E71: =VLOOKUP(D71,'Input Wonen'!$D$13:$H$151,2,FALSE) -> Elektriciteitsleidingen | F71: =VLOOKUP(D71,'Input Wonen'!$D$13:$H$151,3,FALSE) -> Geïsoleerde installatiedraad + mantelbuis | H71: EL01.HNN | I71: =VLOOKUP(H71,'Input Wonen'!$J$13:$N$151,2,FALSE) -> Elektriciteitsleidingen | J71: =VLOOKUP(H71,'Input Wonen'!$J$13:$N$151,3,FALSE) -> Geïsoleerde installatiedraad + mantelbuis | L71: EL01.E | M71: =IFERROR(VLOOKUP(L71,'Input Wonen'!$P$13:$T$151,COLUMNS('Input Wonen'!P:Q),FALSE),"") -> Elektriciteitsleidingen | N71: =IFERROR(VLOOKUP(L71,'Input Wonen'!$P$13:$T$151,COLUMNS('Input Wonen'!P:R),FALSE),"") -> Geïsoleerde installatiedraad + mantelbuis
E72: Toe- en afvoeren | I72: Toe- en afvoeren | M72: Toe- en afvoeren
D73: TO01.t | E73: =VLOOKUP(D73,'Input Wonen'!$D$13:$H$151,2,FALSE) -> Waterleidingen | F73: =VLOOKUP(D73,'Input Wonen'!$D$13:$H$151,3,FALSE) -> Polyetheen; leiding+mantelbuis | H73: TO01.HNN | I73: =IFERROR(VLOOKUP(H73,'Input Wonen'!$J$13:$N$151,COLUMNS('Input Wonen'!J:K),FALSE),"") -> Waterleidingen | J73: =IFERROR(VLOOKUP(H73,'Input Wonen'!$J$13:$N$151,COLUMNS('Input Wonen'!J:L),FALSE),"") -> Polyetheen | L73: TO01.E | M73: =IFERROR(VLOOKUP(L73,'Input Wonen'!$P$13:$T$151,COLUMNS('Input Wonen'!P:Q),FALSE),"") -> Waterleidingen | N73: =IFERROR(VLOOKUP(L73,'Input Wonen'!$P$13:$T$151,COLUMNS('Input Wonen'!P:R),FALSE),"") -> Polyetheen
D74: TO02.t | E74: =VLOOKUP(D74,'Input Wonen'!$D$13:$H$151,2,FALSE) -> Buitenriolering kavel | F74: =VLOOKUP(D74,'Input Wonen'!$D$13:$H$151,3,FALSE) -> PVC | H74: TO02.HNN | I74: =VLOOKUP(H74,'Input Wonen'!$J$13:$N$151,2,FALSE) -> Buitenriolering | J74: =VLOOKUP(H74,'Input Wonen'!$J$13:$N$151,3,FALSE) -> Gerecycled PVC (Pipelife) | L74: TO02.E | M74: =IFERROR(VLOOKUP(L74,'Input Wonen'!$P$13:$T$151,COLUMNS('Input Wonen'!P:Q),FALSE),"") -> Buitenriolering | N74: =IFERROR(VLOOKUP(L74,'Input Wonen'!$P$13:$T$151,COLUMNS('Input Wonen'!P:R),FALSE),"") -> Gerecycled PVC (Pipelife)
D75: TO03.t | E75: =VLOOKUP(D75,'Input Wonen'!$D$13:$H$151,2,FALSE) -> Binnenriolering | F75: =VLOOKUP(D75,'Input Wonen'!$D$13:$H$151,3,FALSE) -> PVC | H75: TO03.HNN | I75: =VLOOKUP(H75,'Input Wonen'!$J$13:$N$151,2,FALSE) -> Binnenriolering | J75: =VLOOKUP(H75,'Input Wonen'!$J$13:$N$151,3,FALSE) -> Gerecycled PVC (Pipelife) | L75: TO03.E | M75: =IFERROR(VLOOKUP(L75,'Input Wonen'!$P$13:$T$151,COLUMNS('Input Wonen'!P:Q),FALSE),"") -> Binnenriolering | N75: =IFERROR(VLOOKUP(L75,'Input Wonen'!$P$13:$T$151,COLUMNS('Input Wonen'!P:R),FALSE),"") -> Gerecycled PVC (Pipelife)
D76: TO04.t | E76: =VLOOKUP(D76,'Input Wonen'!$D$13:$H$151,2,FALSE) -> Hemelwaterafvoer | F76: =VLOOKUP(D76,'Input Wonen'!$D$13:$H$151,3,FALSE) -> PVC | H76: TO04.HNN | I76: =VLOOKUP(H76,'Input Wonen'!$J$13:$N$151,2,FALSE) -> Hemelwaterafvoer | J76: =VLOOKUP(H76,'Input Wonen'!$J$13:$N$151,3,FALSE) -> Gerecycled PVC (Pipelife) | L76: TO04.E | M76: =IFERROR(VLOOKUP(L76,'Input Wonen'!$P$13:$T$151,COLUMNS('Input Wonen'!P:Q),FALSE),"") -> Hemelwaterafvoer | N76: =IFERROR(VLOOKUP(L76,'Input Wonen'!$P$13:$T$151,COLUMNS('Input Wonen'!P:R),FALSE),"") -> Gerecycled PVC (Pipelife)
D77: TO05.t | E77: =VLOOKUP(D77,'Input Wonen'!$D$13:$H$151,2,FALSE) -> Dakgoot | F77: =VLOOKUP(D77,'Input Wonen'!$D$13:$H$151,3,FALSE) -> Aluminium | H77: TO05.HNN | I77: =VLOOKUP(H77,'Input Wonen'!$J$13:$N$151,2,FALSE) -> Dakgoot | J77: =VLOOKUP(H77,'Input Wonen'!$J$13:$N$151,3,FALSE) -> Aluminium | L77: TO05.E | M77: =IFERROR(VLOOKUP(L77,'Input Wonen'!$P$13:$T$151,COLUMNS('Input Wonen'!P:Q),FALSE),"") -> Dakgoot | N77: =IFERROR(VLOOKUP(L77,'Input Wonen'!$P$13:$T$151,COLUMNS('Input Wonen'!P:R),FALSE),"") -> Aluminium
E78: Verkeersruimte | I78: Verkeersruimte | M78: Verkeersruimte
D79: VE01.t | E79: =VLOOKUP(D79,'Input Wonen'!$D$13:$H$151,2,FALSE) -> Interne trap | F79: =VLOOKUP(D79,'Input Wonen'!$D$13:$H$151,3,FALSE) -> Eur. loofhout; geschilderd | H79: VE01.HNN | I79: =IFERROR(VLOOKUP(H79,'Input Wonen'!$J$13:$N$151,COLUMNS('Input Wonen'!J:K),FALSE),"") -> Interne trap | J79: =IFERROR(VLOOKUP(H79,'Input Wonen'!$J$13:$N$151,COLUMNS('Input Wonen'!J:L),FALSE),"") -> Eur. loofhout; geschilderd | L79: VE01.E | M79: =IFERROR(VLOOKUP(L79,'Input Wonen'!$P$13:$T$151,COLUMNS('Input Wonen'!P:Q),FALSE),"") -> Interne trap | N79: =IFERROR(VLOOKUP(L79,'Input Wonen'!$P$13:$T$151,COLUMNS('Input Wonen'!P:R),FALSE),"") -> Eur. loofhout; geschilderd
D80: VE05.t | E80: =VLOOKUP(D80,'Input Wonen'!$D$13:$H$151,2,FALSE) -> Leuningen | F80: =VLOOKUP(D80,'Input Wonen'!$D$13:$H$151,3,FALSE) -> Eur. loofhout; duurzame bosbouw | H80: VE05.HNN | I80: =VLOOKUP(H80,'Input Wonen'!$J$13:$N$151,2,FALSE) -> Leuningen | J80: =VLOOKUP(H80,'Input Wonen'!$J$13:$N$151,3,FALSE) -> Eur. loofhout; duurzame bosbouw | L80: VE05.E | M80: =IFERROR(VLOOKUP(L80,'Input Wonen'!$P$13:$T$151,COLUMNS('Input Wonen'!P:Q),FALSE),"") -> Leuningen | N80: =IFERROR(VLOOKUP(L80,'Input Wonen'!$P$13:$T$151,COLUMNS('Input Wonen'!P:R),FALSE),"") -> Eur. loofhout; duurzame bosbouw
D81: VE03.t | E81: =VLOOKUP(D81,'Input Wonen'!$D$13:$H$151,2,FALSE) -> Balustrades | F81: =VLOOKUP(D81,'Input Wonen'!$D$13:$H$151,3,FALSE) -> Eur. loofhout; spijlen; duurzame bosbouw | H81: VE03.HNN | I81: =VLOOKUP(H81,'Input Wonen'!$J$13:$N$151,2,FALSE) -> Balustrades | J81: =VLOOKUP(H81,'Input Wonen'!$J$13:$N$151,3,FALSE) -> Eur. loofhout; spijlen; duurzame bosbouw | L81: VE03.E | M81: =IFERROR(VLOOKUP(L81,'Input Wonen'!$P$13:$T$151,COLUMNS('Input Wonen'!P:Q),FALSE),"") -> Balustrades | N81: =IFERROR(VLOOKUP(L81,'Input Wonen'!$P$13:$T$151,COLUMNS('Input Wonen'!P:R),FALSE),"") -> Eur. loofhout; spijlen; duurzame bosbouw
E82: Vaste voorzieningen | I82: Vaste voorzieningen | M82: Vaste voorzieningen
D83: VA01.t | E83: =VLOOKUP(D83,'Input Wonen'!$D$13:$H$151,2,FALSE) -> Toiletten; wandcloset + fontein | F83: =VLOOKUP(D83,'Input Wonen'!$D$13:$H$151,3,FALSE) -> Porselein | H83: VA01.HNN | I83: =IFERROR(VLOOKUP(H83,'Input Wonen'!$J$13:$N$151,COLUMNS('Input Wonen'!J:K),FALSE),"") -> Toiletten; wandcloset + fontein | J83: =IFERROR(VLOOKUP(H83,'Input Wonen'!$J$13:$N$151,COLUMNS('Input Wonen'!J:L),FALSE),"") -> Porselein | L83: VA01.E | M83: =IFERROR(VLOOKUP(L83,'Input Wonen'!$P$13:$T$151,COLUMNS('Input Wonen'!P:Q),FALSE),"") -> Toiletten; wandcloset + fontein | N83: =IFERROR(VLOOKUP(L83,'Input Wonen'!$P$13:$T$151,COLUMNS('Input Wonen'!P:R),FALSE),"") -> Porselein
D84: VA02.t | E84: =VLOOKUP(D84,'Input Wonen'!$D$13:$H$151,2,FALSE) -> Wastafel | F84: =VLOOKUP(D84,'Input Wonen'!$D$13:$H$151,3,FALSE) -> Keramisch | H84: VA02.HNN | I84: =VLOOKUP(H84,'Input Wonen'!$J$13:$N$151,2,FALSE) -> Wastafel | J84: =VLOOKUP(H84,'Input Wonen'!$J$13:$N$151,3,FALSE) -> Keramisch | L84: VA02.E | M84: =IFERROR(VLOOKUP(L84,'Input Wonen'!$P$13:$T$151,COLUMNS('Input Wonen'!P:Q),FALSE),"") -> Wastafel | N84: =IFERROR(VLOOKUP(L84,'Input Wonen'!$P$13:$T$151,COLUMNS('Input Wonen'!P:R),FALSE),"") -> Keramisch
D85: VA03.t | E85: =VLOOKUP(D85,'Input Wonen'!$D$13:$H$151,2,FALSE) -> Inloopdouche | F85: =VLOOKUP(D85,'Input Wonen'!$D$13:$H$151,3,FALSE) -> Gipsblokken + tegels incl. rvs afvoergoot | H85: VA03.HNN | I85: =VLOOKUP(H85,'Input Wonen'!$J$13:$N$151,2,FALSE) -> Inloopdouche | J85: =VLOOKUP(H85,'Input Wonen'!$J$13:$N$151,3,FALSE) -> Gipsblokken + tegels incl. rvs afvoergoot | L85: VA03.E | M85: =IFERROR(VLOOKUP(L85,'Input Wonen'!$P$13:$T$151,COLUMNS('Input Wonen'!P:Q),FALSE),"") -> Inloopdouche | N85: =IFERROR(VLOOKUP(L85,'Input Wonen'!$P$13:$T$151,COLUMNS('Input Wonen'!P:R),FALSE),"") -> Gipsblokken + tegels incl. rvs afvoergoot
E86: Overige kosten | I86: Overige kosten | M86: Overige kosten
D87: OK01.t | E87: =VLOOKUP(D87,'Input Wonen'!$D$13:$H$165,2,FALSE) -> Grondwerk, maatvoering, invoeren en sparingen | H87: OK01.HNN | I87: =VLOOKUP(D87,'Input Wonen'!$D$13:$H$165,2,FALSE) -> Grondwerk, maatvoering, invoeren en sparingen | L87: OK01.E | M87: =VLOOKUP(D87,'Input Wonen'!$D$13:$H$165,2,FALSE) -> Grondwerk, maatvoering, invoeren en sparingen
D88: OK02.t | E88: =VLOOKUP(D88,'Input Wonen'!$D$13:$H$165,2,FALSE) -> Gevelsteiger | F88: =VLOOKUP(D88,'Input Wonen'!$D$13:$H$165,3,FALSE) -> 0 | H88: OK02.HNN | I88: =VLOOKUP(H88,'Input Wonen'!$J$13:$N$165,2,FALSE) -> Gevelsteiger | L88: OK02.E | M88: =VLOOKUP(D88,'Input Wonen'!$D$13:$H$165,2,FALSE) -> Gevelsteiger
D89: OK04.t | E89: =VLOOKUP(D89,'Input Wonen'!$D$13:$H$165,2,FALSE) -> Afbouwwerkzaamheden (klein timmerwerk, schilderwerk) | F89: =VLOOKUP(D89,'Input Wonen'!$D$13:$H$165,3,FALSE) -> 0 | H89: OK04.HNN | I89: =VLOOKUP(H89,'Input Wonen'!$J$13:$N$165,2,FALSE) -> Afbouwwerkzaamheden (klein timmerwerk, schilderwerk) | L89: OK04.E | M89: =VLOOKUP(D89,'Input Wonen'!$D$13:$H$165,2,FALSE) -> Afbouwwerkzaamheden (klein timmerwerk, schilderwerk)
D90: OK07b.t | E90: =VLOOKUP(D90,'Input Wonen'!$D$13:$H$165,2,FALSE) -> Installaties (E, W & klimaat) grondgebonden woning tussen | F90: =VLOOKUP(D90,'Input Wonen'!$D$13:$H$165,3,FALSE) -> 0 | H90: OK07b.HNN | I90: =VLOOKUP(H90,'Input Wonen'!$J$13:$N$165,2,FALSE) -> Installaties (E, W & klimaat) grondgebonden woning tussen | L90: OK07b.E | M90: =VLOOKUP(D90,'Input Wonen'!$D$13:$H$165,2,FALSE) -> Installaties (E, W & klimaat) grondgebonden woning tussen
E92: Traditioneel | I92: Het Nieuwe Normaal | M92: Het Nieuwe Normaal ambitieus
E94: WONEN | I94: WONEN | M94: WONEN
H101: =0.696-I101 -> 0.6105 | I101: =0.095-0.0095 -> 0.0855
E108: Woning M hoek | I108: Woning M hoek | M108: Woning M hoek
E109: Element | F109: Materialisatie | I109: Element | J109: Materialisatie | M109: Element | N109: Materialisatie
E111: Fundering | I111: Fundering | M111: Fundering
D112: FU03.t | E112: =VLOOKUP(D112,'Input Wonen'!$D$13:$H$151,2,FALSE) -> Funderingspaal, ⌀ 300mm; l=15,0m | F112: =VLOOKUP(D112,'Input Wonen'!$D$13:$H$151,3,FALSE) -> Schroefpaal; beton, in het werk gestort, C20/25,CEMIII; incl.wapening | H112: FU03.HNN | I112: =IFERROR(VLOOKUP(H112,'Input Wonen'!$J$13:$N$151,COLUMNS('Input Wonen'!J:K),FALSE),"") -> Funderingspaal, ⌀ 300mm; l=15,0m | J112: =IFERROR(VLOOKUP(H112,'Input Wonen'!$J$13:$N$151,COLUMNS('Input Wonen'!J:L),FALSE),"") -> Beton met 56% aan secundair aandeel (UMC) | L112: FU03.E | M112: =IFERROR(VLOOKUP(L112,'Input Wonen'!$P$13:$T$151,COLUMNS('Input Wonen'!P:Q),FALSE),"") -> Funderingspaal, ⌀ 300mm; l=15,0m | N112: =IFERROR(VLOOKUP(L112,'Input Wonen'!$P$13:$T$151,COLUMNS('Input Wonen'!P:R),FALSE),"") -> Beton met 56% aan secundair aandeel (UMC)
D113: FU02.t | E113: =VLOOKUP(D113,'Input Wonen'!$D$13:$H$151,2,FALSE) -> Funderingsbalken, 400x500mm | F113: =VLOOKUP(D113,'Input Wonen'!$D$13:$H$151,3,FALSE) -> In het werk gestort | H113: FU02.HNN | I113: =IFERROR(VLOOKUP(H113,'Input Wonen'!$J$13:$N$151,COLUMNS('Input Wonen'!J:K),FALSE),"") -> Funderingsbalken, 400x500mm | J113: =IFERROR(VLOOKUP(H113,'Input Wonen'!$J$13:$N$151,COLUMNS('Input Wonen'!J:L),FALSE),"") -> Beton met 56% aan secundair aandeel (UMC) | L113: FU02.E | M113: =IFERROR(VLOOKUP(L113,'Input Wonen'!$P$13:$T$151,COLUMNS('Input Wonen'!P:Q),FALSE),"") -> Funderingsbalken, 400x500mm | N113: =IFERROR(VLOOKUP(L113,'Input Wonen'!$P$13:$T$151,COLUMNS('Input Wonen'!P:R),FALSE),"") -> Beton met 56% aan secundair aandeel (UMC)
D114: FU05.t | E114: =VLOOKUP(D114,'Input Wonen'!$D$13:$H$151,2,FALSE) -> Bodemafsluiting, zand | F114: =VLOOKUP(D114,'Input Wonen'!$D$13:$H$151,3,FALSE) -> Zand | H114: FU05.HNN | I114: =IFERROR(VLOOKUP(H114,'Input Wonen'!$J$13:$N$151,COLUMNS('Input Wonen'!J:K),FALSE),"") -> Bodemafsluiting, 100 zand | J114: =IFERROR(VLOOKUP(H114,'Input Wonen'!$J$13:$N$151,COLUMNS('Input Wonen'!J:L),FALSE),"") -> Zand | L114: FU05.E | M114: =IFERROR(VLOOKUP(L114,'Input Wonen'!$P$13:$T$151,COLUMNS('Input Wonen'!P:Q),FALSE),"") -> Bodemafsluiting, 100 zand | N114: =IFERROR(VLOOKUP(L114,'Input Wonen'!$P$13:$T$151,COLUMNS('Input Wonen'!P:R),FALSE),"") -> Zand
E115: Vloeren | I115: Vloeren | M115: Vloeren
D116: VL01.t | E116: =VLOOKUP(D116,'Input Wonen'!$D$13:$H$151,2,FALSE) -> BG: ribbenvloer, vrijdragend incl. isolatie (Rc=3,7) | F116: =VLOOKUP(D116,'Input Wonen'!$D$13:$H$151,3,FALSE) -> Prefab beton | H116: VL01.HNN | I116: =IFERROR(VLOOKUP(H116,'Input Wonen'!$J$13:$N$151,COLUMNS('Input Wonen'!J:K),FALSE),"") -> BG: kanaalplaatvloer, 200mm incl. isolatie (Rc=3,7) | J116: =IFERROR(VLOOKUP(H116,'Input Wonen'!$J$13:$N$151,COLUMNS('Input Wonen'!J:L),FALSE),"") -> Kanaalplaat, remontabel (28% recyclaat) | L116: VL01.E | M116: =IFERROR(VLOOKUP(L116,'Input Wonen'!$P$13:$T$151,COLUMNS('Input Wonen'!P:Q),FALSE),"") -> BG: kanaalplaatvloer, 200mm incl. isolatie (Rc=3,7) | N116: =IFERROR(VLOOKUP(L116,'Input Wonen'!$P$13:$T$151,COLUMNS('Input Wonen'!P:R),FALSE),"") -> Kanaalplaat, remontabel (28% recyclaat)
D117: VL02.t | E117: =VLOOKUP(D117,'Input Wonen'!$D$13:$H$151,2,FALSE) -> Dekvloeren, 60mm | F117: =VLOOKUP(D117,'Input Wonen'!$D$13:$H$151,3,FALSE) -> Zandcement dekvloer | H117: VL02.HNN | I117: =IFERROR(VLOOKUP(H117,'Input Wonen'!$J$13:$N$151,COLUMNS('Input Wonen'!J:K),FALSE),"") -> Dekvloeren, 60mm | J117: =IFERROR(VLOOKUP(H117,'Input Wonen'!$J$13:$N$151,COLUMNS('Input Wonen'!J:L),FALSE),"") -> Fermacell honingraatvloer (op houten vloer) | L117: VL02.E | M117: =IFERROR(VLOOKUP(L117,'Input Wonen'!$P$13:$T$151,COLUMNS('Input Wonen'!P:Q),FALSE),"") -> Dekvloeren, 60mm | N117: =IFERROR(VLOOKUP(L117,'Input Wonen'!$P$13:$T$151,COLUMNS('Input Wonen'!P:R),FALSE),"") -> Fermacell honingraatvloer (op houten vloer)
D118: VL03.t | E118: =VLOOKUP(D118,'Input Wonen'!$D$13:$H$151,2,FALSE) -> Vloertegelwerk toilet | F118: =VLOOKUP(D118,'Input Wonen'!$D$13:$H$151,3,FALSE) -> Keramische tegels, geglazuurd/gelijmd | H118: VL03.HNN | I118: =IFERROR(VLOOKUP(H118,'Input Wonen'!$J$13:$N$151,COLUMNS('Input Wonen'!J:K),FALSE),"") -> Vloertegelwerk toilet | J118: =IFERROR(VLOOKUP(H118,'Input Wonen'!$J$13:$N$151,COLUMNS('Input Wonen'!J:L),FALSE),"") -> Mosa C2C vloertegels | L118: VL03.E | M118: =IFERROR(VLOOKUP(L118,'Input Wonen'!$P$13:$T$151,COLUMNS('Input Wonen'!P:Q),FALSE),"") -> Vloertegelwerk toilet | N118: =IFERROR(VLOOKUP(L118,'Input Wonen'!$P$13:$T$151,COLUMNS('Input Wonen'!P:R),FALSE),"") -> Mosa C2C vloertegels (losmaakbaar)
D119: VL20.t | E119: =VLOOKUP(D119,'Input Wonen'!$D$13:$H$151,2,FALSE) -> VV: kanaalplaatvloer, 200mm | F119: =VLOOKUP(D119,'Input Wonen'!$D$13:$H$151,3,FALSE) -> Kanaalplaatvloer; prefab beton | H119: VL20.HNN | I119: =IFERROR(VLOOKUP(H119,'Input Wonen'!$J$13:$N$151,COLUMNS('Input Wonen'!J:K),FALSE),"") -> VV: kanaalplaatvloer, 200mm | J119: =IFERROR(VLOOKUP(H119,'Input Wonen'!$J$13:$N$151,COLUMNS('Input Wonen'!J:L),FALSE),"") -> Kanaalplaatvloer, 200mm (28% recyclaat) | L119: VL20.E | M119: =IFERROR(VLOOKUP(L119,'Input Wonen'!$P$13:$T$151,COLUMNS('Input Wonen'!P:Q),FALSE),"") -> VV: HSB (grondgeb.) | N119: =IFERROR(VLOOKUP(L119,'Input Wonen'!$P$13:$T$151,COLUMNS('Input Wonen'!P:R),FALSE),"") -> HSB vloerelement (stijlen+OSB), 18mm; IsoVlas 60mm; gipsplaat (2x)
D120: VL07.t | E120: =VLOOKUP(D120,'Input Wonen'!$D$13:$H$151,2,FALSE) -> Dekvloeren, 60mm | F120: =VLOOKUP(D120,'Input Wonen'!$D$13:$H$151,3,FALSE) -> Zandcement dekvloer | H120: VL07.HNN | I120: =IFERROR(VLOOKUP(H120,'Input Wonen'!$J$13:$N$151,COLUMNS('Input Wonen'!J:K),FALSE),"") -> Dekvloeren, 60mm | J120: =IFERROR(VLOOKUP(H120,'Input Wonen'!$J$13:$N$151,COLUMNS('Input Wonen'!J:L),FALSE),"") -> Fermacell honingraatvloer (op houten vloer) | L120: VL07.E | M120: =IFERROR(VLOOKUP(L120,'Input Wonen'!$P$13:$T$151,COLUMNS('Input Wonen'!P:Q),FALSE),"") -> Dekvloeren, 60mm | N120: =IFERROR(VLOOKUP(L120,'Input Wonen'!$P$13:$T$151,COLUMNS('Input Wonen'!P:R),FALSE),"") -> Fermacell honingraatvloer (op houten vloer)
D121: VL04.t | E121: =VLOOKUP(D121,'Input Wonen'!$D$13:$H$151,2,FALSE) -> Vloertegelwerk badkamer | F121: =VLOOKUP(D121,'Input Wonen'!$D$13:$H$151,3,FALSE) -> Keramische tegels, geglazuurd/gelijmd | H121: VL04.HNN | I121: =IFERROR(VLOOKUP(H121,'Input Wonen'!$J$13:$N$151,COLUMNS('Input Wonen'!J:K),FALSE),"") -> Vloertegelwerk badkamer | J121: =IFERROR(VLOOKUP(H121,'Input Wonen'!$J$13:$N$151,COLUMNS('Input Wonen'!J:L),FALSE),"") -> Mosa C2C vloertegels | L121: VL04.E | M121: =IFERROR(VLOOKUP(L121,'Input Wonen'!$P$13:$T$151,COLUMNS('Input Wonen'!P:Q),FALSE),"") -> Vloertegelwerk badkamer | N121: =IFERROR(VLOOKUP(L121,'Input Wonen'!$P$13:$T$151,COLUMNS('Input Wonen'!P:R),FALSE),"") -> Mosa C2C vloertegels (losmaakbaar)
E122: Gevel | I122: Gevel | M122: Gevel
D123: GE50.t | E123: =VLOOKUP(D123,'Input Wonen'!$D$13:$H$151,2,FALSE) -> Gevelkozijnen; incl. HR++ beglazing | F123: =VLOOKUP(D123,'Input Wonen'!$D$13:$H$151,3,FALSE) -> Az. loofhout (Meranti), geschilderd | H123: GE50.HNN | I123: =IFERROR(VLOOKUP(H123,'Input Wonen'!$J$13:$N$151,COLUMNS('Input Wonen'!J:K),FALSE),"") -> Gevelkozijnen; incl. HR++ beglazing | J123: =IFERROR(VLOOKUP(H123,'Input Wonen'!$J$13:$N$151,COLUMNS('Input Wonen'!J:L),FALSE),"") -> Europees naaldhout, geschilderd | L123: GE50.E | M123: =IFERROR(VLOOKUP(L123,'Input Wonen'!$P$13:$T$151,COLUMNS('Input Wonen'!P:Q),FALSE),"") -> Gevelkozijnen; incl. Isomax beglazing | N123: =IFERROR(VLOOKUP(L123,'Input Wonen'!$P$13:$T$151,COLUMNS('Input Wonen'!P:R),FALSE),"") -> Europees naaldhout, geschilderd
D124: GE03.t | E124: =VLOOKUP(D124,'Input Wonen'!$D$13:$H$151,2,FALSE) -> Stelkozijnen | F124: =VLOOKUP(D124,'Input Wonen'!$D$13:$H$151,3,FALSE) -> Onverduurzaamd hout, geverfd | H124: GE03.HNN | I124: =IFERROR(VLOOKUP(H124,'Input Wonen'!$J$13:$N$151,COLUMNS('Input Wonen'!J:K),FALSE),"") -> Stelkozijnen | J124: =IFERROR(VLOOKUP(H124,'Input Wonen'!$J$13:$N$151,COLUMNS('Input Wonen'!J:L),FALSE),"") -> Onverduurzaamd hout, geverfd | L124: GE03.E | M124: =IFERROR(VLOOKUP(L124,'Input Wonen'!$P$13:$T$151,COLUMNS('Input Wonen'!P:Q),FALSE),"") -> Stelkozijnen | N124: =IFERROR(VLOOKUP(L124,'Input Wonen'!$P$13:$T$151,COLUMNS('Input Wonen'!P:R),FALSE),"") -> Onverduurzaamd hout, geverfd
D125: GE04.t | E125: =VLOOKUP(D125,'Input Wonen'!$D$13:$H$151,2,FALSE) -> Vensterbanken | F125: =VLOOKUP(D125,'Input Wonen'!$D$13:$H$151,3,FALSE) -> Composietsteen | H125: GE04.HNN | I125: =IFERROR(VLOOKUP(H125,'Input Wonen'!$J$13:$N$151,COLUMNS('Input Wonen'!J:K),FALSE),"") -> Vensterbanken | J125: =IFERROR(VLOOKUP(H125,'Input Wonen'!$J$13:$N$151,COLUMNS('Input Wonen'!J:L),FALSE),"") -> Composietsteen | L125: GE04.E | M125: =IFERROR(VLOOKUP(L125,'Input Wonen'!$P$13:$T$151,COLUMNS('Input Wonen'!P:Q),FALSE),"") -> Vensterbanken | N125: =IFERROR(VLOOKUP(L125,'Input Wonen'!$P$13:$T$151,COLUMNS('Input Wonen'!P:R),FALSE),"") -> Composietsteen
D126: GE05.t | E126: =VLOOKUP(D126,'Input Wonen'!$D$13:$H$151,2,FALSE) -> Waterslagen | F126: =VLOOKUP(D126,'Input Wonen'!$D$13:$H$151,3,FALSE) -> Prefab beton | H126: GE05.HNN | I126: =IFERROR(VLOOKUP(H126,'Input Wonen'!$J$13:$N$151,COLUMNS('Input Wonen'!J:K),FALSE),"") -> Waterslagen | J126: =IFERROR(VLOOKUP(H126,'Input Wonen'!$J$13:$N$151,COLUMNS('Input Wonen'!J:L),FALSE),"") -> Prefab beton | L126: GE05.E | M126: =IFERROR(VLOOKUP(L126,'Input Wonen'!$P$13:$T$151,COLUMNS('Input Wonen'!P:Q),FALSE),"") -> Waterslagen | N126: =IFERROR(VLOOKUP(L126,'Input Wonen'!$P$13:$T$151,COLUMNS('Input Wonen'!P:R),FALSE),"") -> Prefab beton
D127: GE22.t | E127: =VLOOKUP(D127,'Input Wonen'!$D$13:$H$151,2,FALSE) -> Lateien | F127: =VLOOKUP(D127,'Input Wonen'!$D$13:$H$151,3,FALSE) -> Prefab beton | H127: GE22.HNN | I127: =IFERROR(VLOOKUP(H127,'Input Wonen'!$J$13:$N$151,COLUMNS('Input Wonen'!J:K),FALSE),"") -> Lateien | J127: =IFERROR(VLOOKUP(H127,'Input Wonen'!$J$13:$N$151,COLUMNS('Input Wonen'!J:L),FALSE),"") -> Prefab beton | L127: GE22.E | M127: =IFERROR(VLOOKUP(L127,'Input Wonen'!$P$13:$T$151,COLUMNS('Input Wonen'!P:Q),FALSE),"") -> Lateien | N127: =IFERROR(VLOOKUP(L127,'Input Wonen'!$P$13:$T$151,COLUMNS('Input Wonen'!P:R),FALSE),"") -> Prefab beton
D128: GE08.t | E128: =VLOOKUP(D128,'Input Wonen'!$D$13:$H$151,2,FALSE) -> Buitendeur; incl. glasopening 0,85m2 | F128: =VLOOKUP(D128,'Input Wonen'!$D$13:$H$151,3,FALSE) -> Onverduurzaamd hout, geverfd | H128: GE08.HNN | I128: =IFERROR(VLOOKUP(H128,'Input Wonen'!$J$13:$N$151,COLUMNS('Input Wonen'!J:K),FALSE),"") -> Buitendeur; incl. glasopening 0,85m2 | J128: =IFERROR(VLOOKUP(H128,'Input Wonen'!$J$13:$N$151,COLUMNS('Input Wonen'!J:L),FALSE),"") -> Onverduurzaamd hout, geverfd | L128: GE08.E | M128: =IFERROR(VLOOKUP(L128,'Input Wonen'!$P$13:$T$151,COLUMNS('Input Wonen'!P:Q),FALSE),"") -> Buitendeur; incl. glasopening 0,85m2 | N128: =IFERROR(VLOOKUP(L128,'Input Wonen'!$P$13:$T$151,COLUMNS('Input Wonen'!P:R),FALSE),"") -> Onverduurzaamd hout, geverfd
D129: GE09.t | E129: =VLOOKUP(D129,'Input Wonen'!$D$13:$H$151,2,FALSE) -> Buitenspouwblad, 100mm | F129: =VLOOKUP(D129,'Input Wonen'!$D$13:$H$151,3,FALSE) -> Baksteenmetselwerk | H129: GE09.HNN | I129: =IFERROR(VLOOKUP(H129,'Input Wonen'!$J$13:$N$151,COLUMNS('Input Wonen'!J:K),FALSE),"") -> Buitenspouwblad | J129: =IFERROR(VLOOKUP(H129,'Input Wonen'!$J$13:$N$151,COLUMNS('Input Wonen'!J:L),FALSE),"") -> Ecobrick Wienerberger | L129: GE09.E | M129: =IFERROR(VLOOKUP(L129,'Input Wonen'!$P$13:$T$151,COLUMNS('Input Wonen'!P:Q),FALSE),"") -> Buitenspouwblad | N129: =IFERROR(VLOOKUP(L129,'Input Wonen'!$P$13:$T$151,COLUMNS('Input Wonen'!P:R),FALSE),"") -> Houten gevelbekleding; Meranti delen
D130: GE10.t | E130: =VLOOKUP(D130,'Input Wonen'!$D$13:$H$151,2,FALSE) -> Isolatielagen, Rc=4,7 | F130: =VLOOKUP(D130,'Input Wonen'!$D$13:$H$151,3,FALSE) -> PUR/PIR schuimplaten | H130: GE10.HNN | I130: =IFERROR(VLOOKUP(H130,'Input Wonen'!$J$13:$N$151,COLUMNS('Input Wonen'!J:K),FALSE),"") -> Isolatielagen, Rc=4,7 | J130: =IFERROR(VLOOKUP(H130,'Input Wonen'!$J$13:$N$151,COLUMNS('Input Wonen'!J:L),FALSE),"") -> Isovlas plaat, PN160mm | L130: GE10.E | M130: =IFERROR(VLOOKUP(L130,'Input Wonen'!$P$13:$T$151,COLUMNS('Input Wonen'!P:Q),FALSE),"") -> Isolatielagen, Rc=4,7 | N130: =IFERROR(VLOOKUP(L130,'Input Wonen'!$P$13:$T$151,COLUMNS('Input Wonen'!P:R),FALSE),"") -> Isovlas plaat, PN160mm
D131: GE11.t | E131: =VLOOKUP(D131,'Input Wonen'!$D$13:$H$151,2,FALSE) -> Binnenspouwblad, 100mm (bruto) | F131: =VLOOKUP(D131,'Input Wonen'!$D$13:$H$151,3,FALSE) -> Prefab beton | H131: GE11.HNN | I131: =IFERROR(VLOOKUP(H131,'Input Wonen'!$J$13:$N$151,COLUMNS('Input Wonen'!J:K),FALSE),"") -> Binnenspouwblad, 100mm (bruto) | J131: =IFERROR(VLOOKUP(H131,'Input Wonen'!$J$13:$N$151,COLUMNS('Input Wonen'!J:L),FALSE),"") -> Prefab beton (UMC) | L131: GE11.E | M131: =IFERROR(VLOOKUP(L131,'Input Wonen'!$P$13:$T$151,COLUMNS('Input Wonen'!P:Q),FALSE),"") -> Binnenspouwblad, HSB (bruto) | N131: =IFERROR(VLOOKUP(L131,'Input Wonen'!$P$13:$T$151,COLUMNS('Input Wonen'!P:R),FALSE),"") -> HSB element incl. Isovlas isolatie
E132: Daken | I132: Daken | M132: Daken
D133: DA01.t | E133: =VLOOKUP(D133,'Input Wonen'!$D$13:$H$151,2,FALSE) -> Dakconstructie, hellend; Rc=6,3 | F133: =VLOOKUP(D133,'Input Wonen'!$D$13:$H$151,3,FALSE) -> Prefab houten dakelement | H133: DA01.HNN | I133: =IFERROR(VLOOKUP(H133,'Input Wonen'!$J$13:$N$151,COLUMNS('Input Wonen'!J:K),FALSE),"") -> Dakconstructie, hellend; Rc=6,3 | J133: =IFERROR(VLOOKUP(H133,'Input Wonen'!$J$13:$N$151,COLUMNS('Input Wonen'!J:L),FALSE),"") -> HSB hellenddakelement incl. vlasisolatie | L133: DA01.E | M133: =IFERROR(VLOOKUP(L133,'Input Wonen'!$P$13:$T$151,COLUMNS('Input Wonen'!P:Q),FALSE),"") -> Dakconstructie, hellend; Rc=6,3 | N133: =IFERROR(VLOOKUP(L133,'Input Wonen'!$P$13:$T$151,COLUMNS('Input Wonen'!P:R),FALSE),"") -> HSB hellenddakelement incl. vlasisolatie
D134: DA06.t | E134: =VLOOKUP(D134,'Input Wonen'!$D$13:$H$151,2,FALSE) -> Dakafwerking | F134: =VLOOKUP(D134,'Input Wonen'!$D$13:$H$151,3,FALSE) -> Betonpan | H134: DA06.HNN | I134: =IFERROR(VLOOKUP(H134,'Input Wonen'!$J$13:$N$151,COLUMNS('Input Wonen'!J:K),FALSE),"") -> Dakafwerking | J134: =IFERROR(VLOOKUP(H134,'Input Wonen'!$J$13:$N$151,COLUMNS('Input Wonen'!J:L),FALSE),"") -> Hergebruikte keramische pan | L134: DA06.E | M134: =IFERROR(VLOOKUP(L134,'Input Wonen'!$P$13:$T$151,COLUMNS('Input Wonen'!P:Q),FALSE),"") -> Dakafwerking | N134: =IFERROR(VLOOKUP(L134,'Input Wonen'!$P$13:$T$151,COLUMNS('Input Wonen'!P:R),FALSE),"") -> Hergebruikte keramische pan
D135: DA13.t | E135: =VLOOKUP(D135,'Input Wonen'!$D$13:$H$151,2,FALSE) -> Bekledingen en roosters verlaagde plafonds | F135: =VLOOKUP(D135,'Input Wonen'!$D$13:$H$151,3,FALSE) -> Spaanplaat (incl. regelwerk) | H135: DA13.HNN | I135: =IFERROR(VLOOKUP(H135,'Input Wonen'!$J$13:$N$151,COLUMNS('Input Wonen'!J:K),FALSE),"") -> Bekleding en roosters, refurbished plafondplaten (Insert) | J135: =IFERROR(VLOOKUP(H135,'Input Wonen'!$J$13:$N$151,COLUMNS('Input Wonen'!J:L),FALSE),"") -> Hergebruikte / refurbished plafondplaten | L135: DA13.E | M135: =IFERROR(VLOOKUP(L135,'Input Wonen'!$P$13:$T$151,COLUMNS('Input Wonen'!P:Q),FALSE),"") -> Bekleding en roosters, refurbished plafondplaten (Insert) | N135: =IFERROR(VLOOKUP(L135,'Input Wonen'!$P$13:$T$151,COLUMNS('Input Wonen'!P:R),FALSE),"") -> Hergebruikte / refurbished plafondplaten
E136: Binnenwanden | I136: Binnenwanden | M136: Binnenwanden
D137: BI02.t | E137: =VLOOKUP(D137,'Input Wonen'!$D$13:$H$151,2,FALSE) -> Woningscheidende wanden, 100mm; | F137: =VLOOKUP(D137,'Input Wonen'!$D$13:$H$151,3,FALSE) -> Prefab beton | H137: BI02.HNN | I137: =IFERROR(VLOOKUP(H137,'Input Wonen'!$J$13:$N$151,COLUMNS('Input Wonen'!J:K),FALSE),"") -> Woningscheidende wanden, 100mm; | J137: =IFERROR(VLOOKUP(H137,'Input Wonen'!$J$13:$N$151,COLUMNS('Input Wonen'!J:L),FALSE),"") -> Prefab beton | L137: BI02.E | M137: =IFERROR(VLOOKUP(L137,'Input Wonen'!$P$13:$T$151,COLUMNS('Input Wonen'!P:Q),FALSE),"") -> Woningscheidende wanden, HSB | N137: =IFERROR(VLOOKUP(L137,'Input Wonen'!$P$13:$T$151,COLUMNS('Input Wonen'!P:R),FALSE),"") -> HSB binnenwand element met vlasisolatie
D138: BI04.t | E138: =VLOOKUP(D138,'Input Wonen'!$D$13:$H$151,2,FALSE) -> Wandtegelwerk badkamer, toilet en keuken | F138: =VLOOKUP(D138,'Input Wonen'!$D$13:$H$151,3,FALSE) -> Keramische tegels; geglazuurd/gelijmd | H138: BI04.HNN | I138: =IFERROR(VLOOKUP(H138,'Input Wonen'!$J$13:$N$151,COLUMNS('Input Wonen'!J:K),FALSE),"") -> Wandtegelwerk badkamer, toilet en keuken | J138: =IFERROR(VLOOKUP(H138,'Input Wonen'!$J$13:$N$151,COLUMNS('Input Wonen'!J:L),FALSE),"") -> Mosa C2C wandtegels | L138: BI04.E | M138: =IFERROR(VLOOKUP(L138,'Input Wonen'!$P$13:$T$151,COLUMNS('Input Wonen'!P:Q),FALSE),"") -> Wandtegelwerk badkamer, toilet en keuken | N138: =IFERROR(VLOOKUP(L138,'Input Wonen'!$P$13:$T$151,COLUMNS('Input Wonen'!P:R),FALSE),"") -> Gerecycled PET i.c.m. Quartz
D139: BI14.t | E139: =VLOOKUP(D139,'Input Wonen'!$D$13:$H$151,2,FALSE) -> Systeemwanden; gipskartonplaat, 100mm | F139: =VLOOKUP(D139,'Input Wonen'!$D$13:$H$151,3,FALSE) -> Enkel beplaat, 60 mm glaswol | H139: BI14.HNN | I139: =IFERROR(VLOOKUP(H139,'Input Wonen'!$J$13:$N$151,COLUMNS('Input Wonen'!J:K),FALSE),"") -> Binnenwanden, 35mm | J139: =IFERROR(VLOOKUP(H139,'Input Wonen'!$J$13:$N$151,COLUMNS('Input Wonen'!J:L),FALSE),"") -> Faay volpaneel | L139: BI14.E | M139: =IFERROR(VLOOKUP(L139,'Input Wonen'!$P$13:$T$151,COLUMNS('Input Wonen'!P:Q),FALSE),"") -> Binnenwanden, 54mm | N139: =IFERROR(VLOOKUP(L139,'Input Wonen'!$P$13:$T$151,COLUMNS('Input Wonen'!P:R),FALSE),"") -> Faay volpaneel; enkel beplaat
D140: BI05.t | E140: =VLOOKUP(D140,'Input Wonen'!$D$13:$H$151,2,FALSE) -> Binnenwanden, 70mm | F140: =VLOOKUP(D140,'Input Wonen'!$D$13:$H$151,3,FALSE) -> Gipsblokken, normale dichtheid | H140: BI05.HNN | I140: =IFERROR(VLOOKUP(H140,'Input Wonen'!$J$13:$N$151,COLUMNS('Input Wonen'!J:K),FALSE),"") -> Binnenwanden, 70mm | J140: =IFERROR(VLOOKUP(H140,'Input Wonen'!$J$13:$N$151,COLUMNS('Input Wonen'!J:L),FALSE),"") -> Faay volpaneel | L140: BI05.E | M140: =IFERROR(VLOOKUP(L140,'Input Wonen'!$P$13:$T$151,COLUMNS('Input Wonen'!P:Q),FALSE),"") -> Binnenwanden, 70mm | N140: =IFERROR(VLOOKUP(L140,'Input Wonen'!$P$13:$T$151,COLUMNS('Input Wonen'!P:R),FALSE),"") -> Faay volpaneel
D141: BI06.t | E141: =VLOOKUP(D141,'Input Wonen'!$D$13:$H$151,2,FALSE) -> Binnenwanden, 70mm | F141: =VLOOKUP(D141,'Input Wonen'!$D$13:$H$151,3,FALSE) -> Gipsblokken, hoge dichtheid | H141: BI06.HNN | I141: =IFERROR(VLOOKUP(H141,'Input Wonen'!$J$13:$N$151,COLUMNS('Input Wonen'!J:K),FALSE),"") -> Binnenwanden, 70mm | J141: =IFERROR(VLOOKUP(H141,'Input Wonen'!$J$13:$N$151,COLUMNS('Input Wonen'!J:L),FALSE),"") -> Faay volpaneel | L141: BI06.E | M141: =IFERROR(VLOOKUP(L141,'Input Wonen'!$P$13:$T$151,COLUMNS('Input Wonen'!P:Q),FALSE),"") -> Binnenwanden, 70mm | N141: =IFERROR(VLOOKUP(L141,'Input Wonen'!$P$13:$T$151,COLUMNS('Input Wonen'!P:R),FALSE),"") -> Faay volpaneel
D142: BI11.t | E142: =VLOOKUP(D142,'Input Wonen'!$D$13:$H$151,2,FALSE) -> Binnenkozijnen | F142: =VLOOKUP(D142,'Input Wonen'!$D$13:$H$151,3,FALSE) -> Staal; verzinkt+gemoffeld | H142: BI11.HNN | I142: =IFERROR(VLOOKUP(H142,'Input Wonen'!$J$13:$N$151,COLUMNS('Input Wonen'!J:K),FALSE),"") -> Binnenkozijnen | J142: =IFERROR(VLOOKUP(H142,'Input Wonen'!$J$13:$N$151,COLUMNS('Input Wonen'!J:L),FALSE),"") -> Europees naaldhout, geschilderd | L142: BI11.E | M142: =IFERROR(VLOOKUP(L142,'Input Wonen'!$P$13:$T$151,COLUMNS('Input Wonen'!P:Q),FALSE),"") -> Binnenkozijnen | N142: =IFERROR(VLOOKUP(L142,'Input Wonen'!$P$13:$T$151,COLUMNS('Input Wonen'!P:R),FALSE),"") -> Europees naaldhout, geschilderd
D143: BI08.t | E143: =VLOOKUP(D143,'Input Wonen'!$D$13:$H$151,2,FALSE) -> Binnendeuren | F143: =VLOOKUP(D143,'Input Wonen'!$D$13:$H$151,3,FALSE) -> Honingraat; vlakke binnendeur | H143: BI08.HNN | I143: =IFERROR(VLOOKUP(H143,'Input Wonen'!$J$13:$N$151,COLUMNS('Input Wonen'!J:K),FALSE),"") -> Binnendeuren | J143: =IFERROR(VLOOKUP(H143,'Input Wonen'!$J$13:$N$151,COLUMNS('Input Wonen'!J:L),FALSE),"") -> Honingraat; vlakke binnendeur | L143: BI08.E | M143: =IFERROR(VLOOKUP(L143,'Input Wonen'!$P$13:$T$151,COLUMNS('Input Wonen'!P:Q),FALSE),"") -> Binnendeuren | N143: =IFERROR(VLOOKUP(L143,'Input Wonen'!$P$13:$T$151,COLUMNS('Input Wonen'!P:R),FALSE),"") -> Honingraat; vlakke binnendeur
D144: BI10.t | E144: =VLOOKUP(D144,'Input Wonen'!$D$13:$H$151,2,FALSE) -> Binnendorpels | F144: =VLOOKUP(D144,'Input Wonen'!$D$13:$H$151,3,FALSE) -> Gegoten composietsteen | H144: BI10.HNN | I144: =IFERROR(VLOOKUP(H144,'Input Wonen'!$J$13:$N$151,COLUMNS('Input Wonen'!J:K),FALSE),"") -> Binnendorpels | J144: =IFERROR(VLOOKUP(H144,'Input Wonen'!$J$13:$N$151,COLUMNS('Input Wonen'!J:L),FALSE),"") -> Kunststeen | L144: BI10.E | M144: =IFERROR(VLOOKUP(L144,'Input Wonen'!$P$13:$T$151,COLUMNS('Input Wonen'!P:Q),FALSE),"") -> Binnendorpels | N144: =IFERROR(VLOOKUP(L144,'Input Wonen'!$P$13:$T$151,COLUMNS('Input Wonen'!P:R),FALSE),"") -> Kunststeen
E145: Klimaatinstallaties | I145: Klimaatinstallaties | M145: Klimaatinstallaties
D146: KL02.t | E146: =VLOOKUP(D146,'Input Wonen'!$D$13:$H$151,2,FALSE) -> Warmtedistributiesysteem | F146: =VLOOKUP(D146,'Input Wonen'!$D$13:$H$151,3,FALSE) -> CV-leidingen incl. koppelingen + verdeling | H146: KL02.HNN | I146: =IFERROR(VLOOKUP(H146,'Input Wonen'!$J$13:$N$151,COLUMNS('Input Wonen'!J:K),FALSE),"") -> Warmtedistributiesysteem | J146: =IFERROR(VLOOKUP(H146,'Input Wonen'!$J$13:$N$151,COLUMNS('Input Wonen'!J:L),FALSE),"") -> CV-leidingen incl. koppelingen + verdeling | L146: KL02.E | M146: =IFERROR(VLOOKUP(L146,'Input Wonen'!$P$13:$T$151,COLUMNS('Input Wonen'!P:Q),FALSE),"") -> Warmtedistributiesysteem | N146: =IFERROR(VLOOKUP(L146,'Input Wonen'!$P$13:$T$151,COLUMNS('Input Wonen'!P:R),FALSE),"") -> CV-leidingen incl. koppelingen + verdeling
D147: KL03.t | E147: =VLOOKUP(D147,'Input Wonen'!$D$13:$H$151,2,FALSE) -> Warmteafgiftesysteem | F147: =VLOOKUP(D147,'Input Wonen'!$D$13:$H$151,3,FALSE) -> Vloerverwarming 95 W/m2 | H147: KL03.HNN | I147: =IFERROR(VLOOKUP(H147,'Input Wonen'!$J$13:$N$151,COLUMNS('Input Wonen'!J:K),FALSE),"") -> Warmteafgiftesysteem | J147: =IFERROR(VLOOKUP(H147,'Input Wonen'!$J$13:$N$151,COLUMNS('Input Wonen'!J:L),FALSE),"") -> Vloerverwarming 95 W/m2 | L147: KL03.E | M147: =IFERROR(VLOOKUP(L147,'Input Wonen'!$P$13:$T$151,COLUMNS('Input Wonen'!P:Q),FALSE),"") -> Warmteafgiftesysteem | N147: =IFERROR(VLOOKUP(L147,'Input Wonen'!$P$13:$T$151,COLUMNS('Input Wonen'!P:R),FALSE),"") -> Vloerverwarming 95 W/m2
D148: KL01.t | E148: =VLOOKUP(D148,'Input Wonen'!$D$13:$H$151,2,FALSE) -> Warmteopwekkinginstallatie | F148: =VLOOKUP(D148,'Input Wonen'!$D$13:$H$151,3,FALSE) -> Warmtepomp luchtwater 10kW | H148: KL01.HNN | I148: =IFERROR(VLOOKUP(H148,'Input Wonen'!$J$13:$N$151,COLUMNS('Input Wonen'!J:K),FALSE),"") -> Warmteopwekkinginstallatie | J148: =IFERROR(VLOOKUP(H148,'Input Wonen'!$J$13:$N$151,COLUMNS('Input Wonen'!J:L),FALSE),"") -> Warmtepomp luchtwater 10kW | L148: KL01.E | M148: =IFERROR(VLOOKUP(L148,'Input Wonen'!$P$13:$T$151,COLUMNS('Input Wonen'!P:Q),FALSE),"") -> Warmteopwekkinginstallatie | N148: =IFERROR(VLOOKUP(L148,'Input Wonen'!$P$13:$T$151,COLUMNS('Input Wonen'!P:R),FALSE),"") -> Warmtepomp luchtwater 10kW
D149: KL05.t | E149: =VLOOKUP(D149,'Input Wonen'!$D$13:$H$151,2,FALSE) -> Luchtdistributiesysteem | F149: =VLOOKUP(D149,'Input Wonen'!$D$13:$H$151,3,FALSE) -> VLA ventilatiesysteem, type D met centrale wtw; W-bouw, individueel | H149: KL05.HNN | I149: =IFERROR(VLOOKUP(H149,'Input Wonen'!$J$13:$N$151,COLUMNS('Input Wonen'!J:K),FALSE),"") -> Luchtdistributiesysteem | J149: =IFERROR(VLOOKUP(H149,'Input Wonen'!$J$13:$N$151,COLUMNS('Input Wonen'!J:L),FALSE),"") -> VLA ventilatiesysteem, type D met centrale wtw; W-bouw, individueel | L149: KL05.E | M149: =IFERROR(VLOOKUP(L149,'Input Wonen'!$P$13:$T$151,COLUMNS('Input Wonen'!P:Q),FALSE),"") -> Luchtdistributiesysteem | N149: =IFERROR(VLOOKUP(L149,'Input Wonen'!$P$13:$T$151,COLUMNS('Input Wonen'!P:R),FALSE),"") -> VLA ventilatiesysteem, type D met centrale wtw; W-bouw, individueel
E150: Elektrische installaties | I150: Elektrische installaties | M150: Elektrische installaties
D151: EL01.t | E151: =VLOOKUP(D151,'Input Wonen'!$D$13:$H$151,2,FALSE) -> Elektriciteitsleidingen | F151: =VLOOKUP(D151,'Input Wonen'!$D$13:$H$151,3,FALSE) -> Geïsoleerde installatiedraad + mantelbuis | H151: EL01.HNN | I151: =IFERROR(VLOOKUP(H151,'Input Wonen'!$J$13:$N$151,COLUMNS('Input Wonen'!J:K),FALSE),"") -> Elektriciteitsleidingen | J151: =IFERROR(VLOOKUP(H151,'Input Wonen'!$J$13:$N$151,COLUMNS('Input Wonen'!J:L),FALSE),"") -> Geïsoleerde installatiedraad + mantelbuis | L151: EL01.E | M151: =IFERROR(VLOOKUP(L151,'Input Wonen'!$P$13:$T$151,COLUMNS('Input Wonen'!P:Q),FALSE),"") -> Elektriciteitsleidingen | N151: =IFERROR(VLOOKUP(L151,'Input Wonen'!$P$13:$T$151,COLUMNS('Input Wonen'!P:R),FALSE),"") -> Geïsoleerde installatiedraad + mantelbuis
D152: EL02.t | E152: =VLOOKUP(D152,'Input Wonen'!$D$13:$H$151,2,FALSE) -> Pv-panelen, hellend dak | F152: =VLOOKUP(D152,'Input Wonen'!$D$13:$H$151,3,FALSE) -> Mono-Si; incl. inverter+kabels | H152: EL02.HNN | I152: =IFERROR(VLOOKUP(H152,'Input Wonen'!$J$13:$N$151,COLUMNS('Input Wonen'!J:K),FALSE),"") -> Pv-panelen, hellend dak | J152: =IFERROR(VLOOKUP(H152,'Input Wonen'!$J$13:$N$151,COLUMNS('Input Wonen'!J:L),FALSE),"") -> Exasun Xglass | L152: EL02.E | M152: =IFERROR(VLOOKUP(L152,'Input Wonen'!$P$13:$T$151,COLUMNS('Input Wonen'!P:Q),FALSE),"") -> Pv-panelen, hellend dak | N152: =IFERROR(VLOOKUP(L152,'Input Wonen'!$P$13:$T$151,COLUMNS('Input Wonen'!P:R),FALSE),"") -> Exasun Xroof (deels tvv van dakpannen)
E153: Toe- en afvoeren | I153: Toe- en afvoeren | M153: Toe- en afvoeren
D154: TO01.t | E154: =VLOOKUP(D154,'Input Wonen'!$D$13:$H$151,2,FALSE) -> Waterleidingen | F154: =VLOOKUP(D154,'Input Wonen'!$D$13:$H$151,3,FALSE) -> Polyetheen; leiding+mantelbuis | H154: TO01.HNN | I154: =IFERROR(VLOOKUP(H154,'Input Wonen'!$J$13:$N$151,COLUMNS('Input Wonen'!J:K),FALSE),"") -> Waterleidingen | J154: =IFERROR(VLOOKUP(H154,'Input Wonen'!$J$13:$N$151,COLUMNS('Input Wonen'!J:L),FALSE),"") -> Polyetheen | L154: TO01.E | M154: =IFERROR(VLOOKUP(L154,'Input Wonen'!$P$13:$T$151,COLUMNS('Input Wonen'!P:Q),FALSE),"") -> Waterleidingen | N154: =IFERROR(VLOOKUP(L154,'Input Wonen'!$P$13:$T$151,COLUMNS('Input Wonen'!P:R),FALSE),"") -> Polyetheen
D155: TO02.t | E155: =VLOOKUP(D155,'Input Wonen'!$D$13:$H$151,2,FALSE) -> Buitenriolering kavel | F155: =VLOOKUP(D155,'Input Wonen'!$D$13:$H$151,3,FALSE) -> PVC | H155: TO02.HNN | I155: =IFERROR(VLOOKUP(H155,'Input Wonen'!$J$13:$N$151,COLUMNS('Input Wonen'!J:K),FALSE),"") -> Buitenriolering | J155: =IFERROR(VLOOKUP(H155,'Input Wonen'!$J$13:$N$151,COLUMNS('Input Wonen'!J:L),FALSE),"") -> Gerecycled PVC (Pipelife) | L155: TO02.E | M155: =IFERROR(VLOOKUP(L155,'Input Wonen'!$P$13:$T$151,COLUMNS('Input Wonen'!P:Q),FALSE),"") -> Buitenriolering | N155: =IFERROR(VLOOKUP(L155,'Input Wonen'!$P$13:$T$151,COLUMNS('Input Wonen'!P:R),FALSE),"") -> Gerecycled PVC (Pipelife)
D156: TO03.t | E156: =VLOOKUP(D156,'Input Wonen'!$D$13:$H$151,2,FALSE) -> Binnenriolering | F156: =VLOOKUP(D156,'Input Wonen'!$D$13:$H$151,3,FALSE) -> PVC | H156: TO03.HNN | I156: =IFERROR(VLOOKUP(H156,'Input Wonen'!$J$13:$N$151,COLUMNS('Input Wonen'!J:K),FALSE),"") -> Binnenriolering | J156: =IFERROR(VLOOKUP(H156,'Input Wonen'!$J$13:$N$151,COLUMNS('Input Wonen'!J:L),FALSE),"") -> Gerecycled PVC (Pipelife) | L156: TO03.E | M156: =IFERROR(VLOOKUP(L156,'Input Wonen'!$P$13:$T$151,COLUMNS('Input Wonen'!P:Q),FALSE),"") -> Binnenriolering | N156: =IFERROR(VLOOKUP(L156,'Input Wonen'!$P$13:$T$151,COLUMNS('Input Wonen'!P:R),FALSE),"") -> Gerecycled PVC (Pipelife)
D157: TO04.t | E157: =VLOOKUP(D157,'Input Wonen'!$D$13:$H$151,2,FALSE) -> Hemelwaterafvoer | F157: =VLOOKUP(D157,'Input Wonen'!$D$13:$H$151,3,FALSE) -> PVC | H157: TO04.HNN | I157: =IFERROR(VLOOKUP(H157,'Input Wonen'!$J$13:$N$151,COLUMNS('Input Wonen'!J:K),FALSE),"") -> Hemelwaterafvoer | J157: =IFERROR(VLOOKUP(H157,'Input Wonen'!$J$13:$N$151,COLUMNS('Input Wonen'!J:L),FALSE),"") -> Gerecycled PVC (Pipelife) | L157: TO04.E | M157: =IFERROR(VLOOKUP(L157,'Input Wonen'!$P$13:$T$151,COLUMNS('Input Wonen'!P:Q),FALSE),"") -> Hemelwaterafvoer | N157: =IFERROR(VLOOKUP(L157,'Input Wonen'!$P$13:$T$151,COLUMNS('Input Wonen'!P:R),FALSE),"") -> Gerecycled PVC (Pipelife)
D158: TO05.t | E158: =VLOOKUP(D158,'Input Wonen'!$D$13:$H$151,2,FALSE) -> Dakgoot | F158: =VLOOKUP(D158,'Input Wonen'!$D$13:$H$151,3,FALSE) -> Aluminium | H158: TO05.HNN | I158: =IFERROR(VLOOKUP(H158,'Input Wonen'!$J$13:$N$151,COLUMNS('Input Wonen'!J:K),FALSE),"") -> Dakgoot | J158: =IFERROR(VLOOKUP(H158,'Input Wonen'!$J$13:$N$151,COLUMNS('Input Wonen'!J:L),FALSE),"") -> Aluminium | L158: TO05.E | M158: =IFERROR(VLOOKUP(L158,'Input Wonen'!$P$13:$T$151,COLUMNS('Input Wonen'!P:Q),FALSE),"") -> Dakgoot | N158: =IFERROR(VLOOKUP(L158,'Input Wonen'!$P$13:$T$151,COLUMNS('Input Wonen'!P:R),FALSE),"") -> Aluminium
E159: Verkeersruimte | I159: Verkeersruimte | M159: Verkeersruimte
D160: VE01.t | E160: =VLOOKUP(D160,'Input Wonen'!$D$13:$H$151,2,FALSE) -> Interne trap | F160: =VLOOKUP(D160,'Input Wonen'!$D$13:$H$151,3,FALSE) -> Eur. loofhout; geschilderd | H160: VE01.HNN | I160: =IFERROR(VLOOKUP(H160,'Input Wonen'!$J$13:$N$151,COLUMNS('Input Wonen'!J:K),FALSE),"") -> Interne trap | J160: =IFERROR(VLOOKUP(H160,'Input Wonen'!$J$13:$N$151,COLUMNS('Input Wonen'!J:L),FALSE),"") -> Eur. loofhout; geschilderd | L160: VE01.E | M160: =IFERROR(VLOOKUP(L160,'Input Wonen'!$P$13:$T$151,COLUMNS('Input Wonen'!P:Q),FALSE),"") -> Interne trap | N160: =IFERROR(VLOOKUP(L160,'Input Wonen'!$P$13:$T$151,COLUMNS('Input Wonen'!P:R),FALSE),"") -> Eur. loofhout; geschilderd
D161: VE05.t | E161: =VLOOKUP(D161,'Input Wonen'!$D$13:$H$151,2,FALSE) -> Leuningen | F161: =VLOOKUP(D161,'Input Wonen'!$D$13:$H$151,3,FALSE) -> Eur. loofhout; duurzame bosbouw | H161: VE05.HNN | I161: =IFERROR(VLOOKUP(H161,'Input Wonen'!$J$13:$N$151,COLUMNS('Input Wonen'!J:K),FALSE),"") -> Leuningen | J161: =IFERROR(VLOOKUP(H161,'Input Wonen'!$J$13:$N$151,COLUMNS('Input Wonen'!J:L),FALSE),"") -> Eur. loofhout; duurzame bosbouw | L161: VE05.E | M161: =IFERROR(VLOOKUP(L161,'Input Wonen'!$P$13:$T$151,COLUMNS('Input Wonen'!P:Q),FALSE),"") -> Leuningen | N161: =IFERROR(VLOOKUP(L161,'Input Wonen'!$P$13:$T$151,COLUMNS('Input Wonen'!P:R),FALSE),"") -> Eur. loofhout; duurzame bosbouw
D162: VE03.t | E162: =VLOOKUP(D162,'Input Wonen'!$D$13:$H$151,2,FALSE) -> Balustrades | F162: =VLOOKUP(D162,'Input Wonen'!$D$13:$H$151,3,FALSE) -> Eur. loofhout; spijlen; duurzame bosbouw | H162: VE03.HNN | I162: =IFERROR(VLOOKUP(H162,'Input Wonen'!$J$13:$N$151,COLUMNS('Input Wonen'!J:K),FALSE),"") -> Balustrades | J162: =IFERROR(VLOOKUP(H162,'Input Wonen'!$J$13:$N$151,COLUMNS('Input Wonen'!J:L),FALSE),"") -> Eur. loofhout; spijlen; duurzame bosbouw | L162: VE03.E | M162: =IFERROR(VLOOKUP(L162,'Input Wonen'!$P$13:$T$151,COLUMNS('Input Wonen'!P:Q),FALSE),"") -> Balustrades | N162: =IFERROR(VLOOKUP(L162,'Input Wonen'!$P$13:$T$151,COLUMNS('Input Wonen'!P:R),FALSE),"") -> Eur. loofhout; spijlen; duurzame bosbouw
E163: Vaste voorzieningen | I163: Vaste voorzieningen | M163: Vaste voorzieningen
D164: VA01.t | E164: =VLOOKUP(D164,'Input Wonen'!$D$13:$H$151,2,FALSE) -> Toiletten; wandcloset + fontein | F164: =VLOOKUP(D164,'Input Wonen'!$D$13:$H$151,3,FALSE) -> Porselein | H164: VA01.HNN | I164: =IFERROR(VLOOKUP(H164,'Input Wonen'!$J$13:$N$151,COLUMNS('Input Wonen'!J:K),FALSE),"") -> Toiletten; wandcloset + fontein | J164: =IFERROR(VLOOKUP(H164,'Input Wonen'!$J$13:$N$151,COLUMNS('Input Wonen'!J:L),FALSE),"") -> Porselein | L164: VA01.E | M164: =IFERROR(VLOOKUP(L164,'Input Wonen'!$P$13:$T$151,COLUMNS('Input Wonen'!P:Q),FALSE),"") -> Toiletten; wandcloset + fontein | N164: =IFERROR(VLOOKUP(L164,'Input Wonen'!$P$13:$T$151,COLUMNS('Input Wonen'!P:R),FALSE),"") -> Porselein
D165: VA02.t | E165: =VLOOKUP(D165,'Input Wonen'!$D$13:$H$151,2,FALSE) -> Wastafel | F165: =VLOOKUP(D165,'Input Wonen'!$D$13:$H$151,3,FALSE) -> Keramisch | H165: VA02.HNN | I165: =IFERROR(VLOOKUP(H165,'Input Wonen'!$J$13:$N$151,COLUMNS('Input Wonen'!J:K),FALSE),"") -> Wastafel | J165: =IFERROR(VLOOKUP(H165,'Input Wonen'!$J$13:$N$151,COLUMNS('Input Wonen'!J:L),FALSE),"") -> Keramisch | L165: VA02.E | M165: =IFERROR(VLOOKUP(L165,'Input Wonen'!$P$13:$T$151,COLUMNS('Input Wonen'!P:Q),FALSE),"") -> Wastafel | N165: =IFERROR(VLOOKUP(L165,'Input Wonen'!$P$13:$T$151,COLUMNS('Input Wonen'!P:R),FALSE),"") -> Keramisch
D166: VA03.t | E166: =VLOOKUP(D166,'Input Wonen'!$D$13:$H$151,2,FALSE) -> Inloopdouche | F166: =VLOOKUP(D166,'Input Wonen'!$D$13:$H$151,3,FALSE) -> Gipsblokken + tegels incl. rvs afvoergoot | H166: VA03.HNN | I166: =IFERROR(VLOOKUP(H166,'Input Wonen'!$J$13:$N$151,COLUMNS('Input Wonen'!J:K),FALSE),"") -> Inloopdouche | J166: =IFERROR(VLOOKUP(H166,'Input Wonen'!$J$13:$N$151,COLUMNS('Input Wonen'!J:L),FALSE),"") -> Gipsblokken + tegels incl. rvs afvoergoot | L166: VA03.E | M166: =IFERROR(VLOOKUP(L166,'Input Wonen'!$P$13:$T$151,COLUMNS('Input Wonen'!P:Q),FALSE),"") -> Inloopdouche | N166: =IFERROR(VLOOKUP(L166,'Input Wonen'!$P$13:$T$151,COLUMNS('Input Wonen'!P:R),FALSE),"") -> Gipsblokken + tegels incl. rvs afvoergoot
E167: Overige kosten | I167: Overige kosten | M167: Overige kosten
D168: OK01.t | E168: =VLOOKUP(D168,'Input Wonen'!$D$13:$H$165,2,FALSE) -> Grondwerk, maatvoering, invoeren en sparingen | H168: OK01.HNN | I168: =VLOOKUP(H168,'Input Wonen'!$J$13:$N$165,2,FALSE) -> Grondwerk, maatvoering, invoeren en sparingen | L168: OK01.E | M168: =VLOOKUP(H168,'Input Wonen'!$J$13:$N$165,2,FALSE) -> Grondwerk, maatvoering, invoeren en sparingen
D169: OK02.t | E169: =VLOOKUP(D169,'Input Wonen'!$D$13:$H$165,2,FALSE) -> Gevelsteiger | F169: =VLOOKUP(D169,'Input Wonen'!$D$13:$H$165,3,FALSE) -> 0 | H169: OK02.HNN | I169: =VLOOKUP(H169,'Input Wonen'!$J$13:$N$165,2,FALSE) -> Gevelsteiger | L169: OK02.E | M169: =VLOOKUP(H169,'Input Wonen'!$J$13:$N$165,2,FALSE) -> Gevelsteiger
D170: OK04.t | E170: =VLOOKUP(D170,'Input Wonen'!$D$13:$H$165,2,FALSE) -> Afbouwwerkzaamheden (klein timmerwerk, schilderwerk) | F170: =VLOOKUP(D170,'Input Wonen'!$D$13:$H$165,3,FALSE) -> 0 | H170: OK04.HNN | I170: =VLOOKUP(H170,'Input Wonen'!$J$13:$N$165,2,FALSE) -> Afbouwwerkzaamheden (klein timmerwerk, schilderwerk) | L170: OK04.E | M170: =VLOOKUP(H170,'Input Wonen'!$J$13:$N$165,2,FALSE) -> Afbouwwerkzaamheden (klein timmerwerk, schilderwerk)
D171: OK10b.t | E171: =VLOOKUP(D171,'Input Wonen'!$D$13:$H$168,2,FALSE) -> Installaties (E, W & klimaat) grondgebonden woning hoek | F171: =VLOOKUP(D171,'Input Wonen'!$D$13:$H$168,3,FALSE) -> 0 | H171: OK10b.HNN | I171: =VLOOKUP(H171,'Input Wonen'!$J$13:$N$168,2,FALSE) -> Installaties (E, W & klimaat) grondgebonden woning hoek | L171: OK10b.E | M171: =VLOOKUP(D171,'Input Wonen'!$D$13:$H$168,2,FALSE) -> Installaties (E, W & klimaat) grondgebonden woning hoek
J173: =100*PI()*0.15^2 -> 7.068583471
E174: Traditioneel (RVO Referentieprojecten) | I174: Het Nieuwe Normaal | M174: Het Nieuwe Normaal ambitieus
E176: WONEN | I176: WONEN | M176: WONEN
H183: =0.696-I183 -> 0.6105 | I183: =0.095-0.0095 -> 0.0855
E190: Woning 2,5 laags | I190: Woning 2,5 laags | M190: Woning 2,5 laags
E191: Element | F191: Materialisatie | I191: Element | J191: Materialisatie | M191: Element | N191: Materialisatie
E193: Fundering | I193: Fundering | M193: Fundering
D194: FU10.t | E194: =VLOOKUP(D194,'Input Wonen'!$D$13:$H$151,2,FALSE) -> Funderingspaal, ⌀ 300mm; l=15,0m | F194: =VLOOKUP(D194,'Input Wonen'!$D$13:$H$151,3,FALSE) -> Schroefpaal; beton, in het werk gestort, C20/25,CEMIII; incl.wapening | H194: FU10.HNN | I194: =IFERROR(VLOOKUP(H194,'Input Wonen'!$J$13:$N$151,COLUMNS('Input Wonen'!J:K),FALSE),"") -> Funderingspaal, ⌀ 300mm; l=15,0m | J194: =IFERROR(VLOOKUP(H194,'Input Wonen'!$J$13:$N$151,COLUMNS('Input Wonen'!J:L),FALSE),"") -> Beton met 56% aan secundair aandeel (UMC) | L194: FU10.E | M194: =IFERROR(VLOOKUP(L194,'Input Wonen'!$P$13:$T$151,COLUMNS('Input Wonen'!P:Q),FALSE),"") -> Funderingspaal, ⌀ 300mm; l=15,0m | N194: =IFERROR(VLOOKUP(L194,'Input Wonen'!$P$13:$T$151,COLUMNS('Input Wonen'!P:R),FALSE),"") -> Beton met 56% aan secundair aandeel (UMC)
D195: FU09.t | E195: =VLOOKUP(D195,'Input Wonen'!$D$13:$H$151,2,FALSE) -> Funderingsbalken, 400x500mm | F195: =VLOOKUP(D195,'Input Wonen'!$D$13:$H$151,3,FALSE) -> In het werk gestort | H195: FU09.HNN | I195: =IFERROR(VLOOKUP(H195,'Input Wonen'!$J$13:$N$151,COLUMNS('Input Wonen'!J:K),FALSE),"") -> Funderingsbalken, 400x500mm | J195: =IFERROR(VLOOKUP(H195,'Input Wonen'!$J$13:$N$151,COLUMNS('Input Wonen'!J:L),FALSE),"") -> Beton met 56% aan secundair aandeel (UMC) | L195: FU09.E | M195: =IFERROR(VLOOKUP(L195,'Input Wonen'!$P$13:$T$151,COLUMNS('Input Wonen'!P:Q),FALSE),"") -> Funderingsbalken, 400x500mm | N195: =IFERROR(VLOOKUP(L195,'Input Wonen'!$P$13:$T$151,COLUMNS('Input Wonen'!P:R),FALSE),"") -> Beton met 56% aan secundair aandeel (UMC)
D196: FU05.t | E196: =VLOOKUP(D196,'Input Wonen'!$D$13:$H$151,2,FALSE) -> Bodemafsluiting, zand | F196: =VLOOKUP(D196,'Input Wonen'!$D$13:$H$151,3,FALSE) -> Zand | H196: FU05.HNN | I196: =IFERROR(VLOOKUP(H196,'Input Wonen'!$J$13:$N$151,COLUMNS('Input Wonen'!J:K),FALSE),"") -> Bodemafsluiting, 100 zand | J196: =IFERROR(VLOOKUP(H196,'Input Wonen'!$J$13:$N$151,COLUMNS('Input Wonen'!J:L),FALSE),"") -> Zand | L196: FU05.E | M196: =IFERROR(VLOOKUP(L196,'Input Wonen'!$P$13:$T$151,COLUMNS('Input Wonen'!P:Q),FALSE),"") -> Bodemafsluiting, 100 zand | N196: =IFERROR(VLOOKUP(L196,'Input Wonen'!$P$13:$T$151,COLUMNS('Input Wonen'!P:R),FALSE),"") -> Zand
D197: FU07.t | E197: =VLOOKUP(D197,'Input Wonen'!$D$13:$H$151,2,FALSE) -> Opgaand metselwerk | F197: =VLOOKUP(D197,'Input Wonen'!$D$13:$H$151,3,FALSE) -> Kalkzandsteen lijmblokken, 100mm | H197: FU07.HNN | I197: =IFERROR(VLOOKUP(H197,'Input Wonen'!$J$13:$N$151,COLUMNS('Input Wonen'!J:K),FALSE),"") -> Opgaand metselwerk | J197: =IFERROR(VLOOKUP(H197,'Input Wonen'!$J$13:$N$151,COLUMNS('Input Wonen'!J:L),FALSE),"") -> Kalkzandsteen lijmblokken, 100mm | L197: FU07.E | M197: =IFERROR(VLOOKUP(L197,'Input Wonen'!$P$13:$T$151,COLUMNS('Input Wonen'!P:Q),FALSE),"") -> Opgaand metselwerk | N197: =IFERROR(VLOOKUP(L197,'Input Wonen'!$P$13:$T$151,COLUMNS('Input Wonen'!P:R),FALSE),"") -> Kalkzandsteen lijmblokken, 100mm
E198: Vloeren | I198: Vloeren | M198: Vloeren
D199: VL01.t | E199: =VLOOKUP(D199,'Input Wonen'!$D$13:$H$151,2,FALSE) -> BG: ribbenvloer, vrijdragend incl. isolatie (Rc=3,7) | F199: =VLOOKUP(D199,'Input Wonen'!$D$13:$H$151,3,FALSE) -> Prefab beton | H199: VL01.HNN | I199: =IFERROR(VLOOKUP(H199,'Input Wonen'!$J$13:$N$151,COLUMNS('Input Wonen'!J:K),FALSE),"") -> BG: kanaalplaatvloer, 200mm incl. isolatie (Rc=3,7) | J199: =IFERROR(VLOOKUP(H199,'Input Wonen'!$J$13:$N$151,COLUMNS('Input Wonen'!J:L),FALSE),"") -> Kanaalplaat, remontabel (28% recyclaat) | L199: VL01.E | M199: =IFERROR(VLOOKUP(L199,'Input Wonen'!$P$13:$T$151,COLUMNS('Input Wonen'!P:Q),FALSE),"") -> BG: kanaalplaatvloer, 200mm incl. isolatie (Rc=3,7) | N199: =IFERROR(VLOOKUP(L199,'Input Wonen'!$P$13:$T$151,COLUMNS('Input Wonen'!P:R),FALSE),"") -> Kanaalplaat, remontabel (28% recyclaat)
D200: VL07.t | E200: =VLOOKUP(D200,'Input Wonen'!$D$13:$H$151,2,FALSE) -> Dekvloeren, 60mm | F200: =VLOOKUP(D200,'Input Wonen'!$D$13:$H$151,3,FALSE) -> Zandcement dekvloer | H200: VL07.HNN | I200: =IFERROR(VLOOKUP(H200,'Input Wonen'!$J$13:$N$151,COLUMNS('Input Wonen'!J:K),FALSE),"") -> Dekvloeren, 60mm | J200: =IFERROR(VLOOKUP(H200,'Input Wonen'!$J$13:$N$151,COLUMNS('Input Wonen'!J:L),FALSE),"") -> Fermacell honingraatvloer (op houten vloer) | L200: VL07.E | M200: =IFERROR(VLOOKUP(L200,'Input Wonen'!$P$13:$T$151,COLUMNS('Input Wonen'!P:Q),FALSE),"") -> Dekvloeren, 60mm | N200: =IFERROR(VLOOKUP(L200,'Input Wonen'!$P$13:$T$151,COLUMNS('Input Wonen'!P:R),FALSE),"") -> Fermacell honingraatvloer (op houten vloer)
D201: VL03.t | E201: =VLOOKUP(D201,'Input Wonen'!$D$13:$H$151,2,FALSE) -> Vloertegelwerk toilet | F201: =VLOOKUP(D201,'Input Wonen'!$D$13:$H$151,3,FALSE) -> Keramische tegels, geglazuurd/gelijmd | H201: VL03.HNN | I201: =IFERROR(VLOOKUP(H201,'Input Wonen'!$J$13:$N$151,COLUMNS('Input Wonen'!J:K),FALSE),"") -> Vloertegelwerk toilet | J201: =IFERROR(VLOOKUP(H201,'Input Wonen'!$J$13:$N$151,COLUMNS('Input Wonen'!J:L),FALSE),"") -> Mosa C2C vloertegels | L201: VL03.E | M201: =IFERROR(VLOOKUP(L201,'Input Wonen'!$P$13:$T$151,COLUMNS('Input Wonen'!P:Q),FALSE),"") -> Vloertegelwerk toilet | N201: =IFERROR(VLOOKUP(L201,'Input Wonen'!$P$13:$T$151,COLUMNS('Input Wonen'!P:R),FALSE),"") -> Mosa C2C vloertegels (losmaakbaar)
D202: VL20.t | E202: =VLOOKUP(D202,'Input Wonen'!$D$13:$H$151,2,FALSE) -> VV: kanaalplaatvloer, 200mm | F202: =VLOOKUP(D202,'Input Wonen'!$D$13:$H$151,3,FALSE) -> Kanaalplaatvloer; prefab beton | H202: VL20.HNN | I202: =IFERROR(VLOOKUP(H202,'Input Wonen'!$J$13:$N$151,COLUMNS('Input Wonen'!J:K),FALSE),"") -> VV: kanaalplaatvloer, 200mm | J202: =IFERROR(VLOOKUP(H202,'Input Wonen'!$J$13:$N$151,COLUMNS('Input Wonen'!J:L),FALSE),"") -> Kanaalplaatvloer, 200mm (28% recyclaat) | L202: VL20.E | M202: =IFERROR(VLOOKUP(L202,'Input Wonen'!$P$13:$T$151,COLUMNS('Input Wonen'!P:Q),FALSE),"") -> VV: HSB (grondgeb.) | N202: =IFERROR(VLOOKUP(L202,'Input Wonen'!$P$13:$T$151,COLUMNS('Input Wonen'!P:R),FALSE),"") -> HSB vloerelement (stijlen+OSB), 18mm; IsoVlas 60mm; gipsplaat (2x)
D203: VL07.t | E203: =VLOOKUP(D203,'Input Wonen'!$D$13:$H$151,2,FALSE) -> Dekvloeren, 60mm | F203: =VLOOKUP(D203,'Input Wonen'!$D$13:$H$151,3,FALSE) -> Zandcement dekvloer | H203: VL07.HNN | I203: =IFERROR(VLOOKUP(H203,'Input Wonen'!$J$13:$N$151,COLUMNS('Input Wonen'!J:K),FALSE),"") -> Dekvloeren, 60mm | J203: =IFERROR(VLOOKUP(H203,'Input Wonen'!$J$13:$N$151,COLUMNS('Input Wonen'!J:L),FALSE),"") -> Fermacell honingraatvloer (op houten vloer) | L203: VL07.E | M203: =IFERROR(VLOOKUP(L203,'Input Wonen'!$P$13:$T$151,COLUMNS('Input Wonen'!P:Q),FALSE),"") -> Dekvloeren, 60mm | N203: =IFERROR(VLOOKUP(L203,'Input Wonen'!$P$13:$T$151,COLUMNS('Input Wonen'!P:R),FALSE),"") -> Fermacell honingraatvloer (op houten vloer)
D204: VL04.t | E204: =VLOOKUP(D204,'Input Wonen'!$D$13:$H$151,2,FALSE) -> Vloertegelwerk badkamer | F204: =VLOOKUP(D204,'Input Wonen'!$D$13:$H$151,3,FALSE) -> Keramische tegels, geglazuurd/gelijmd | H204: VL04.HNN | I204: =IFERROR(VLOOKUP(H204,'Input Wonen'!$J$13:$N$151,COLUMNS('Input Wonen'!J:K),FALSE),"") -> Vloertegelwerk badkamer | J204: =IFERROR(VLOOKUP(H204,'Input Wonen'!$J$13:$N$151,COLUMNS('Input Wonen'!J:L),FALSE),"") -> Mosa C2C vloertegels | L204: VL04.E | M204: =IFERROR(VLOOKUP(L204,'Input Wonen'!$P$13:$T$151,COLUMNS('Input Wonen'!P:Q),FALSE),"") -> Vloertegelwerk badkamer | N204: =IFERROR(VLOOKUP(L204,'Input Wonen'!$P$13:$T$151,COLUMNS('Input Wonen'!P:R),FALSE),"") -> Mosa C2C vloertegels (losmaakbaar)
E205: Draagconstructie | I205: Draagconstructie | M205: Draagconstructie
D206: DR03.t | E206: =VLOOKUP(D206,'Input Wonen'!$D$13:$H$151,2,FALSE) -> Zwaar constructiestaal | F206: =VLOOKUP(D206,'Input Wonen'!$D$13:$H$151,3,FALSE) -> 7.820 kg/m3, incl. conservering | H206: DR03.HNN | I206: =IFERROR(VLOOKUP(H206,'Input Wonen'!$J$13:$N$151,COLUMNS('Input Wonen'!J:K),FALSE),"") -> Zwaar constructiestaal | J206: =IFERROR(VLOOKUP(H206,'Input Wonen'!$J$13:$N$151,COLUMNS('Input Wonen'!J:L),FALSE),"") -> 7.820 kg/m3, incl. conservering | L206: DR03.E | M206: =IFERROR(VLOOKUP(L206,'Input Wonen'!$P$13:$T$151,COLUMNS('Input Wonen'!P:Q),FALSE),"") -> Zwaar constructiestaal | N206: =IFERROR(VLOOKUP(L206,'Input Wonen'!$P$13:$T$151,COLUMNS('Input Wonen'!P:R),FALSE),"") -> 7.820 kg/m3, incl. conservering
E207: Gevel | I207: Gevel | M207: Gevel
D208: GE50.t | E208: =VLOOKUP(D208,'Input Wonen'!$D$13:$H$151,2,FALSE) -> Gevelkozijnen; incl. HR++ beglazing | F208: =VLOOKUP(D208,'Input Wonen'!$D$13:$H$151,3,FALSE) -> Az. loofhout (Meranti), geschilderd | H208: GE50.HNN | I208: =IFERROR(VLOOKUP(H208,'Input Wonen'!$J$13:$N$151,COLUMNS('Input Wonen'!J:K),FALSE),"") -> Gevelkozijnen; incl. HR++ beglazing | J208: =IFERROR(VLOOKUP(H208,'Input Wonen'!$J$13:$N$151,COLUMNS('Input Wonen'!J:L),FALSE),"") -> Europees naaldhout, geschilderd | L208: GE50.E | M208: =IFERROR(VLOOKUP(L208,'Input Wonen'!$P$13:$T$151,COLUMNS('Input Wonen'!P:Q),FALSE),"") -> Gevelkozijnen; incl. Isomax beglazing | N208: =IFERROR(VLOOKUP(L208,'Input Wonen'!$P$13:$T$151,COLUMNS('Input Wonen'!P:R),FALSE),"") -> Europees naaldhout, geschilderd
D209: GE04.t | E209: =VLOOKUP(D209,'Input Wonen'!$D$13:$H$151,2,FALSE) -> Vensterbanken | F209: =VLOOKUP(D209,'Input Wonen'!$D$13:$H$151,3,FALSE) -> Composietsteen | H209: GE04.HNN | I209: =IFERROR(VLOOKUP(H209,'Input Wonen'!$J$13:$N$151,COLUMNS('Input Wonen'!J:K),FALSE),"") -> Vensterbanken | J209: =IFERROR(VLOOKUP(H209,'Input Wonen'!$J$13:$N$151,COLUMNS('Input Wonen'!J:L),FALSE),"") -> Composietsteen | L209: GE04.E | M209: =IFERROR(VLOOKUP(L209,'Input Wonen'!$P$13:$T$151,COLUMNS('Input Wonen'!P:Q),FALSE),"") -> Vensterbanken | N209: =IFERROR(VLOOKUP(L209,'Input Wonen'!$P$13:$T$151,COLUMNS('Input Wonen'!P:R),FALSE),"") -> Composietsteen
D210: GE05.t | E210: =VLOOKUP(D210,'Input Wonen'!$D$13:$H$151,2,FALSE) -> Waterslagen | F210: =VLOOKUP(D210,'Input Wonen'!$D$13:$H$151,3,FALSE) -> Prefab beton | H210: GE05.HNN | I210: =IFERROR(VLOOKUP(H210,'Input Wonen'!$J$13:$N$151,COLUMNS('Input Wonen'!J:K),FALSE),"") -> Waterslagen | J210: =IFERROR(VLOOKUP(H210,'Input Wonen'!$J$13:$N$151,COLUMNS('Input Wonen'!J:L),FALSE),"") -> Prefab beton | L210: GE05.E | M210: =IFERROR(VLOOKUP(L210,'Input Wonen'!$P$13:$T$151,COLUMNS('Input Wonen'!P:Q),FALSE),"") -> Waterslagen | N210: =IFERROR(VLOOKUP(L210,'Input Wonen'!$P$13:$T$151,COLUMNS('Input Wonen'!P:R),FALSE),"") -> Prefab beton
D211: GE22.t | E211: =VLOOKUP(D211,'Input Wonen'!$D$13:$H$151,2,FALSE) -> Lateien | F211: =VLOOKUP(D211,'Input Wonen'!$D$13:$H$151,3,FALSE) -> Prefab beton | H211: GE22.HNN | I211: =IFERROR(VLOOKUP(H211,'Input Wonen'!$J$13:$N$151,COLUMNS('Input Wonen'!J:K),FALSE),"") -> Lateien | J211: =IFERROR(VLOOKUP(H211,'Input Wonen'!$J$13:$N$151,COLUMNS('Input Wonen'!J:L),FALSE),"") -> Prefab beton | L211: GE22.E | M211: =IFERROR(VLOOKUP(L211,'Input Wonen'!$P$13:$T$151,COLUMNS('Input Wonen'!P:Q),FALSE),"") -> Lateien | N211: =IFERROR(VLOOKUP(L211,'Input Wonen'!$P$13:$T$151,COLUMNS('Input Wonen'!P:R),FALSE),"") -> Prefab beton
D212: GE08.t | E212: =VLOOKUP(D212,'Input Wonen'!$D$13:$H$151,2,FALSE) -> Buitendeur; incl. glasopening 0,85m2 | F212: =VLOOKUP(D212,'Input Wonen'!$D$13:$H$151,3,FALSE) -> Onverduurzaamd hout, geverfd | H212: GE08.HNN | I212: =IFERROR(VLOOKUP(H212,'Input Wonen'!$J$13:$N$151,COLUMNS('Input Wonen'!J:K),FALSE),"") -> Buitendeur; incl. glasopening 0,85m2 | J212: =IFERROR(VLOOKUP(H212,'Input Wonen'!$J$13:$N$151,COLUMNS('Input Wonen'!J:L),FALSE),"") -> Onverduurzaamd hout, geverfd | L212: GE08.E | M212: =IFERROR(VLOOKUP(L212,'Input Wonen'!$P$13:$T$151,COLUMNS('Input Wonen'!P:Q),FALSE),"") -> Buitendeur; incl. glasopening 0,85m2 | N212: =IFERROR(VLOOKUP(L212,'Input Wonen'!$P$13:$T$151,COLUMNS('Input Wonen'!P:R),FALSE),"") -> Onverduurzaamd hout, geverfd
D213: GE09.t | E213: =VLOOKUP(D213,'Input Wonen'!$D$13:$H$151,2,FALSE) -> Buitenspouwblad, 100mm | F213: =VLOOKUP(D213,'Input Wonen'!$D$13:$H$151,3,FALSE) -> Baksteenmetselwerk | H213: GE09.HNN | I213: =IFERROR(VLOOKUP(H213,'Input Wonen'!$J$13:$N$151,COLUMNS('Input Wonen'!J:K),FALSE),"") -> Buitenspouwblad | J213: =IFERROR(VLOOKUP(H213,'Input Wonen'!$J$13:$N$151,COLUMNS('Input Wonen'!J:L),FALSE),"") -> Ecobrick Wienerberger | L213: GE09.E | M213: =IFERROR(VLOOKUP(L213,'Input Wonen'!$P$13:$T$151,COLUMNS('Input Wonen'!P:Q),FALSE),"") -> Buitenspouwblad | N213: =IFERROR(VLOOKUP(L213,'Input Wonen'!$P$13:$T$151,COLUMNS('Input Wonen'!P:R),FALSE),"") -> Houten gevelbekleding; Meranti delen
D214: GE26.t | E214: =VLOOKUP(D214,'Input Wonen'!$D$13:$H$151,2,FALSE) -> Isolatielagen, Rc=4,7 | F214: =VLOOKUP(D214,'Input Wonen'!$D$13:$H$151,3,FALSE) -> Glaswolplaten, MWA 2012 | H214: GE26.HNN | I214: =IFERROR(VLOOKUP(H214,'Input Wonen'!$J$13:$N$151,COLUMNS('Input Wonen'!J:K),FALSE),"") -> Isolatielagen, Rc=4,7 | J214: =IFERROR(VLOOKUP(H214,'Input Wonen'!$J$13:$N$151,COLUMNS('Input Wonen'!J:L),FALSE),"") -> Isovlas plaat, PN160mm | L214: GE10.E | M214: =IFERROR(VLOOKUP(L214,'Input Wonen'!$P$13:$T$151,COLUMNS('Input Wonen'!P:Q),FALSE),"") -> Isolatielagen, Rc=4,7 | N214: =IFERROR(VLOOKUP(L214,'Input Wonen'!$P$13:$T$151,COLUMNS('Input Wonen'!P:R),FALSE),"") -> Isovlas plaat, PN160mm
D215: GE11.t | E215: =VLOOKUP(D215,'Input Wonen'!$D$13:$H$151,2,FALSE) -> Binnenspouwblad, 100mm (bruto) | F215: =VLOOKUP(D215,'Input Wonen'!$D$13:$H$151,3,FALSE) -> Prefab beton | H215: GE11.HNN | I215: =IFERROR(VLOOKUP(H215,'Input Wonen'!$J$13:$N$151,COLUMNS('Input Wonen'!J:K),FALSE),"") -> Binnenspouwblad, 100mm (bruto) | J215: =IFERROR(VLOOKUP(H215,'Input Wonen'!$J$13:$N$151,COLUMNS('Input Wonen'!J:L),FALSE),"") -> Prefab beton (UMC) | L215: GE11.E | M215: =IFERROR(VLOOKUP(L215,'Input Wonen'!$P$13:$T$151,COLUMNS('Input Wonen'!P:Q),FALSE),"") -> Binnenspouwblad, HSB (bruto) | N215: =IFERROR(VLOOKUP(L215,'Input Wonen'!$P$13:$T$151,COLUMNS('Input Wonen'!P:R),FALSE),"") -> HSB element incl. Isovlas isolatie
E216: Daken | I216: Daken | M216: Daken
D217: DA17.t | E217: =VLOOKUP(D217,'Input Wonen'!$D$13:$H$151,2,FALSE) -> Dakconstructie, plat dak; kanaalplaat | F217: =VLOOKUP(D217,'Input Wonen'!$D$13:$H$151,3,FALSE) -> Kanaalplaatvloer, 200mm; prefab beton | H217: DA17.HNN | I217: =IFERROR(VLOOKUP(H217,'Input Wonen'!$J$13:$N$151,COLUMNS('Input Wonen'!J:K),FALSE),"") -> Dakconstructie, plat dak; kanaalplaat | J217: =IFERROR(VLOOKUP(H217,'Input Wonen'!$J$13:$N$151,COLUMNS('Input Wonen'!J:L),FALSE),"") -> Kanaalplaatvloer, 200mm; prefab beton | L217: DA17.E | M217: =IFERROR(VLOOKUP(L217,'Input Wonen'!$P$13:$T$151,COLUMNS('Input Wonen'!P:Q),FALSE),"") -> Dakconstructie, plat dak | N217: =IFERROR(VLOOKUP(L217,'Input Wonen'!$P$13:$T$151,COLUMNS('Input Wonen'!P:R),FALSE),"") -> HSB vloerelement (stijlen+OSB); IsoVlas 60mm; incl. gipskartonplafond
D218: DA16.t | E218: =VLOOKUP(D218,'Input Wonen'!$D$13:$H$151,2,FALSE) -> Isolatielagen; plat dak; Rc=6,3 | F218: =VLOOKUP(D218,'Input Wonen'!$D$13:$H$151,3,FALSE) -> EPS | H218: DA16.HNN | I218: =IFERROR(VLOOKUP(H218,'Input Wonen'!$J$13:$N$151,COLUMNS('Input Wonen'!J:K),FALSE),"") -> Isolatielagen; plat dak; Rc=6,3 | J218: =IFERROR(VLOOKUP(H218,'Input Wonen'!$J$13:$N$151,COLUMNS('Input Wonen'!J:L),FALSE),"") -> Houtvezel vlakke isolatieplaten | L218: DA16.E | M218: =IFERROR(VLOOKUP(L218,'Input Wonen'!$P$13:$T$151,COLUMNS('Input Wonen'!P:Q),FALSE),"") -> Isolatielagen; plat dak; Rc=6,3 | N218: =IFERROR(VLOOKUP(L218,'Input Wonen'!$P$13:$T$151,COLUMNS('Input Wonen'!P:R),FALSE),"") -> Houtvezel vlakke isolatieplaten
D219: DA09.t | E219: =VLOOKUP(D219,'Input Wonen'!$D$13:$H$151,2,FALSE) -> Dakbedekking | F219: =VLOOKUP(D219,'Input Wonen'!$D$13:$H$151,3,FALSE) -> Bitumen, gemod. eenlaags 4,3mm | H219: DA09.HNN | I219: =IFERROR(VLOOKUP(H219,'Input Wonen'!$J$13:$N$151,COLUMNS('Input Wonen'!J:K),FALSE),"") -> Dakbedekking | J219: =IFERROR(VLOOKUP(H219,'Input Wonen'!$J$13:$N$151,COLUMNS('Input Wonen'!J:L),FALSE),"") -> EPDM losmaakbare dakbedekking | L219: DA09.E | M219: =IFERROR(VLOOKUP(L219,'Input Wonen'!$P$13:$T$151,COLUMNS('Input Wonen'!P:Q),FALSE),"") -> Dakbedekking | N219: =IFERROR(VLOOKUP(L219,'Input Wonen'!$P$13:$T$151,COLUMNS('Input Wonen'!P:R),FALSE),"") -> EPDM losmaakbare dakbedekking
D220: DA04.t | E220: =VLOOKUP(D220,'Input Wonen'!$D$13:$H$151,2,FALSE) -> Dakafwerking | F220: =VLOOKUP(D220,'Input Wonen'!$D$13:$H$151,3,FALSE) -> Daktrim; aluminium gemoffeld | H220: DA04.HNN | I220: =IFERROR(VLOOKUP(H220,'Input Wonen'!$J$13:$N$151,COLUMNS('Input Wonen'!J:K),FALSE),"") -> Dakafwerking | J220: =IFERROR(VLOOKUP(H220,'Input Wonen'!$J$13:$N$151,COLUMNS('Input Wonen'!J:L),FALSE),"") -> Daktrim; aluminium gemoffeld | L220: DA04.E | M220: =IFERROR(VLOOKUP(L220,'Input Wonen'!$P$13:$T$151,COLUMNS('Input Wonen'!P:Q),FALSE),"") -> Dakafwerking | N220: =IFERROR(VLOOKUP(L220,'Input Wonen'!$P$13:$T$151,COLUMNS('Input Wonen'!P:R),FALSE),"") -> Daktrim; aluminium gemoffeld
D221: DA14.t | E221: =VLOOKUP(D221,'Input Wonen'!$D$13:$H$151,2,FALSE) -> Waterkeringen | F221: =VLOOKUP(D221,'Input Wonen'!$D$13:$H$151,3,FALSE) -> Polyetheen; folie | H221: DA14.HNN | I221: =IFERROR(VLOOKUP(H221,'Input Wonen'!$J$13:$N$151,COLUMNS('Input Wonen'!J:K),FALSE),"") -> Waterkeringen | J221: =IFERROR(VLOOKUP(H221,'Input Wonen'!$J$13:$N$151,COLUMNS('Input Wonen'!J:L),FALSE),"") -> Polyetheen; folie | L221: DA14.E | M221: =IFERROR(VLOOKUP(L221,'Input Wonen'!$P$13:$T$151,COLUMNS('Input Wonen'!P:Q),FALSE),"") -> Waterkeringen | N221: =IFERROR(VLOOKUP(L221,'Input Wonen'!$P$13:$T$151,COLUMNS('Input Wonen'!P:R),FALSE),"") -> Polyetheen; folie
E222: Binnenwanden | I222: Binnenwanden | M222: Binnenwanden
D223: BI02.t | E223: =VLOOKUP(D223,'Input Wonen'!$D$13:$H$151,2,FALSE) -> Woningscheidende wanden, 100mm; | F223: =VLOOKUP(D223,'Input Wonen'!$D$13:$H$151,3,FALSE) -> Prefab beton | H223: BI02.HNN | I223: =IFERROR(VLOOKUP(H223,'Input Wonen'!$J$13:$N$151,COLUMNS('Input Wonen'!J:K),FALSE),"") -> Woningscheidende wanden, 100mm; | J223: =IFERROR(VLOOKUP(H223,'Input Wonen'!$J$13:$N$151,COLUMNS('Input Wonen'!J:L),FALSE),"") -> Prefab beton | L223: BI02.E | M223: =IFERROR(VLOOKUP(L223,'Input Wonen'!$P$13:$T$151,COLUMNS('Input Wonen'!P:Q),FALSE),"") -> Woningscheidende wanden, HSB | N223: =IFERROR(VLOOKUP(L223,'Input Wonen'!$P$13:$T$151,COLUMNS('Input Wonen'!P:R),FALSE),"") -> HSB binnenwand element met vlasisolatie
D224: BI04.t | E224: =VLOOKUP(D224,'Input Wonen'!$D$13:$H$151,2,FALSE) -> Wandtegelwerk badkamer, toilet en keuken | F224: =VLOOKUP(D224,'Input Wonen'!$D$13:$H$151,3,FALSE) -> Keramische tegels; geglazuurd/gelijmd | H224: BI04.HNN | I224: =IFERROR(VLOOKUP(H224,'Input Wonen'!$J$13:$N$151,COLUMNS('Input Wonen'!J:K),FALSE),"") -> Wandtegelwerk badkamer, toilet en keuken | J224: =IFERROR(VLOOKUP(H224,'Input Wonen'!$J$13:$N$151,COLUMNS('Input Wonen'!J:L),FALSE),"") -> Mosa C2C wandtegels | L224: BI04.E | M224: =IFERROR(VLOOKUP(L224,'Input Wonen'!$P$13:$T$151,COLUMNS('Input Wonen'!P:Q),FALSE),"") -> Wandtegelwerk badkamer, toilet en keuken | N224: =IFERROR(VLOOKUP(L224,'Input Wonen'!$P$13:$T$151,COLUMNS('Input Wonen'!P:R),FALSE),"") -> Gerecycled PET i.c.m. Quartz
D225: BI05.t | E225: =VLOOKUP(D225,'Input Wonen'!$D$13:$H$151,2,FALSE) -> Binnenwanden, 70mm | F225: =VLOOKUP(D225,'Input Wonen'!$D$13:$H$151,3,FALSE) -> Gipsblokken, normale dichtheid | H225: BI05.HNN | I225: =IFERROR(VLOOKUP(H225,'Input Wonen'!$J$13:$N$151,COLUMNS('Input Wonen'!J:K),FALSE),"") -> Binnenwanden, 70mm | J225: =IFERROR(VLOOKUP(H225,'Input Wonen'!$J$13:$N$151,COLUMNS('Input Wonen'!J:L),FALSE),"") -> Faay volpaneel | L225: BI05.E | M225: =IFERROR(VLOOKUP(L225,'Input Wonen'!$P$13:$T$151,COLUMNS('Input Wonen'!P:Q),FALSE),"") -> Binnenwanden, 70mm | N225: =IFERROR(VLOOKUP(L225,'Input Wonen'!$P$13:$T$151,COLUMNS('Input Wonen'!P:R),FALSE),"") -> Faay volpaneel
D226: BI11.t | E226: =VLOOKUP(D226,'Input Wonen'!$D$13:$H$151,2,FALSE) -> Binnenkozijnen | F226: =VLOOKUP(D226,'Input Wonen'!$D$13:$H$151,3,FALSE) -> Staal; verzinkt+gemoffeld | H226: BI11.HNN | I226: =IFERROR(VLOOKUP(H226,'Input Wonen'!$J$13:$N$151,COLUMNS('Input Wonen'!J:K),FALSE),"") -> Binnenkozijnen | J226: =IFERROR(VLOOKUP(H226,'Input Wonen'!$J$13:$N$151,COLUMNS('Input Wonen'!J:L),FALSE),"") -> Europees naaldhout, geschilderd | L226: BI11.E | M226: =IFERROR(VLOOKUP(L226,'Input Wonen'!$P$13:$T$151,COLUMNS('Input Wonen'!P:Q),FALSE),"") -> Binnenkozijnen | N226: =IFERROR(VLOOKUP(L226,'Input Wonen'!$P$13:$T$151,COLUMNS('Input Wonen'!P:R),FALSE),"") -> Europees naaldhout, geschilderd
D227: BI08.t | E227: =VLOOKUP(D227,'Input Wonen'!$D$13:$H$151,2,FALSE) -> Binnendeuren | F227: =VLOOKUP(D227,'Input Wonen'!$D$13:$H$151,3,FALSE) -> Honingraat; vlakke binnendeur | H227: BI08.HNN | I227: =IFERROR(VLOOKUP(H227,'Input Wonen'!$J$13:$N$151,COLUMNS('Input Wonen'!J:K),FALSE),"") -> Binnendeuren | J227: =IFERROR(VLOOKUP(H227,'Input Wonen'!$J$13:$N$151,COLUMNS('Input Wonen'!J:L),FALSE),"") -> Honingraat; vlakke binnendeur | L227: BI08.E | M227: =IFERROR(VLOOKUP(L227,'Input Wonen'!$P$13:$T$151,COLUMNS('Input Wonen'!P:Q),FALSE),"") -> Binnendeuren | N227: =IFERROR(VLOOKUP(L227,'Input Wonen'!$P$13:$T$151,COLUMNS('Input Wonen'!P:R),FALSE),"") -> Honingraat; vlakke binnendeur
D228: BI10.t | E228: =VLOOKUP(D228,'Input Wonen'!$D$13:$H$151,2,FALSE) -> Binnendorpels | F228: =VLOOKUP(D228,'Input Wonen'!$D$13:$H$151,3,FALSE) -> Gegoten composietsteen | H228: BI10.HNN | I228: =IFERROR(VLOOKUP(H228,'Input Wonen'!$J$13:$N$151,COLUMNS('Input Wonen'!J:K),FALSE),"") -> Binnendorpels | J228: =IFERROR(VLOOKUP(H228,'Input Wonen'!$J$13:$N$151,COLUMNS('Input Wonen'!J:L),FALSE),"") -> Kunststeen | L228: BI10.E | M228: =IFERROR(VLOOKUP(L228,'Input Wonen'!$P$13:$T$151,COLUMNS('Input Wonen'!P:Q),FALSE),"") -> Binnendorpels | N228: =IFERROR(VLOOKUP(L228,'Input Wonen'!$P$13:$T$151,COLUMNS('Input Wonen'!P:R),FALSE),"") -> Kunststeen
E229: Klimaatinstallaties | I229: Klimaatinstallaties | M229: Klimaatinstallaties
D230: KL06.t | E230: =VLOOKUP(D230,'Input Wonen'!$D$13:$H$151,2,FALSE) -> Waterleidingen, verwarmd tapwater | F230: =VLOOKUP(D230,'Input Wonen'!$D$13:$H$151,3,FALSE) -> PVC, incl. mantelbuis 15mm; W-bouw | H230: KL06.HNN | I230: =IFERROR(VLOOKUP(H230,'Input Wonen'!$J$13:$N$151,COLUMNS('Input Wonen'!J:K),FALSE),"") -> Waterleidingen, verwarmd tapwater | J230: =IFERROR(VLOOKUP(H230,'Input Wonen'!$J$13:$N$151,COLUMNS('Input Wonen'!J:L),FALSE),"") -> PVC, incl. mantelbuis 15mm; W-bouw | L230: KL06.E | M230: =IFERROR(VLOOKUP(L230,'Input Wonen'!$P$13:$T$151,COLUMNS('Input Wonen'!P:Q),FALSE),"") -> Waterleidingen, verwarmd tapwater | N230: =IFERROR(VLOOKUP(L230,'Input Wonen'!$P$13:$T$151,COLUMNS('Input Wonen'!P:R),FALSE),"") -> PVC, incl. mantelbuis 15mm; W-bouw
D231: KL07.t | E231: =VLOOKUP(D231,'Input Wonen'!$D$13:$H$151,2,FALSE) -> Warmtapwaterinstallatie | F231: =VLOOKUP(D231,'Input Wonen'!$D$13:$H$151,3,FALSE) -> Elektrische boiler; CW:4-6 120 liter | H231: KL07.HNN | I231: =IFERROR(VLOOKUP(H231,'Input Wonen'!$J$13:$N$151,COLUMNS('Input Wonen'!J:K),FALSE),"") -> Warmtapwaterinstallatie | J231: =IFERROR(VLOOKUP(H231,'Input Wonen'!$J$13:$N$151,COLUMNS('Input Wonen'!J:L),FALSE),"") -> Elektrische boiler; CW:4-6 120 liter | L231: KL07.E | M231: =IFERROR(VLOOKUP(L231,'Input Wonen'!$P$13:$T$151,COLUMNS('Input Wonen'!P:Q),FALSE),"") -> Warmtapwaterinstallatie | N231: =IFERROR(VLOOKUP(L231,'Input Wonen'!$P$13:$T$151,COLUMNS('Input Wonen'!P:R),FALSE),"") -> Elektrische boiler; CW:4-6 120 liter
D232: KL03.t | E232: =VLOOKUP(D232,'Input Wonen'!$D$13:$H$151,2,FALSE) -> Warmteafgiftesysteem | F232: =VLOOKUP(D232,'Input Wonen'!$D$13:$H$151,3,FALSE) -> Vloerverwarming 95 W/m2 | H232: KL03.HNN | I232: =IFERROR(VLOOKUP(H232,'Input Wonen'!$J$13:$N$151,COLUMNS('Input Wonen'!J:K),FALSE),"") -> Warmteafgiftesysteem | J232: =IFERROR(VLOOKUP(H232,'Input Wonen'!$J$13:$N$151,COLUMNS('Input Wonen'!J:L),FALSE),"") -> Vloerverwarming 95 W/m2 | L232: KL03.E | M232: =IFERROR(VLOOKUP(L232,'Input Wonen'!$P$13:$T$151,COLUMNS('Input Wonen'!P:Q),FALSE),"") -> Warmteafgiftesysteem | N232: =IFERROR(VLOOKUP(L232,'Input Wonen'!$P$13:$T$151,COLUMNS('Input Wonen'!P:R),FALSE),"") -> Vloerverwarming 95 W/m2
D233: KL08.t | E233: =VLOOKUP(D233,'Input Wonen'!$D$13:$H$151,2,FALSE) -> Warmteopwekkinginstallatie | F233: =VLOOKUP(D233,'Input Wonen'!$D$13:$H$151,3,FALSE) -> Warmtepomp luchtwater 10kW | H233: KL08.HNN | I233: =IFERROR(VLOOKUP(H233,'Input Wonen'!$J$13:$N$151,COLUMNS('Input Wonen'!J:K),FALSE),"") -> Warmteopwekkinginstallatie | J233: =IFERROR(VLOOKUP(H233,'Input Wonen'!$J$13:$N$151,COLUMNS('Input Wonen'!J:L),FALSE),"") -> Warmtepomp luchtwater 10kW | L233: KL08.E | M233: =IFERROR(VLOOKUP(L233,'Input Wonen'!$P$13:$T$151,COLUMNS('Input Wonen'!P:Q),FALSE),"") -> Warmteopwekkinginstallatie | N233: =IFERROR(VLOOKUP(L233,'Input Wonen'!$P$13:$T$151,COLUMNS('Input Wonen'!P:R),FALSE),"") -> Warmtepomp luchtwater 10kW
D234: KL02.t | E234: =VLOOKUP(D234,'Input Wonen'!$D$13:$H$151,2,FALSE) -> Warmtedistributiesysteem | F234: =VLOOKUP(D234,'Input Wonen'!$D$13:$H$151,3,FALSE) -> CV-leidingen incl. koppelingen + verdeling | H234: KL02.HNN | I234: =IFERROR(VLOOKUP(H234,'Input Wonen'!$J$13:$N$151,COLUMNS('Input Wonen'!J:K),FALSE),"") -> Warmtedistributiesysteem | J234: =IFERROR(VLOOKUP(H234,'Input Wonen'!$J$13:$N$151,COLUMNS('Input Wonen'!J:L),FALSE),"") -> CV-leidingen incl. koppelingen + verdeling | L234: KL02.E | M234: =IFERROR(VLOOKUP(L234,'Input Wonen'!$P$13:$T$151,COLUMNS('Input Wonen'!P:Q),FALSE),"") -> Warmtedistributiesysteem | N234: =IFERROR(VLOOKUP(L234,'Input Wonen'!$P$13:$T$151,COLUMNS('Input Wonen'!P:R),FALSE),"") -> CV-leidingen incl. koppelingen + verdeling
D235: KL05.t | E235: =VLOOKUP(D235,'Input Wonen'!$D$13:$H$151,2,FALSE) -> Luchtdistributiesysteem | F235: =VLOOKUP(D235,'Input Wonen'!$D$13:$H$151,3,FALSE) -> VLA ventilatiesysteem, type D met centrale wtw; W-bouw, individueel | H235: KL05.HNN | I235: =IFERROR(VLOOKUP(H235,'Input Wonen'!$J$13:$N$151,COLUMNS('Input Wonen'!J:K),FALSE),"") -> Luchtdistributiesysteem | J235: =IFERROR(VLOOKUP(H235,'Input Wonen'!$J$13:$N$151,COLUMNS('Input Wonen'!J:L),FALSE),"") -> VLA ventilatiesysteem, type D met centrale wtw; W-bouw, individueel | L235: KL05.E | M235: =IFERROR(VLOOKUP(L235,'Input Wonen'!$P$13:$T$151,COLUMNS('Input Wonen'!P:Q),FALSE),"") -> Luchtdistributiesysteem | N235: =IFERROR(VLOOKUP(L235,'Input Wonen'!$P$13:$T$151,COLUMNS('Input Wonen'!P:R),FALSE),"") -> VLA ventilatiesysteem, type D met centrale wtw; W-bouw, individueel
E236: Elektrische installaties | I236: Elektrische installaties | M236: Elektrische installaties
D237: EL01.t | E237: =VLOOKUP(D237,'Input Wonen'!$D$13:$H$151,2,FALSE) -> Elektriciteitsleidingen | F237: =VLOOKUP(D237,'Input Wonen'!$D$13:$H$151,3,FALSE) -> Geïsoleerde installatiedraad + mantelbuis | H237: EL01.HNN | I237: =IFERROR(VLOOKUP(H237,'Input Wonen'!$J$13:$N$151,COLUMNS('Input Wonen'!J:K),FALSE),"") -> Elektriciteitsleidingen | J237: =IFERROR(VLOOKUP(H237,'Input Wonen'!$J$13:$N$151,COLUMNS('Input Wonen'!J:L),FALSE),"") -> Geïsoleerde installatiedraad + mantelbuis | L237: EL01.E | M237: =IFERROR(VLOOKUP(L237,'Input Wonen'!$P$13:$T$151,COLUMNS('Input Wonen'!P:Q),FALSE),"") -> Elektriciteitsleidingen | N237: =IFERROR(VLOOKUP(L237,'Input Wonen'!$P$13:$T$151,COLUMNS('Input Wonen'!P:R),FALSE),"") -> Geïsoleerde installatiedraad + mantelbuis
D238: EL03.t | E238: =VLOOKUP(D238,'Input Wonen'!$D$13:$H$151,2,FALSE) -> Pv-panelen, plat dak | F238: =VLOOKUP(D238,'Input Wonen'!$D$13:$H$151,3,FALSE) -> Mono-Si; incl. inverter+kabels | H238: EL03.HNN | I238: =IFERROR(VLOOKUP(H238,'Input Wonen'!$J$13:$N$151,COLUMNS('Input Wonen'!J:K),FALSE),"") -> Pv-panelen, plat dak | J238: =IFERROR(VLOOKUP(H238,'Input Wonen'!$J$13:$N$151,COLUMNS('Input Wonen'!J:L),FALSE),"") -> Exasun Xglass | L238: EL03.E | M238: =IFERROR(VLOOKUP(L238,'Input Wonen'!$P$13:$T$151,COLUMNS('Input Wonen'!P:Q),FALSE),"") -> Pv-panelen, plat dak | N238: =IFERROR(VLOOKUP(L238,'Input Wonen'!$P$13:$T$151,COLUMNS('Input Wonen'!P:R),FALSE),"") -> Exasun Xglass
E239: Toe- en afvoeren | I239: Toe- en afvoeren | M239: Toe- en afvoeren
D240: TO01.t | E240: =VLOOKUP(D240,'Input Wonen'!$D$13:$H$151,2,FALSE) -> Waterleidingen | F240: =VLOOKUP(D240,'Input Wonen'!$D$13:$H$151,3,FALSE) -> Polyetheen; leiding+mantelbuis | H240: TO01.HNN | I240: =IFERROR(VLOOKUP(H240,'Input Wonen'!$J$13:$N$151,COLUMNS('Input Wonen'!J:K),FALSE),"") -> Waterleidingen | J240: =IFERROR(VLOOKUP(H240,'Input Wonen'!$J$13:$N$151,COLUMNS('Input Wonen'!J:L),FALSE),"") -> Polyetheen | L240: TO01.E | M240: =IFERROR(VLOOKUP(L240,'Input Wonen'!$P$13:$T$151,COLUMNS('Input Wonen'!P:Q),FALSE),"") -> Waterleidingen | N240: =IFERROR(VLOOKUP(L240,'Input Wonen'!$P$13:$T$151,COLUMNS('Input Wonen'!P:R),FALSE),"") -> Polyetheen
D241: TO02.t | E241: =VLOOKUP(D241,'Input Wonen'!$D$13:$H$151,2,FALSE) -> Buitenriolering kavel | F241: =VLOOKUP(D241,'Input Wonen'!$D$13:$H$151,3,FALSE) -> PVC | H241: TO02.HNN | I241: =IFERROR(VLOOKUP(H241,'Input Wonen'!$J$13:$N$151,COLUMNS('Input Wonen'!J:K),FALSE),"") -> Buitenriolering | J241: =IFERROR(VLOOKUP(H241,'Input Wonen'!$J$13:$N$151,COLUMNS('Input Wonen'!J:L),FALSE),"") -> Gerecycled PVC (Pipelife) | L241: TO02.E | M241: =IFERROR(VLOOKUP(L241,'Input Wonen'!$P$13:$T$151,COLUMNS('Input Wonen'!P:Q),FALSE),"") -> Buitenriolering | N241: =IFERROR(VLOOKUP(L241,'Input Wonen'!$P$13:$T$151,COLUMNS('Input Wonen'!P:R),FALSE),"") -> Gerecycled PVC (Pipelife)
D242: TO03.t | E242: =VLOOKUP(D242,'Input Wonen'!$D$13:$H$151,2,FALSE) -> Binnenriolering | F242: =VLOOKUP(D242,'Input Wonen'!$D$13:$H$151,3,FALSE) -> PVC | H242: TO03.HNN | I242: =IFERROR(VLOOKUP(H242,'Input Wonen'!$J$13:$N$151,COLUMNS('Input Wonen'!J:K),FALSE),"") -> Binnenriolering | J242: =IFERROR(VLOOKUP(H242,'Input Wonen'!$J$13:$N$151,COLUMNS('Input Wonen'!J:L),FALSE),"") -> Gerecycled PVC (Pipelife) | L242: TO03.E | M242: =IFERROR(VLOOKUP(L242,'Input Wonen'!$P$13:$T$151,COLUMNS('Input Wonen'!P:Q),FALSE),"") -> Binnenriolering | N242: =IFERROR(VLOOKUP(L242,'Input Wonen'!$P$13:$T$151,COLUMNS('Input Wonen'!P:R),FALSE),"") -> Gerecycled PVC (Pipelife)
D243: TO04.t | E243: =VLOOKUP(D243,'Input Wonen'!$D$13:$H$151,2,FALSE) -> Hemelwaterafvoer | F243: =VLOOKUP(D243,'Input Wonen'!$D$13:$H$151,3,FALSE) -> PVC | H243: TO04.HNN | I243: =IFERROR(VLOOKUP(H243,'Input Wonen'!$J$13:$N$151,COLUMNS('Input Wonen'!J:K),FALSE),"") -> Hemelwaterafvoer | J243: =IFERROR(VLOOKUP(H243,'Input Wonen'!$J$13:$N$151,COLUMNS('Input Wonen'!J:L),FALSE),"") -> Gerecycled PVC (Pipelife) | L243: TO04.E | M243: =IFERROR(VLOOKUP(L243,'Input Wonen'!$P$13:$T$151,COLUMNS('Input Wonen'!P:Q),FALSE),"") -> Hemelwaterafvoer | N243: =IFERROR(VLOOKUP(L243,'Input Wonen'!$P$13:$T$151,COLUMNS('Input Wonen'!P:R),FALSE),"") -> Gerecycled PVC (Pipelife)
E244: Verkeersruimte | I244: Verkeersruimte | M244: Verkeersruimte
D245: VE01.t | E245: =VLOOKUP(D245,'Input Wonen'!$D$13:$H$151,2,FALSE) -> Interne trap | F245: =VLOOKUP(D245,'Input Wonen'!$D$13:$H$151,3,FALSE) -> Eur. loofhout; geschilderd | H245: VE01.HNN | I245: =IFERROR(VLOOKUP(H245,'Input Wonen'!$J$13:$N$151,COLUMNS('Input Wonen'!J:K),FALSE),"") -> Interne trap | J245: =IFERROR(VLOOKUP(H245,'Input Wonen'!$J$13:$N$151,COLUMNS('Input Wonen'!J:L),FALSE),"") -> Eur. loofhout; geschilderd | L245: VE01.E | M245: =IFERROR(VLOOKUP(L245,'Input Wonen'!$P$13:$T$151,COLUMNS('Input Wonen'!P:Q),FALSE),"") -> Interne trap | N245: =IFERROR(VLOOKUP(L245,'Input Wonen'!$P$13:$T$151,COLUMNS('Input Wonen'!P:R),FALSE),"") -> Eur. loofhout; geschilderd
D246: VE03.t | E246: =VLOOKUP(D246,'Input Wonen'!$D$13:$H$151,2,FALSE) -> Balustrades | F246: =VLOOKUP(D246,'Input Wonen'!$D$13:$H$151,3,FALSE) -> Eur. loofhout; spijlen; duurzame bosbouw | H246: VE03.HNN | I246: =IFERROR(VLOOKUP(H246,'Input Wonen'!$J$13:$N$151,COLUMNS('Input Wonen'!J:K),FALSE),"") -> Balustrades | J246: =IFERROR(VLOOKUP(H246,'Input Wonen'!$J$13:$N$151,COLUMNS('Input Wonen'!J:L),FALSE),"") -> Eur. loofhout; spijlen; duurzame bosbouw | L246: VE03.E | M246: =IFERROR(VLOOKUP(L246,'Input Wonen'!$P$13:$T$151,COLUMNS('Input Wonen'!P:Q),FALSE),"") -> Balustrades | N246: =IFERROR(VLOOKUP(L246,'Input Wonen'!$P$13:$T$151,COLUMNS('Input Wonen'!P:R),FALSE),"") -> Eur. loofhout; spijlen; duurzame bosbouw
D247: VE05.t | E247: =VLOOKUP(D247,'Input Wonen'!$D$13:$H$151,2,FALSE) -> Leuningen | F247: =VLOOKUP(D247,'Input Wonen'!$D$13:$H$151,3,FALSE) -> Eur. loofhout; duurzame bosbouw | H247: VE05.HNN | I247: =IFERROR(VLOOKUP(H247,'Input Wonen'!$J$13:$N$151,COLUMNS('Input Wonen'!J:K),FALSE),"") -> Leuningen | J247: =IFERROR(VLOOKUP(H247,'Input Wonen'!$J$13:$N$151,COLUMNS('Input Wonen'!J:L),FALSE),"") -> Eur. loofhout; duurzame bosbouw | L247: VE05.E | M247: =IFERROR(VLOOKUP(L247,'Input Wonen'!$P$13:$T$151,COLUMNS('Input Wonen'!P:Q),FALSE),"") -> Leuningen | N247: =IFERROR(VLOOKUP(L247,'Input Wonen'!$P$13:$T$151,COLUMNS('Input Wonen'!P:R),FALSE),"") -> Eur. loofhout; duurzame bosbouw
E248: Vaste voorzieningen | I248: Vaste voorzieningen | M248: Vaste voorzieningen
D249: VA01.t | E249: =VLOOKUP(D249,'Input Wonen'!$D$13:$H$151,2,FALSE) -> Toiletten; wandcloset + fontein | F249: =VLOOKUP(D249,'Input Wonen'!$D$13:$H$151,3,FALSE) -> Porselein | H249: VA01.HNN | I249: =IFERROR(VLOOKUP(H249,'Input Wonen'!$J$13:$N$151,COLUMNS('Input Wonen'!J:K),FALSE),"") -> Toiletten; wandcloset + fontein | J249: =IFERROR(VLOOKUP(H249,'Input Wonen'!$J$13:$N$151,COLUMNS('Input Wonen'!J:L),FALSE),"") -> Porselein | L249: VA01.E | M249: =IFERROR(VLOOKUP(L249,'Input Wonen'!$P$13:$T$151,COLUMNS('Input Wonen'!P:Q),FALSE),"") -> Toiletten; wandcloset + fontein | N249: =IFERROR(VLOOKUP(L249,'Input Wonen'!$P$13:$T$151,COLUMNS('Input Wonen'!P:R),FALSE),"") -> Porselein
D250: VA02.t | E250: =VLOOKUP(D250,'Input Wonen'!$D$13:$H$151,2,FALSE) -> Wastafel | F250: =VLOOKUP(D250,'Input Wonen'!$D$13:$H$151,3,FALSE) -> Keramisch | H250: VA02.HNN | I250: =IFERROR(VLOOKUP(H250,'Input Wonen'!$J$13:$N$151,COLUMNS('Input Wonen'!J:K),FALSE),"") -> Wastafel | J250: =IFERROR(VLOOKUP(H250,'Input Wonen'!$J$13:$N$151,COLUMNS('Input Wonen'!J:L),FALSE),"") -> Keramisch | L250: VA02.E | M250: =IFERROR(VLOOKUP(L250,'Input Wonen'!$P$13:$T$151,COLUMNS('Input Wonen'!P:Q),FALSE),"") -> Wastafel | N250: =IFERROR(VLOOKUP(L250,'Input Wonen'!$P$13:$T$151,COLUMNS('Input Wonen'!P:R),FALSE),"") -> Keramisch
... 348 more rows

Sheet Input P1 (hidden)
E3: Project | R3: Projectcode: | T3: 0447.005
E4: Onderwerp
E5: Opgesteld | R5: Versie: | T5: 0.1
E6: Gecontroleerd | R6: Versie datum: | T6: 2022-04-25
E7: Bestand: | R7: Status: | T7: concept
E10: TRADITIONEEL BOUWEN | L10: CIRCULAIR BOUWEN
E12: GRONDGEBONDEN WONINGBOUW | L12: GRONDGEBONDEN WONINGBOUW
E26: Woning S tussen | L26: Woning S tussen
E27: Element | F27: Materialisatie | G27: Hoeveelheid | H27: Ehd | I27: Ehd.prijs (directe bouwkosten) | J27: Totale directe bouwkosten | L27: Element | M27: Materialisatie | N27: Hoeveelheid | O27: Ehd | P27: Ehd.prijs (directe bouwkosten) | Q27: Totale directe bouwkosten
E29: Fundering | L29: Fundering
D30: FU02 | E30: Funderingsbalken, 400x500mm | F30: In het werk gestort | G30: 19.4 | H30: m1 | I30: =VLOOKUP(D30,'Input Wonen'!$D$13:$H$151,4,FALSE) ->  | J30: =G30*I30 ->  | L30: Funderingsbalken, 400x500mm | M30: Beton met 30% recyclaat | N30: 19.4 | O30: m1 | P30: Kosten opvragen | Q30: =N30*P30 -> 
D31: FU04 | E31: Prefab funderingspaal, 350x350mm | F31: Prefab beton | G31: 55.7 | H31: m1 | I31: =VLOOKUP(D31,'Input Wonen'!$D$13:$H$151,4,FALSE) ->  | J31: =G31*I31 ->  | L31: Prefab funderingspaal, 350x350mm | M31: Beton met 30% recyclaat | N31: 55.7 | O31: m1 | P31: Kosten opvragen | Q31: =N31*P31 -> 
E32: Vloeren | L32: Vloeren
D33: VL01 | E33: Bodemafsluiting, 100 zand | F33: Zand | G33: 48.6 | H33: m2 | I33: =VLOOKUP(D33,'Input Wonen'!$D$13:$H$151,4,FALSE) ->  | L33: Bodemafsluiting 100 zand | M33: Zand | N33: 48.6 | O33: m2 | P33: 60 | Q33: =N33*P33 -> 2916
D34: VL02 | E34: Ribbenvloer incl. isolatie; Rc=4,0 | F34: Prefab beton | G34: 43.5 | H34: m2 | I34: =VLOOKUP(D34,'Input Wonen'!$D$13:$H$151,4,FALSE) ->  | L34: Kanaalplaatvloer incl. isolatie; Rc=4,0 | M34: Geïsoleerde groene kanaalplaatvloer - remontabel | N34: 43.5 | O34: m2 | P34: 75 | Q34: 3262.5
D35: VL03 | E35: Dekvloeren, 60mm | F35: Zandcement dekvloer | G35: 41.5 | H35: m2 | I35: =VLOOKUP(D35,'Input Wonen'!$D$13:$H$151,4,FALSE) ->  | L35: Dekvloeren, 60mm | M35: Zandcement dekvloer | N35: 41.5 | O35: m2 | P35: 12 | Q35: 498
D36: VL05 | E36: Vloertegelwerk toilet | F36: Keramische tegels, geglazuurd/gelijmd | G36: 1 | H36: m2 | I36: =VLOOKUP(D36,'Input Wonen'!$D$13:$H$151,4,FALSE) ->  | L36: Vloertegelwerk toilet | M36: Mosa C2C vloertegels | N36: 1 | O36: m2 | P36: =53.83*0.7*1.25 -> 47.10125 | Q36: =N36*P36 -> 47.10125
D37: VL07 | E37: Vloerisolatie, Rc=3,5 | F37: EPS | G37: 43.5 | H37: m2 | I37: =VLOOKUP(D37,'Input Wonen'!$D$13:$H$151,4,FALSE) ->  | L37: Vloerisolatie, Rc=3,5 | M37: Pavaflex houtvezelisolatie | N37: 43.5 | O37: m2 | P37: =22.53*0.7*1.25 -> 19.71375 | Q37: 857.548125
D38: VL08 | E38: Verdiepingsvloer, excl. druklaag 60mm | F38: Breedplaatvloer, beton | G38: 81.1 | H38: m2 | I38: =VLOOKUP(D38,'Input Wonen'!$D$13:$H$151,4,FALSE) ->  | L38: Verdiepingsvloer | M38: HSB vloerelement (balken + OSB), IsoVlas 60mm, gipsplaat (2x) | N38: 81.1 | O38: m2 | P38: 150 | Q38: 12165
D39: VL09 | E39: Druklaag, 190mm | F39: Betonmortel | G39: 81.1 | H39: m2 | I39: =VLOOKUP(D39,'Input Wonen'!$D$13:$H$151,4,FALSE) ->  | L39: - | M39: - | N39: - | O39: - | P39: 0 | Q39: 0
D40: VL10 | E40: Dekvloeren, 60mm | F40: Zandcement dekvloer | G40: 75.8 | H40: m2 | I40: =VLOOKUP(D40,'Input Wonen'!$D$13:$H$151,4,FALSE) ->  | L40: Dekvloer | M40: Fermacell honingraatvloer (op houten vloer) | N40: 75.8 | O40: m2 | P40: =(14.75+(2*6.9)+20.73)*0.7*1.25 -> 43.12 | Q40: =N40*P40 -> 3268.496
D41: VL06 | E41: Vloertegelwerk badkamer | F41: Keramische tegels, geglazuurd/gelijmd | G41: 5.7 | H41: m2 | I41: =VLOOKUP(D41,'Input Wonen'!$D$13:$H$151,4,FALSE) ->  | L41: Vloertegelwerk badkamer | M41: Mosa C2C vloertegels | N41: 5.7 | O41: m2 | P41: =53.83*0.7*1.25 -> 47.10125 | Q41: 268.477125
D42: VL11 | E42: Plafondafwerking | F42: Spuitpleiser | G42: 75.8 | H42: m2 | I42: =VLOOKUP(D42,'Input Wonen'!$D$13:$H$151,4,FALSE) ->  | L42: Plafondafwerking | M42: Spuitpleiser | N42: 75.8 | O42: m2 | P42: - | Q42: -
E43: Gevel | L43: Gevel
D44: GE01 | E44: Gevelkozijnen; draaivalraam | F44: Az. loofhout (Meranti), geschilderd | G44: 17.6 | H44: m2 | I44: =VLOOKUP(D44,'Input Wonen'!$D$13:$H$151,4,FALSE) ->  | L44: Gevelkozijnen; draaivalraam | M44: Europees naaldhout, geschilderd | N44: 17.6 | O44: m2 | P44: 400 | Q44: =N44*P44 -> 7040
D45: GE02 | E45: Beglazing | F45: Triple glas; droog beglaasd | G45: 13.61 | H45: m2 | I45: =VLOOKUP(D45,'Input Wonen'!$D$13:$H$151,4,FALSE) ->  | L45: Beglazing | M45: Triple glas; droog beglaasd | N45: 13.61 | O45: m2 | P45: 110 | Q45: 1497.1
D46: GE03 | E46: Stelkozijnen | F46: Onverduurzaamd hout, geverfd | G46: 7 | H46: st | I46: =VLOOKUP(D46,'Input Wonen'!$D$13:$H$151,4,FALSE) ->  | L46: Stelkozijnen | M46: Onverduurzaamd hout, geverfd | N46: 7 | O46: st | P46: 25 | Q46: 175
D47: GE04 | E47: Vensterbanken | F47: Composietsteen | G47: 6.2 | H47: m1 | I47: =VLOOKUP(D47,'Input Wonen'!$D$13:$H$151,4,FALSE) ->  | L47: Vensterbanken | M47: Vezelcement | N47: 6.2 | O47: m1 | P47: =71.7*0.7*1.25 -> 62.7375 | Q47: 388.9725
D48: GE05 | E48: Waterslagen | F48: Prefab beton | G48: 10.4 | H48: m1 | I48: =VLOOKUP(D48,'Input Wonen'!$D$13:$H$151,4,FALSE) ->  | L48: Waterslagen | M48: Prefab beton | N48: 10.4 | O48: m1 | P48: 65 | Q48: 676
D49: GE06 | E49: Waterkeringen | F49: EPDM-folie | G49: 10.4 | H49: m1 | I49: =VLOOKUP(D49,'Input Wonen'!$D$13:$H$151,4,FALSE) ->  | L49: Waterkeringen | M49: EPDM-folie | N49: 10.4 | O49: m1 | P49: 15 | Q49: 156
D50: GE07 | E50: Lateivoorzieningen, L-ongelijkzijdig 50x30mm | F50: Staal | G50: 12.6 | H50: m1 | I50: =VLOOKUP(D50,'Input Wonen'!$D$13:$H$151,4,FALSE) ->  | L50: Lateivoorzieningen, L-ongelijkzijdig 50x30mm | M50: Staal | N50: 12.6 | O50: m1 | P50: 55 | Q50: 693
D51: GE08 | E51: Automatische zonwering (Raffstores) | F51: Aluminium | G51: 15.2 | H51: m2 | I51: =VLOOKUP(D51,'Input Wonen'!$D$13:$H$151,4,FALSE) ->  | L51: Automatische zonwering (Raffstores) | M51: Aluminium | N51: 15.2 | O51: m2 | Q51: 0
D52: GE09 | E52: Stapeldorpel buitendeur | F52: Trop. loofhout | G52: 2 | H52: st | I52: =VLOOKUP(D52,'Input Wonen'!$D$13:$H$151,4,FALSE) ->  | L52: Stapeldorpel buitendeur | M52: Europees naaldhout | N52: 2 | O52: st | P52: 400 | Q52: 800
D53: GE10 | E53: Buitenspouwblad | F53: Baksteenmetselwerk | G53: 50.5 | H53: m2 | I53: =VLOOKUP(D53,'Input Wonen'!$D$13:$H$151,4,FALSE) ->  | L53: Buitenspouwblad | M53: Houten gevelbekleding | N53: 50.5 | O53: m2 | P53: 50 | Q53: 2525
D54: GE11 | E54: Spouwisolatie, Rc=4,5 | F54: PUR/PIR schuimplaten | G54: 47.9 | H54: m2 | I54: =VLOOKUP(D54,'Input Wonen'!$D$13:$H$151,4,FALSE) -> 
D55: GE12 | E55: Binnenspouwblad, 100mm | F55: Prefab beton | G55: 45.4 | H55: m2 | I55: =VLOOKUP(D55,'Input Wonen'!$D$13:$H$151,4,FALSE) ->  | L55: Binnenspouwblad, 100mm | M55: HSB element, incl isolatie | N55: 45.4 | O55: m2 | P55: 180 | Q55: 8172
E56: Daken | L56: Daken
D57: DA01 | E57: Dakconstructie, hellend; incl. isolatie en beplating | F57: Prefab houten dakelement | G57: 70.6 | H57: m2 | I57: =VLOOKUP(D57,'Input Wonen'!$D$13:$H$151,4,FALSE) ->  | L57: Dakconstructie, hellend; incl. isolatie en beplating | M57: HSB hellend dakelement incl. Isolatie | N57: 70.6 | O57: m2 | Q57: =N57*P57 -> 0
D58: DA04 | E58: Isolatielagen; hellend dak; Rc=3,5 | F58: EPS | G58: 70.6 | H58: m1 | I58: =VLOOKUP(D58,'Input Wonen'!$D$13:$H$151,4,FALSE) -> 
D59: DA06 | E59: Dakafwerking | F59: Betonpan | G59: 70.6 | H59: m1 | I59: =VLOOKUP(D59,'Input Wonen'!$D$13:$H$151,4,FALSE) ->  | L59: Dakafwerking | M59: Hergebruikte keramische pan | N59: 70.6 | O59: m1 | P59: 35 | Q59: 2471
D60: DA10 | E60: Dakraam | F60: Meranti, geschilderd | G60: 1 | H60: st | I60: =VLOOKUP(D60,'Input Wonen'!$D$13:$H$151,4,FALSE) ->  | L60: Dakraam | M60: Meranti, geschilderd | N60: 1 | O60: st | P60: 1000 | Q60: 1000
E61: Binnenwanden | L61: Binnenwanden
D62: BI01 | E62: Binnenwanden, niet constructief | F62: Prefab beton | G62: 140.7 | H62: m2 | I62: =VLOOKUP(D62,'Input Wonen'!$D$13:$H$151,4,FALSE) ->  | L62: Binnenwanden, niet constructief | M62: HSB binnenwand element | N62: 140.7 | O62: m2 | P62: 120 | Q62: =N62*P62 -> 16884
D63: BI02 | E63: Wandtegelwerk badk/toilet/keuken | F63: Keramische tegels; geglazuurd/gelijmd | G63: 23.9 | H63: m2 | I63: =VLOOKUP(D63,'Input Wonen'!$D$13:$H$151,4,FALSE) ->  | L63: Wandtegelwerk badk/toilet/keuken | M63: Mosa C2C wandtegels | N63: 23.9 | O63: m2 | P63: =53.83*0.7*1.25 -> 47.10125 | Q63: 1125.719875
D64: BI03 | E64: Gipskartonplaat systeemwand, 100 mm | F64: Enkel beplaat zonder isolatie | G64: 10.2 | H64: m2 | I64: =VLOOKUP(D64,'Input Wonen'!$D$13:$H$151,4,FALSE) ->  | L64: Gipskartonplaat systeemwand, 100 mm | M64: Faay biobased systeemwand [70mm] | N64: 10.2 | O64: m2 | P64: 42.54 | Q64: 433.908
D65: BI04 | E65: Gipsblokken, 70mm | F65: Normale dichtheid | G65: 36.1 | H65: m2 | I65: =VLOOKUP(D65,'Input Wonen'!$D$13:$H$151,4,FALSE) ->  | L65: Gipsblokken, 70mm | M65: HSB binnenwand element | N65: 36.1 | O65: m2 | P65: 120 | Q65: 4332
D66: BI05 | E66: Gipsblokken, 70mm | F66: Hoge dichtheid | G66: 17.4 | H66: m2 | I66: =VLOOKUP(D66,'Input Wonen'!$D$13:$H$151,4,FALSE) ->  | L66: Gipsblokken, 70mm | M66: HSB binnenwand element | N66: 17.4 | O66: m2 | P66: 120 | Q66: 2088
D67: BI06 | E67: Gipsblokken, 70mm | F67: Hoge dichtheid | G67: 7.7 | H67: m2 | I67: =VLOOKUP(D67,'Input Wonen'!$D$13:$H$151,4,FALSE) ->  | L67: Gipsblokken, 70mm | M67: HSB binnenwand element | N67: 7.7 | O67: m2 | P67: 120 | Q67: 924
D68: BI07 | E68: Vlakke houten binnendeur | F68: Honingraat | G68: 8 | H68: st | I68: =VLOOKUP(D68,'Input Wonen'!$D$13:$H$151,4,FALSE) ->  | L68: Vlakke houten binnendeur | M68: Honingraat | N68: 8 | O68: st | P68: 70 | Q68: 560
D69: BI08 | E69: Binnendorpels | F69: Kunststeen | G69: 1.8 | H69: m1 | I69: =VLOOKUP(D69,'Input Wonen'!$D$13:$H$151,4,FALSE) ->  | L69: Binnendorpels | M69: Kunststeen | N69: 1.8 | O69: m1 | P69: 32 | Q69: 57.6
D70: BI09 | E70: Binnenkozijn | F70: Staal; verzinkt+gemoffeld | G70: 19.9 | H70: m2 | I70: =VLOOKUP(D70,'Input Wonen'!$D$13:$H$151,4,FALSE) ->  | L70: Binnenkozijn | M70: Hout; geschilderd | N70: 19.9 | O70: m2 | Q70: 0
E71: Klimaatinstallaties | L71: Klimaatinstallaties
D72: KL01 | E72: Bodem warmtepomp | F72: 5 kW; incl. aardsondes | G72: 1 | H72: st | I72: =VLOOKUP(D72,'Input Wonen'!$D$13:$H$151,4,FALSE) ->  | L72: Bodem warmtepomp | M72: 5 kW; incl. aardsondes | N72: 1 | O72: st | P72: 10000 | Q72: =N72*P72 -> 10000
D73: KL02 | E73: Cv-leidingen | F73: Incl. koppelingen en verdeler | G73: 110.1 | H73: m2gbo | I73: =VLOOKUP(D73,'Input Wonen'!$D$13:$H$151,4,FALSE) ->  | L73: Cv-leidingen | M73: Incl. koppelingen en verdeler | N73: 110.1 | O73: m2gbo | Q73: 0
D74: KL03 | E74: Vloerverwarming | F74: 95 W/m2 | G74: 110.1 | H74: m2gbo | I74: =VLOOKUP(D74,'Input Wonen'!$D$13:$H$151,4,FALSE) ->  | L74: Vloerverwarming | M74: 95 W/m2 | N74: 110.1 | O74: m2gbo | Q74: 0
D75: KL04 | E75: VLA ventilatiesysteem | F75: Type C; W-bouw, individueel | G75: 110.1 | H75: m2gbo | I75: =VLOOKUP(D75,'Input Wonen'!$D$13:$H$151,4,FALSE) ->  | L75: VLA ventilatiesysteem | M75: Type C; W-bouw, individueel | N75: 110.1 | O75: m2gbo | Q75: 0
E76: Elektrische installaties | L76: Elektrische installaties
D77: EL01 | E77: Elektriciteitsleidingen | F77: Geïsoleerde installatiedraad + mantelbuis | G77: 110.1 | H77: m2gbo | I77: =VLOOKUP(D77,'Input Wonen'!$D$13:$H$151,4,FALSE) ->  | L77: Elektriciteitsleidingen | M77: Geïsoleerde installatiedraad + mantelbuis | N77: 110.1 | O77: m2gbo | Q77: =N77*P77 -> 0
D78: EL02 | E78: Pv-panelen, hellend dak | F78: Mono-Si; incl. inverter+kabels | G78: 4.5 | H78: m2 | I78: =VLOOKUP(D78,'Input Wonen'!$D$13:$H$151,4,FALSE) ->  | L78: Pv-panelen, hellend dak | M78: PV CIS zonnepanelen | N78: 4.5 | O78: m2 | P78: 188 | Q78: 846
E79: Toe- en afvoeren | L79: Toe- en afvoeren
D80: TO01 | E80: Waterleidingen | F80: Polyetheen | G80: 110.1 | H80: m2gbo | I80: =VLOOKUP(D80,'Input Wonen'!$D$13:$H$151,4,FALSE) ->  | L80: Waterleidingen | M80: Polyetheen | N80: 110.1 | O80: m2gbo | Q80: =N80*P80 -> 0
D81: TO02 | E81: Buitenriolering | F81: PVC | G81: 110.1 | H81: m2gbo | I81: =VLOOKUP(D81,'Input Wonen'!$D$13:$H$151,4,FALSE) ->  | L81: Buitenriolering | M81: PVC | N81: 110.1 | O81: m2gbo | Q81: 0
D82: TO03 | E82: Binnenriolering | F82: PVC | G82: 110.1 | H82: m2gbo | I82: =VLOOKUP(D82,'Input Wonen'!$D$13:$H$151,4,FALSE) ->  | L82: Binnenriolering | M82: PVC | N82: 110.1 | O82: m2gbo | Q82: 0
D83: TO04 | E83: Hemelwaterafvoer | F83: PVC | G83: 12 | H83: m1 | I83: =VLOOKUP(D83,'Input Wonen'!$D$13:$H$151,4,FALSE) ->  | L83: Hemelwaterafvoer | M83: PVC | N83: 12 | O83: m1 | Q83: 0
D84: TO05 | E84: Dakgoot | F84: Aluminium | G84: 10.8 | H84: m1 | I84: =VLOOKUP(D84,'Input Wonen'!$D$13:$H$151,4,FALSE) ->  | L84: Dakgoot | M84: Aluminium | N84: 10.8 | O84: m1 | P84: 65 | Q84: 702
E85: Verkeersruimte | L85: Verkeersruimte
D86: VE01 | E86: Binnentrap | F86: Eur. loofhout; geschilderd | G86: 2 | H86: st | I86: =VLOOKUP(D86,'Input Wonen'!$D$13:$H$151,4,FALSE) ->  | L86: Binnentrap | M86: Eur. loofhout; geschilderd | N86: 2 | O86: st | P86: 2150 | Q86: =N86*P86 -> 4300
D87: VE02 | E87: Balustrades | F87: Eur. loofhout; spijlen; duurzame bosbouw | G87: 5.1 | H87: m1 | I87: =VLOOKUP(D87,'Input Wonen'!$D$13:$H$151,4,FALSE) ->  | L87: Balustrades | M87: Eur. loofhout; spijlen; duurzame bosbouw | N87: 5.1 | O87: m1 | P87: 125 | Q87: 637.5
D88: VE03 | E88: Leuningen | F88: Eur. loofhout; duurzame bosbouw | G88: 10.4 | H88: m1 | I88: =VLOOKUP(D88,'Input Wonen'!$D$13:$H$151,4,FALSE) ->  | L88: Leuningen | M88: Eur. loofhout; duurzame bosbouw | N88: 10.4 | O88: m1 | P88: 45 | Q88: 468
E89: Vaste voorzieningen | L89: Vaste voorzieningen
D90: VA01 | E90: Toiletten; wandcloset + fontein | F90: Porselein | G90: 2 | H90: st | I90: =VLOOKUP(D90,'Input Wonen'!$D$13:$H$151,4,FALSE) ->  | L90: Toiletten; wandcloset + fontein | M90: Porselein | N90: 2 | O90: st | P90: 450 | Q90: =N90*P90 -> 900
D91: VA02 | E91: Wastafel | F91: Keramisch | G91: 2 | H91: st | I91: =VLOOKUP(D91,'Input Wonen'!$D$13:$H$151,4,FALSE) ->  | L91: Wastafel | M91: Keramisch | N91: 2 | O91: st | Q91: 0
D92: VA03 | E92: Inloopdouche | F92: Gipsblokken + tegels incl. rvs afvoergoot | G92: 1 | H92: st | I92: =VLOOKUP(D92,'Input Wonen'!$D$13:$H$151,4,FALSE) ->  | L92: Inloopdouche | M92: Gipsblokken + tegels incl. rvs afvoergoot | N92: 1 | O92: st | Q92: 0
J94: =SUMPRODUCT(J30:J93) ->  | Q94: =SUMPRODUCT(Q30:Q93) -> 
E96: Woning M tussen | L96: Woning M tussen
E97: Element | F97: Materialisatie | G97: Hoeveelheid | H97: Ehd | I97: Ehd.prijs (directe bouwkosten) | J97: Totale directe bouwkosten | L97: Element | M97: Materialisatie | N97: Hoeveelheid | O97: Ehd | P97: Ehd.prijs (directe bouwkosten) | Q97: Totale directe bouwkosten
E99: Fundering | L99: Fundering
D100: FU02 | E100: Funderingsbalken, 400x500mm | F100: in het werk gestort | G100: 24 | H100: m1 | I100: =VLOOKUP(D100,'Input Wonen'!$D$13:$H$151,4,FALSE) ->  | J100: =G100*I100 ->  | L100: Betonhuis; in het werk gestort | M100: Beton met 30% recyclaat | N100: 24 | O100: m1 | P100: Kosten opvragen | Q100: =N100*P100 -> 
D101: FU04 | E101: Prefab funderingspaal, 350x350mm | F101: Prefab beton | G101: 69.92 | H101: m1 | J101: =G101*I101 -> 0 | L101: Prefab heipaal | M101: Beton met 30% recyclaat | N101: 69.92 | O101: m1 | P101: Kosten opvragen | Q101: =N101*P101 -> 
E102: Vloeren | J102: 0 | L102: Vloeren
D103: VL01 | E103: Bodemafsluiting, zand | G103: 70 | H103: m2 | J103: 0 | L103: Bodemafsluiting, zand | N103: 70 | O103: m2
D104: VL02 | E104: Prefab ribbenvloer incl. isolatie; Rc=4,0 | G104: 63.5 | H104: m2 | J104: 0 | L104: Prefab ribbenvloer incl. isolatie; Rc=4,0 | M104: Geïsoleerde groene kanaalplaatvloer - remontabel | N104: 63.5 | O104: m2 | P104: 75 | Q104: =N104*P104 -> 4762.5
D105: VL03 | E105: Zandcement dekvloer | G105: 60.3 | H105: m2 | J105: 0 | L105: Zandcement dekvloer | N105: 60.3 | O105: m2
D106: VL05 | E106: Keramische tegels; geglazuurd/cement | G106: 1 | H106: m2 | J106: 0 | L106: Keramische tegels; geglazuurd/cement | M106: Mosa C2C vloertegels | N106: 1 | O106: m2 | P106: =53.83*0.7*1.25 -> 47.10125 | Q106: =N106*P106 -> 47.10125
D107: VL08 | E107: Breedplaatvloer | G107: 26.1 | H107: m2 | J107: 0 | L107: Breedplaatvloer | M107: HSB vloerelement (balken + OSB), IsoVlas 60mm, gipsplaat (2x) | N107: 26.1 | O107: m2
D108: VL09 | E108: Druklaag | G108: 26.1 | H108: m2 | J108: 0 | L108: - | M108: - | N108: - | O108: - | P108: - | Q108: -
D109: VL10 | E109: Zandcement dekvloer | G109: 23.9 | H109: m2 | J109: 0 | L109: Zandcement dekvloer | M109: Fermacell honingraatvloer (op houten vloer) | N109: 23.9 | O109: m2 | P109: =(14.75+(2*6.9)+20.73)*0.7*1.25 -> 43.12 | Q109: =N109*P109 -> 1030.568
D110: VL06 | E110: Keramische tegels | G110: 4.6 | H110: m2 | J110: 0 | L110: Keramische tegels | M110: Mosa C2C vloertegels | N110: 4.6 | O110: m2 | P110: =53.83*0.7*1.25 -> 47.10125 | Q110: =N110*P110 -> 216.66575
D111: VL11 | E111: Spuitpleister | G111: 23.9 | H111: m2 | J111: 0 | L111: Spuitpleister | N111: 23.9 | O111: m2 | P111: - | Q111: -
E112: Draagconstructie | J112: 0 | L112: Draagconstructie
D113: DR01 | E113: Stalen balk | F113: INP80 profiel | G113: 38 | H113: m1 | J113: 0 | L113: Stalen balk | M113: INP80 profiel | N113: 38 | O113: m1
E114: Gevel | J114: 0 | L114: Gevel
D115: GE10 | E115: Baksteenmetselwerk | G115: 75.3 | H115: m2 | J115: =G115*I115 -> 0 | L115: Baksteenmetselwerk | M115: Houten gevelbekleding | N115: 75.3 | O115: m2 | P115: 50 | Q115: =N115*P115 -> 3765
D116: GE12 | E116: Prefab beton binnenblad; 100mm | G116: 67.8 | H116: m2 | J116: =G116*I116 -> 0 | L116: Prefab beton binnenblad; 100mm | M116: HSB element | N116: 67.8 | O116: m2 | P116: 180 | Q116: 12204
D117: GE11 | E117: PUR/PIR schuimplaten isolatie; Rc=4,5 | G117: 71.5 | H117: m2 | J117: =G117*I117 -> 0
D118: GE01 | E118: Houten buitenkozijnen; draaivalraam, geschilderd | G118: 19.9 | H118: m2 | J118: 0 | L118: Houten buitenkozijnen; draaivalraam, geschilderd | M118: Europees naaldhout | N118: 19.9 | O118: m2
D119: GE02 | E119: Triple glas | G119: 15.8 | H119: m2 | J119: 0 | L119: Triple glas | N119: 15.8 | O119: m2
D120: GE03 | E120: Houten stelkozijnen, geschilderd | G120: 9 | H120: st | J120: 0 | L120: Houten stelkozijnen, geschilderd | N120: 9 | O120: st
D121: GE04 | E121: Composietsteen vensterbanken | G121: 6.2 | H121: m1 | J121: 0 | L121: Composietsteen vensterbanken | M121: Vezelcement | N121: 6.2 | O121: m1 | P121: =71.7*0.7*1.25 -> 62.7375 | Q121: =N121*P121 -> 388.9725
D122: GE05 | E122: Betonnen waterslagen | G122: 11.1 | H122: m1 | J122: 0 | L122: Betonnen waterslagen | N122: 11.1 | O122: m1
D123: GE06 | E123: Waterkering; EPDM folie | G123: 11.1 | H123: m1 | J123: 0 | L123: Waterkering; EPDM folie | N123: 11.1 | O123: m1
D124: GE07 | E124: Stalen lateien; L-ongelijkzijdig | G124: 11.1 | H124: m1 | J124: 0 | L124: Stalen lateien; L-ongelijkzijdig | N124: 11.1 | O124: m1
D125: GE08 | E125: Automatische zonwering (Raffstores) | G125: 16.7 | H125: m2 | J125: 0 | L125: Automatische zonwering (Raffstores) | N125: 16.7 | O125: m2
D126: GE09 | E126: Houten stapeldorpel buitendeur | G126: 3 | H126: st | J126: 0 | L126: Houten stapeldorpel buitendeur | N126: 3 | O126: st
E127: Daken | J127: 0 | L127: Daken
D128: DA02 | E128: Breedplaatvloer; 60mm | G128: 63.5 | H128: m2 | J128: 0 | L128: Breedplaatvloer; 60mm | M128: HSB plat dakelement + gipsplaat excl. Isolatie | N128: 63.5 | O128: m2 | P128: Kosten opvragen
D129: DA03 | E129: Druklaag; betonmortel | G129: 63.5 | H129: m2 | J129: 0 | L129: - | M129: - | N129: - | O129: - | P129: - | Q129: -
D130: DA05 | E130: XPS isolatie; hellend dak; Rc=3,5 | G130: 63.5 | H130: m2 | J130: 0 | L130: Isolatielagen; hellend dak; Rc=6,3 | M130: Isovlas [220mm dik]
D131: DA07 | E131: Grind | G131: 63.5 | H131: m2 | J131: 0 | L131: Grind | N131: 63.5 | O131: m2
D132: DA08 | E132: Dakbedekking; bitumen | G132: 63.5 | H132: m2 | J132: 0 | L132: Dakbedekking; bitumen | M132: EPDM Hertalan EASY COVER (Rhinobond) | N132: 63.5 | O132: m2 | P132: Kosten opvragen
D133: DA12 | E133: Spuitpleister | G133: 63.5 | H133: m2 | J133: 0 | L133: - | M133: - | N133: - | O133: - | P133: -
D134: DA12 | E134: Spuitpleister | G134: 63.5 | H134: m2 | J134: 0 | L134: - | M134: - | N134: - | O134: -
D135: DA11 | E135: Waterkering; EPDM aluminium versterkt | G135: 1 | H135: m1 | J135: 0 | L135: Waterkering; EPDM aluminium versterkt | N135: 1 | O135: m1
E136: Binnenwanden | J136: 0 | L136: Binnenwanden
D137: BI01 | E137: Prefab beton, niet-dragende binnenwand | G137: 77.7 | H137: m2 | J137: 0 | L137: Prefab beton, niet-dragende binnenwand | M137: HSB binnenwand element | N137: 77.7 | O137: m2 | P137: 120 | Q137: =N137*P137 -> 9324
D138: BI02 | E138: Keramische tegels; geglazuurd/gelijmd | G138: 19.8 | H138: m2 | J138: 0 | L138: Keramische tegels; geglazuurd/gelijmd | M138: Mosa C2C wandtegels | N138: 19.8 | P138: =53.83*0.7*1.25 -> 47.10125 | Q138: 932.60475
D139: BI04 | E139: Gipsblokken, normale dichtheid, 70mm | G139: 29.9 | H139: m2 | J139: 0 | L139: Gipsblokken, normale dichtheid, 70mm | M139: HSB binnenwand element | N139: 29.9 | O139: m2 | P139: 120 | Q139: 3588
D140: BI05 | E140: Gipsblokken, hoge dichtheid, 70mm | G140: 13.9 | H140: m2 | J140: 0 | L140: Gipsblokken, hoge dichtheid, 70mm | M140: HSB binnenwand element | N140: 13.9 | O140: m2 | P140: 120 | Q140: =N140*P140 -> 1668
D141: BI06 | E141: Gipsblokken, hoge dichtheid, 70mm | G141: 6.2 | H141: m2 | J141: 0 | L141: Gipsblokken, hoge dichtheid, 70mm | M141: HSB binnenwand element | N141: 6.2 | O141: m2 | P141: 120 | Q141: =N141*P141 -> 744
D142: BI07 | E142: Vlakke houten vlakke binnendeur; honingraat | G142: 6 | H142: st | J142: 0 | L142: Vlakke houten vlakke binnendeur; honingraat | N142: 6 | O142: st
D143: BI08 | E143: Kunststeen binnendorpels | G143: 1.8 | H143: m1 | J143: 0 | L143: Kunststeen binnendorpels | N143: 1.8 | O143: m1
D144: BI09 | E144: Stalen binnenkozijn | G144: 14.8 | H144: m2 | J144: 0 | L144: Stalen binnenkozijn | N144: 14.8 | O144: m2
E145: Klimaatinstallaties | J145: 0 | L145: Klimaatinstallaties
E146: Bodem warmtepomp | G146: 1 | H146: st | J146: 0 | L146: Bodem warmtepomp | N146: 1 | O146: st
E147: Cv-leidingen | G147: 81.7 | H147: m2gbo | J147: 0 | L147: Cv-leidingen | N147: 81.7 | O147: m2gbo
E148: Vloerverwarming | G148: 81.7 | H148: m2gbo | J148: 0 | L148: Vloerverwarming | N148: 81.7 | O148: m2gbo
E149: VLA ventilatiesysteem | G149: 81.7 | H149: m2gbo | J149: 0 | L149: VLA ventilatiesysteem | N149: 81.7 | O149: m2gbo
E150: Elektrische installaties | J150: 0 | L150: Elektrische installaties
E151: Geïsoleerde installatiedraad en mantelbuis | G151: 87.1 | H151: m2gbo | J151: 0 | L151: Geïsoleerde installatiedraad en mantelbuis | N151: 87.1 | O151: m2gbo
E152: Pv-panelen | G152: 7.5 | H152: m2 | I152: 188 | J152: 1410 | L152: Pv-panelen | M152: PV CIS zonnepanelen | N152: 7.5 | O152: m2 | Q152: 188
E153: Toe- en afvoeren | J153: 0 | L153: Toe- en afvoeren
E154: Waterleidingen | G154: 87.1 | H154: m2gbo | J154: 0 | L154: Waterleidingen | N154: 87.1 | O154: m2gbo
E155: Buitenriolering; pvc | G155: 87.1 | H155: m2gbo | J155: 0 | L155: Buitenriolering; pvc | N155: 87.1 | O155: m2gbo
E156: Binnenriolering; pvc | G156: 87.1 | H156: m2gbo | J156: 0 | L156: Binnenriolering; pvc | N156: 87.1 | O156: m2gbo
E157: Hemelwaterafvoer; pvc | G157: 12.6 | H157: m1 | J157: 0 | L157: Hemelwaterafvoer; pvc | N157: 12.6 | O157: m1
E158: Verkeersruimte | J158: 0 | L158: Verkeersruimte
E159: Houten trap | G159: 1 | H159: st | J159: 0 | L159: Houten trap | N159: 1 | O159: st
E160: Houten balustrades | G160: 4.3 | H160: m1 | J160: 0 | L160: Houten balustrades | N160: 4.3 | O160: m1
E161: Houten leuningen | G161: 5.2 | H161: m1 | J161: 0 | L161: Houten leuningen | N161: 5.2 | O161: m1
E162: Vaste voorzieningen | J162: 0 | L162: Vaste voorzieningen
E163: Toiletten; wandcloset + fontein | G163: 2 | H163: st | J163: 0 | L163: Toiletten; wandcloset + fontein | N163: 2 | O163: st
E164: Keramische wastafel | G164: 2 | H164: st | J164: 0 | L164: Keramische wastafel | N164: 2 | O164: st
E165: Inloopdouche | G165: 1 | H165: st | J165: 0 | L165: Inloopdouche | N165: 1 | O165: st
E169: Woning M hoek | L169: Woning M hoek
E170: Element | F170: Materialisatie | G170: Hoeveelheid | H170: Ehd | I170: Ehd.prijs (directe bouwkosten) | J170: Totale directe bouwkosten | L170: Element | M170: Materialisatie | N170: Hoeveelheid | O170: Ehd | P170: Ehd.prijs (directe bouwkosten) | Q170: Totale directe bouwkosten
E172: Fundering | L172: Fundering
D173: FU02 | E173: Betonhuis; in het werk gestort | G173: 27.2 | H173: m1 | J173: =G173*I173 -> 0 | L173: Betonhuis; in het werk gestort | M173: Beton met 30% recyclaat | N173: 27.2 | O173: m1 | Q173: =N173*P173 -> 0
D174: FU04 | E174: Prefab heipaal | G174: 78.1 | H174: m1 | J174: =G174*I174 -> 0 | L174: Prefab heipaal | M174: Beton met 30% recyclaat | N174: 78.1 | O174: m1 | Q174: =N174*P174 -> 0
E175: Vloeren | J175: 0 | L175: Vloeren | Q175: 0
D176: VL01 | E176: Bodemafsluiting, zand | G176: 59.99 | H176: m2 | J176: 0 | L176: Bodemafsluiting, zand | N176: 59.99 | O176: m2 | Q176: 0
D177: VL02 | E177: Prefab ribbenvloer incl. isolatie; Rc=4,0 | G177: 47.5 | H177: m2 | J177: 0 | L177: Prefab ribbenvloer incl. isolatie; Rc=4,0 | M177: Geïsoleerde groene kanaalplaatvloer - remontabel | N177: 47.5 | O177: m2 | P177: 75 | Q177: 3562.5
D178: VL03 | E178: Zandcement dekvloer | G178: 48.7 | H178: m2 | J178: 0 | L178: Zandcement dekvloer | N178: 48.7 | O178: m2 | Q178: 0
D179: VL05 | E179: Keramische tegels; geglazuurd/cement | G179: 1 | H179: m2 | J179: 0 | L179: Keramische tegels; geglazuurd/cement | M179: Mosa C2C vloertegels | N179: 1 | O179: m2 | P179: =53.83*0.7*1.25 -> 47.10125 | Q179: =N179*P179 -> 47.10125
D180: VL07 | E180: EPS isolatie; Rc=3,5 | G180: 47.5 | H180: m2 | J180: 0 | L180: EPS isolatie; Rc=3,5 | M180: Pavaflex houtvezelisolatie | N180: 47.5 | O180: m2 | P180: =22.53*0.7*1.25 -> 19.71375 | Q180: 936.403125
D181: VL08 | E181: Breedplaatvloer | G181: 89.3 | H181: m2 | J181: 0 | L181: Breedplaatvloer | M181: HSB vloerelement (balken + OSB), IsoVlas 60mm, gipsplaat (2x) | N181: 89.3 | O181: m2 | Q181: 0
D182: VL09 | E182: Druklaag | G182: 89.3 | H182: m2 | J182: 0 | L182: Druklaag | N182: 89.3 | O182: m2 | Q182: 0
D183: VL10 | E183: Zandcement dekvloer | G183: 90.2 | H183: m2 | J183: 0 | L183: Zandcement dekvloer | M183: Fermacell honingraatvloer (op houten vloer) | N183: 90.2 | O183: m2 | P183: =(14.75+(2*6.9)+20.73)*0.7*1.25 -> 43.12 | Q183: =N183*P183 -> 3889.424
D184: VL06 | E184: Keramische tegels | G184: 6.8 | H184: m2 | J184: 0 | L184: Keramische tegels | M184: Mosa C2C vloertegels | N184: 6.8 | O184: m2 | P184: =53.83*0.7*1.25 -> 47.10125 | Q184: 320.2885
D185: VL11 | E185: Spuitpleister | G185: 90.2 | H185: m2 | J185: 0 | L185: Spuitpleister | N185: 90.2 | O185: m2 | P185: - | Q185: -
E186: Gevel | J186: 0 | L186: Gevel | Q186: 0
D187: GE10 | E187: Baksteenmetselwerk | G187: 145 | H187: m2 | J187: =G187*I187 -> 0 | L187: Baksteenmetselwerk | M187: Houten gevelbekleding | N187: 145 | O187: m2 | P187: 50 | Q187: 7250
D188: GE12 | E188: Prefab beton binnenblad; 100mm | G188: 130.5 | H188: m2 | J188: =G188*I188 -> 0 | L188: Prefab beton binnenblad; 100mm | M188: HSB element | N188: 130.5 | O188: m2 | P188: 180 | Q188: 23490
D189: GE11 | E189: PUR/PIR schuimplaten isolatie; Rc=4,5 | G189: 137.8 | H189: m2 | J189: =G189*I189 -> 0 | Q189: =N189*P189 -> 0
D190: GE01 | E190: Houten buitenkozijnen; draaivalraam, geschilderd | G190: 31 | H190: m2 | J190: =G190*I190 -> 0 | L190: Houten buitenkozijnen; draaivalraam, geschilderd | M190: Europees naaldhout | N190: 31 | O190: m2 | Q190: =N190*P190 -> 0
D191: GE02 | E191: Triple glas | G191: 25.8 | H191: m2 | J191: 0 | L191: Triple glas | N191: 25.8 | O191: m2 | Q191: 0
D192: GE03 | E192: Houten stelkozijnen, geschilderd | G192: 12 | H192: st | J192: 0 | L192: Houten stelkozijnen, geschilderd | N192: 12 | O192: st | Q192: 0
D193: GE04 | E193: Composietsteen vensterbanken | G193: 9.2 | H193: m1 | J193: 0 | L193: Composietsteen vensterbanken | M193: Vezelcement | N193: 9.2 | O193: m1 | P193: =71.7*0.7*1.25 -> 62.7375 | Q193: 577.185
D194: GE05 | E194: Betonnen waterslagen | G194: 16.8 | H194: m1 | J194: 0 | L194: Betonnen waterslagen | N194: 16.8 | O194: m1 | Q194: 0
D195: GE07 | E195: Stalen lateien; L-ongelijkzijdig | G195: 16.8 | H195: m1 | J195: 0 | L195: Stalen lateien; L-ongelijkzijdig | N195: 16.8 | O195: m1 | Q195: 0
D196: GE08 | E196: Automatische zonwering (Raffstores) | G196: 16.8 | H196: m2 | J196: 0 | L196: Automatische zonwering (Raffstores) | N196: 16.8 | O196: m2 | Q196: 0
D197: GE09 | E197: Houten stapeldorpel buitendeur | G197: 3 | H197: st | J197: 0 | L197: Houten stapeldorpel buitendeur | N197: 3 | O197: st | Q197: 0
E198: Daken | J198: 0 | L198: Daken | Q198: 0
D199: DA01 | E199: Prefab houten dakelement, incl. isolatie en beplating | G199: 86.8 | H199: m2 | J199: 0 | L199: Prefab houten dakelement, incl. isolatie en beplating | M199: HSB hellend dakelement incl. Isolatie | N199: 86.8 | O199: m2 | Q199: 0
E200: EPS isolatie; hellend dak; Rc=3,5 | G200: 86.8 | H200: m2 | J200: 0
E201: Dakbedekking, betonpan | G201: 86.8 | H201: m2 | J201: 0 | L201: Dakbedekking, betonpan | M201: Hergebruikte keramische pan | N201: 86.8 | O201: m2 | P201: 35 | Q201: 3038
E202: Bekledingen en roosters verlaagde plafonds, spaanplaat (incl. regelwerk) | G202: 70.7 | H202: m2 | J202: 0 | L202: Bekledingen en roosters verlaagde plafonds, spaanplaat (incl. regelwerk) | N202: 70.7 | O202: m2 | Q202: 0
E203: Binnenwanden | J203: 0 | L203: Binnenwanden | Q203: 0
E204: Prefab beton, niet-dragende binnenwand | G204: 76.4 | H204: m2 | J204: 0 | L204: Prefab beton, niet-dragende binnenwand | M204: HSB binnenwand element | N204: 76.4 | O204: m2 | P204: 120 | Q204: 9168
E205: Keramische tegels; geglazuurd/gelijmd | G205: 28 | H205: m2 | J205: 0 | L205: Keramische tegels; geglazuurd/gelijmd | M205: Mosa C2C wandtegels | N205: 28 | O205: m2 | P205: =53.83*0.7*1.25 -> 47.10125 | Q205: 1318.835
E206: Gipskartonplaat systeemwand; enkel beplaat zonder isolatie | G206: 11.1 | H206: m2 | J206: 0 | L206: Gipskartonplaat systeemwand; enkel beplaat zonder isolatie | M206: Faay biobased systeemwand | N206: 11.1 | O206: m2 | P206: 42.54 | Q206: 472.194
E207: Gipsblokken, normale dichtheid, 70mm | G207: 42.3 | H207: m2 | J207: 0 | L207: Gipsblokken, normale dichtheid, 70mm | M207: HSB binnenwand element | N207: 42.3 | O207: m2 | P207: 120 | Q207: 5076
E208: Gipsblokken, hoge dichtheid, 70mm | G208: 20.8 | H208: m2 | J208: 0 | L208: Gipsblokken, hoge dichtheid, 70mm | M208: HSB binnenwand element | N208: 20.8 | O208: m2 | P208: 120 | Q208: =N208*P208 -> 2496
E209: Gipsblokken, hoge dichtheid, 70mm | G209: 9.3 | H209: m2 | J209: 0 | L209: Gipsblokken, hoge dichtheid, 70mm | M209: HSB binnenwand element | N209: 9.3 | O209: m2 | P209: 120 | Q209: =N209*P209 -> 1116
E210: Vlakke houten vlakke binnendeur; honingraat | G210: 10 | H210: st | J210: 0 | L210: Vlakke houten vlakke binnendeur; honingraat | N210: 10 | O210: st | Q210: 0
E211: Kunststeen binnendorpels | G211: 1.8 | H211: m1 | J211: 0 | L211: Kunststeen binnendorpels | N211: 1.8 | O211: m1 | Q211: 0
E212: Stalen binnenkozijn | G212: 24.9 | H212: m2 | J212: 0 | L212: Stalen binnenkozijn | N212: 24.9 | O212: m2 | Q212: 0
E213: Klimaatinstallaties | J213: 0 | L213: Klimaatinstallaties | Q213: 0
E214: Bodem warmtepomp | G214: 1 | H214: st | J214: 0 | L214: Bodem warmtepomp | N214: 1 | O214: st | Q214: 0
E215: Cv-leidingen | G215: 133.3 | H215: m2gbo | J215: 0 | L215: Cv-leidingen | N215: 133.3 | O215: m2gbo | Q215: 0
E216: Vloerverwarming | G216: 133.3 | H216: m2gbo | J216: 0 | L216: Vloerverwarming | N216: 133.3 | O216: m2gbo | Q216: 0
E217: VLA ventilatiesysteem | G217: 133.3 | H217: m2gbo | J217: 0 | L217: VLA ventilatiesysteem | N217: 133.3 | O217: m2gbo | Q217: 0
E218: Elektrische installaties | J218: 0 | L218: Elektrische installaties | Q218: 0
E219: Geïsoleerde installatiedraad en mantelbuis | G219: 133.3 | H219: m2gbo | J219: 0 | L219: Geïsoleerde installatiedraad en mantelbuis | N219: 133.3 | O219: m2gbo | Q219: 0
E220: Pv-panelen | G220: 5 | H220: m2 | I220: 188 | J220: 940 | L220: Pv-panelen | M220: PV CIS zonnepanelen | N220: 5 | O220: m2 | P220: 188 | Q220: 940
E221: Toe- en afvoeren | J221: 0 | L221: Toe- en afvoeren | Q221: 0
E222: Waterleidingen | G222: 133.3 | H222: m2gbo | J222: 0 | L222: Waterleidingen | N222: 133.3 | O222: m2gbo | Q222: 0
E223: Buitenriolering; pvc | G223: 133.3 | H223: m2gbo | J223: 0 | L223: Buitenriolering; pvc | N223: 133.3 | O223: m2gbo | Q223: 0
E224: Binnenriolering; pvc | G224: 133.3 | H224: m2gbo | J224: 0 | L224: Binnenriolering; pvc | N224: 133.3 | O224: m2gbo | Q224: 0
E225: Aluminium dakgoten | G225: 5.7 | H225: m1 | J225: 0 | L225: Aluminium dakgoten | N225: 5.7 | O225: m1 | Q225: 0
E226: Hemelwaterafvoer; pvc | G226: 18 | H226: m1 | J226: 0 | L226: Hemelwaterafvoer; pvc | N226: 18 | O226: m1 | Q226: 0
... 227 more rows
